{"text_format":"1","workbook":"xlsx","n_sheets":3,"sheets":["ورقة1","Sheet1","Salim"],"not_rendered":{"charts":0,"images":0,"macros":1,"external_links":0,"defined_names":0,"comments":1,"pivot_tables":0},"unopened":[],"bounds":{"document_bytes":16777216,"sheet_cells":100000,"rows_first":2000,"rows_last":500,"rows_between":2000,"halvings":0,"cell_chars":16384,"cell_head_chars":4096},"cells_cut":0,"cells_raw":0,"read":"whole","date_system":"1900"}

{"sheet":"ورقة1","index":0,"n_rows":0,"n_cols":0,"rows_kept":0,"cut":false,"hidden":false,"merged":[]}

{"sheet":"Sheet1","index":1,"n_rows":775,"n_cols":6,"rows_kept":775,"cut":false,"hidden":false,"merged":[]}
["اسم الموظف ","عدد الايام ","المرتب ","السلف ","الخصم ","الاجمالي "]
["ابانوب بشاره نصر بشاره",{"$f":"SUM(Salim!C10:AF10)","v":0},{"$f":"Table1[[#This Row],[عدد الايام ]]*65","v":0},30,10,{"$f":"Table1[[#This Row],[المرتب ]]-(Table1[[#This Row],[السلف ]]+Table1[[#This Row],[الخصم ]])","v":-40}]
["ابراهيم احمد محمد عيسي",{"$f":"SUM(Salim!C11:AF11)","v":50},{"$f":"Table1[[#This Row],[عدد الايام ]]*65","v":3250},50,5,{"$f":"Table1[[#This Row],[المرتب ]]-(Table1[[#This Row],[السلف ]]+Table1[[#This Row],[الخصم ]])","v":3195}]
["ابراهيم عادل ابراهيم جباره",{"$f":"SUM(Salim!C12:AF12)","v":0},{"$f":"Table1[[#This Row],[عدد الايام ]]*65","v":0},null,null,{"$f":"Table1[[#This Row],[المرتب ]]-(Table1[[#This Row],[السلف ]]+Table1[[#This Row],[الخصم ]])","v":0}]
["ابراهيم عبدالحميد اسماعيل",{"$f":"SUM(Salim!C13:AF13)","v":0},{"$f":"Table1[[#This Row],[عدد الايام ]]*65","v":0},null,null,{"$f":"Table1[[#This Row],[المرتب ]]-(Table1[[#This Row],[السلف ]]+Table1[[#This Row],[الخصم ]])","v":0}]
["ابراهيم عبدالله محمد علي",{"$f":"SUM(Salim!C14:AF14)","v":10},{"$f":"Table1[[#This Row],[عدد الايام ]]*65","v":650},null,null,{"$f":"Table1[[#This Row],[المرتب ]]-(Table1[[#This Row],[السلف ]]+Table1[[#This Row],[الخصم ]])","v":650}]
["ابراهيم عقيلي ابراهيم حماد",{"$f":"SUM(Salim!C15:AF15)","v":0},{"$f":"Table1[[#This Row],[عدد الايام ]]*65","v":0},null,null,{"$f":"Table1[[#This Row],[المرتب ]]-(Table1[[#This Row],[السلف ]]+Table1[[#This Row],[الخصم ]])","v":0}]
["ابراهيم كامل علي عويان",{"$f":"SUM(Salim!C16:AF16)","v":0},{"$f":"Table1[[#This Row],[عدد الايام ]]*65","v":0},300,null,{"$f":"Table1[[#This Row],[المرتب ]]-(Table1[[#This Row],[السلف ]]+Table1[[#This Row],[الخصم ]])","v":-300}]
["ابراهيم محمد ابراهيم جاد",{"$f":"SUM(Salim!C17:AF17)","v":0},{"$f":"Table1[[#This Row],[عدد الايام ]]*65","v":0},null,null,{"$f":"Table1[[#This Row],[المرتب ]]-(Table1[[#This Row],[السلف ]]+Table1[[#This Row],[الخصم ]])","v":0}]
["ابراهيم محمد شعيب علي",{"$f":"SUM(Salim!C18:AF18)","v":0},{"$f":"Table1[[#This Row],[عدد الايام ]]*65","v":0},null,null,{"$f":"Table1[[#This Row],[المرتب ]]-(Table1[[#This Row],[السلف ]]+Table1[[#This Row],[الخصم ]])","v":0}]
["ابراهيم يوسف درويش ابراهيم",{"$f":"SUM(Salim!C19:AF19)","v":10},{"$f":"Table1[[#This Row],[عدد الايام ]]*65","v":650},null,null,{"$f":"Table1[[#This Row],[المرتب ]]-(Table1[[#This Row],[السلف ]]+Table1[[#This Row],[الخصم ]])","v":650}]
["ابوالسعود صابر ابوالسعود",{"$f":"SUM(Salim!C20:AF20)","v":10},{"$f":"Table1[[#This Row],[عدد الايام ]]*65","v":650},null,null,{"$f":"Table1[[#This Row],[المرتب ]]-(Table1[[#This Row],[السلف ]]+Table1[[#This Row],[الخصم ]])","v":650}]
["ابوالعلا محمد ابوالعلا",{"$f":"SUM(Salim!C21:AF21)","v":0},{"$f":"Table1[[#This Row],[عدد الايام ]]*65","v":0},null,null,{"$f":"Table1[[#This Row],[المرتب ]]-(Table1[[#This Row],[السلف ]]+Table1[[#This Row],[الخصم ]])","v":0}]
["ابوبكر عبدالعزيز عثمان",{"$f":"SUM(Salim!C22:AF22)","v":0},{"$f":"Table1[[#This Row],[عدد الايام ]]*65","v":0},null,null,{"$f":"Table1[[#This Row],[المرتب ]]-(Table1[[#This Row],[السلف ]]+Table1[[#This Row],[الخصم ]])","v":0}]
["احمد ابو نبوت احمد",{"$f":"SUM(Salim!C23:AF23)","v":0},{"$f":"Table1[[#This Row],[عدد الايام ]]*65","v":0},null,null,{"$f":"Table1[[#This Row],[المرتب ]]-(Table1[[#This Row],[السلف ]]+Table1[[#This Row],[الخصم ]])","v":0}]
["احمد اشرف محمد حسنين",{"$f":"SUM(Salim!C24:AF24)","v":0},{"$f":"Table1[[#This Row],[عدد الايام ]]*65","v":0},null,null,{"$f":"Table1[[#This Row],[المرتب ]]-(Table1[[#This Row],[السلف ]]+Table1[[#This Row],[الخصم ]])","v":0}]
["احمد انور محمد الهلوبي",{"$f":"SUM(Salim!C25:AF25)","v":0},{"$f":"Table1[[#This Row],[عدد الايام ]]*65","v":0},null,null,{"$f":"Table1[[#This Row],[المرتب ]]-(Table1[[#This Row],[السلف ]]+Table1[[#This Row],[الخصم ]])","v":0}]
["احمد ايمن نبوي",{"$f":"SUM(Salim!C26:AF26)","v":0},{"$f":"Table1[[#This Row],[عدد الايام ]]*65","v":0},null,null,{"$f":"Table1[[#This Row],[المرتب ]]-(Table1[[#This Row],[السلف ]]+Table1[[#This Row],[الخصم ]])","v":0}]
["احمد جلال احمد محارم",{"$f":"SUM(Salim!C27:AF27)","v":0},{"$f":"Table1[[#This Row],[عدد الايام ]]*65","v":0},null,null,{"$f":"Table1[[#This Row],[المرتب ]]-(Table1[[#This Row],[السلف ]]+Table1[[#This Row],[الخصم ]])","v":0}]
["احمد جمال احمد هلال",{"$f":"SUM(Salim!C28:AF28)","v":0},{"$f":"Table1[[#This Row],[عدد الايام ]]*65","v":0},null,null,{"$f":"Table1[[#This Row],[المرتب ]]-(Table1[[#This Row],[السلف ]]+Table1[[#This Row],[الخصم ]])","v":0}]
["احمد جمال عيسي حمزه",{"$f":"SUM(Salim!C29:AF29)","v":0},{"$f":"Table1[[#This Row],[عدد الايام ]]*65","v":0},null,null,{"$f":"Table1[[#This Row],[المرتب ]]-(Table1[[#This Row],[السلف ]]+Table1[[#This Row],[الخصم ]])","v":0}]
["احمد حسن حسن حبيب",{"$f":"SUM(Salim!C30:AF30)","v":0},{"$f":"Table1[[#This Row],[عدد الايام ]]*65","v":0},null,null,{"$f":"Table1[[#This Row],[المرتب ]]-(Table1[[#This Row],[السلف ]]+Table1[[#This Row],[الخصم ]])","v":0}]
["احمد حسن سعد محمد مبروك",{"$f":"SUM(Salim!C31:AF31)","v":0},{"$f":"Table1[[#This Row],[عدد الايام ]]*65","v":0},null,null,{"$f":"Table1[[#This Row],[المرتب ]]-(Table1[[#This Row],[السلف ]]+Table1[[#This Row],[الخصم ]])","v":0}]
["احمد حسن طه محمد",{"$f":"SUM(Salim!C32:AF32)","v":0},{"$f":"Table1[[#This Row],[عدد الايام ]]*65","v":0},null,null,{"$f":"Table1[[#This Row],[المرتب ]]-(Table1[[#This Row],[السلف ]]+Table1[[#This Row],[الخصم ]])","v":0}]
["احمد حسنين ابراهيم",{"$f":"SUM(Salim!C33:AF33)","v":0},{"$f":"Table1[[#This Row],[عدد الايام ]]*65","v":0},null,null,{"$f":"Table1[[#This Row],[المرتب ]]-(Table1[[#This Row],[السلف ]]+Table1[[#This Row],[الخصم ]])","v":0}]
["احمد حسين مبروك حسين",{"$f":"SUM(Salim!C34:AF34)","v":0},{"$f":"Table1[[#This Row],[عدد الايام ]]*65","v":0},null,null,{"$f":"Table1[[#This Row],[المرتب ]]-(Table1[[#This Row],[السلف ]]+Table1[[#This Row],[الخصم ]])","v":0}]
["احمد خليل عثمان البربري",{"$f":"SUM(Salim!C35:AF35)","v":0},{"$f":"Table1[[#This Row],[عدد الايام ]]*65","v":0},null,null,{"$f":"Table1[[#This Row],[المرتب ]]-(Table1[[#This Row],[السلف ]]+Table1[[#This Row],[الخصم ]])","v":0}]
["احمد خميس محمود عبدالنبي",{"$f":"SUM(Salim!C36:AF36)","v":0},{"$f":"Table1[[#This Row],[عدد الايام ]]*65","v":0},null,null,{"$f":"Table1[[#This Row],[المرتب ]]-(Table1[[#This Row],[السلف ]]+Table1[[#This Row],[الخصم ]])","v":0}]
["احمد رجب مرشدي محمد علي",{"$f":"SUM(Salim!C37:AF37)","v":0},{"$f":"Table1[[#This Row],[عدد الايام ]]*65","v":0},null,null,{"$f":"Table1[[#This Row],[المرتب ]]-(Table1[[#This Row],[السلف ]]+Table1[[#This Row],[الخصم ]])","v":0}]
["احمد رشاد عيسي محمد",{"$f":"SUM(Salim!C38:AF38)","v":0},{"$f":"Table1[[#This Row],[عدد الايام ]]*65","v":0},null,null,{"$f":"Table1[[#This Row],[المرتب ]]-(Table1[[#This Row],[السلف ]]+Table1[[#This Row],[الخصم ]])","v":0}]
["احمد رضا حلمي عبدالوهاب",{"$f":"SUM(Salim!C39:AF39)","v":0},{"$f":"Table1[[#This Row],[عدد الايام ]]*65","v":0},null,null,{"$f":"Table1[[#This Row],[المرتب ]]-(Table1[[#This Row],[السلف ]]+Table1[[#This Row],[الخصم ]])","v":0}]
["احمد زغلول احمد القماش",{"$f":"SUM(Salim!C40:AF40)","v":0},{"$f":"Table1[[#This Row],[عدد الايام ]]*65","v":0},null,null,{"$f":"Table1[[#This Row],[المرتب ]]-(Table1[[#This Row],[السلف ]]+Table1[[#This Row],[الخصم ]])","v":0}]
["احمد سامي السيد احمد",{"$f":"SUM(Salim!C41:AF41)","v":0},{"$f":"Table1[[#This Row],[عدد الايام ]]*65","v":0},null,null,{"$f":"Table1[[#This Row],[المرتب ]]-(Table1[[#This Row],[السلف ]]+Table1[[#This Row],[الخصم ]])","v":0}]
["احمد سلامه رمضان",{"$f":"SUM(Salim!C42:AF42)","v":0},{"$f":"Table1[[#This Row],[عدد الايام ]]*65","v":0},null,null,{"$f":"Table1[[#This Row],[المرتب ]]-(Table1[[#This Row],[السلف ]]+Table1[[#This Row],[الخصم ]])","v":0}]
["احمد صلاح محمود علي ",{"$f":"SUM(Salim!C43:AF43)","v":0},{"$f":"Table1[[#This Row],[عدد الايام ]]*65","v":0},null,null,{"$f":"Table1[[#This Row],[المرتب ]]-(Table1[[#This Row],[السلف ]]+Table1[[#This Row],[الخصم ]])","v":0}]
["احمد عادل فتحي محمد",{"$f":"SUM(Salim!C44:AF44)","v":0},{"$f":"Table1[[#This Row],[عدد الايام ]]*65","v":0},null,null,{"$f":"Table1[[#This Row],[المرتب ]]-(Table1[[#This Row],[السلف ]]+Table1[[#This Row],[الخصم ]])","v":0}]
["احمد عبدالباسط محمد الطباخ",{"$f":"SUM(Salim!C45:AF45)","v":0},{"$f":"Table1[[#This Row],[عدد الايام ]]*65","v":0},null,null,{"$f":"Table1[[#This Row],[المرتب ]]-(Table1[[#This Row],[السلف ]]+Table1[[#This Row],[الخصم ]])","v":0}]
["احمد عبدالتواب احمد سالمان",{"$f":"SUM(Salim!C46:AF46)","v":0},{"$f":"Table1[[#This Row],[عدد الايام ]]*65","v":0},null,null,{"$f":"Table1[[#This Row],[المرتب ]]-(Table1[[#This Row],[السلف ]]+Table1[[#This Row],[الخصم ]])","v":0}]
["احمد عبدالحميد حسن",{"$f":"SUM(Salim!C47:AF47)","v":0},{"$f":"Table1[[#This Row],[عدد الايام ]]*65","v":0},null,null,{"$f":"Table1[[#This Row],[المرتب ]]-(Table1[[#This Row],[السلف ]]+Table1[[#This Row],[الخصم ]])","v":0}]
["احمد عبدالحميد عبدالمنصف",{"$f":"SUM(Salim!C48:AF48)","v":0},{"$f":"Table1[[#This Row],[عدد الايام ]]*65","v":0},null,null,{"$f":"Table1[[#This Row],[المرتب ]]-(Table1[[#This Row],[السلف ]]+Table1[[#This Row],[الخصم ]])","v":0}]
["احمد عبدالرحمن حسن",{"$f":"SUM(Salim!C49:AF49)","v":0},{"$f":"Table1[[#This Row],[عدد الايام ]]*65","v":0},null,null,{"$f":"Table1[[#This Row],[المرتب ]]-(Table1[[#This Row],[السلف ]]+Table1[[#This Row],[الخصم ]])","v":0}]
["احمد عبدالعزيز عبدالمقصود",{"$f":"SUM(Salim!C50:AF50)","v":0},{"$f":"Table1[[#This Row],[عدد الايام ]]*65","v":0},null,null,{"$f":"Table1[[#This Row],[المرتب ]]-(Table1[[#This Row],[السلف ]]+Table1[[#This Row],[الخصم ]])","v":0}]
["احمد عبدالله كامل عبدالعزيز",{"$f":"SUM(Salim!C51:AF51)","v":0},{"$f":"Table1[[#This Row],[عدد الايام ]]*65","v":0},null,null,{"$f":"Table1[[#This Row],[المرتب ]]-(Table1[[#This Row],[السلف ]]+Table1[[#This Row],[الخصم ]])","v":0}]
["احمد عبدالمولي محمد عبدالغفار",{"$f":"SUM(Salim!C52:AF52)","v":0},{"$f":"Table1[[#This Row],[عدد الايام ]]*65","v":0},null,null,{"$f":"Table1[[#This Row],[المرتب ]]-(Table1[[#This Row],[السلف ]]+Table1[[#This Row],[الخصم ]])","v":0}]
["احمد فتحي ابراهيم سلامه",{"$f":"SUM(Salim!C53:AF53)","v":0},{"$f":"Table1[[#This Row],[عدد الايام ]]*65","v":0},null,null,{"$f":"Table1[[#This Row],[المرتب ]]-(Table1[[#This Row],[السلف ]]+Table1[[#This Row],[الخصم ]])","v":0}]
["احمد فهمي علاء عبدالسلام",{"$f":"SUM(Salim!C54:AF54)","v":0},{"$f":"Table1[[#This Row],[عدد الايام ]]*65","v":0},null,null,{"$f":"Table1[[#This Row],[المرتب ]]-(Table1[[#This Row],[السلف ]]+Table1[[#This Row],[الخصم ]])","v":0}]
["احمد فهمي علي سلام",{"$f":"SUM(Salim!C55:AF55)","v":0},{"$f":"Table1[[#This Row],[عدد الايام ]]*65","v":0},null,null,{"$f":"Table1[[#This Row],[المرتب ]]-(Table1[[#This Row],[السلف ]]+Table1[[#This Row],[الخصم ]])","v":0}]
["احمد مجدي احمد الشرقاوي",{"$f":"SUM(Salim!C56:AF56)","v":0},{"$f":"Table1[[#This Row],[عدد الايام ]]*65","v":0},null,null,{"$f":"Table1[[#This Row],[المرتب ]]-(Table1[[#This Row],[السلف ]]+Table1[[#This Row],[الخصم ]])","v":0}]
["احمد محسن سعد محمد مبروك",{"$f":"SUM(Salim!C57:AF57)","v":0},{"$f":"Table1[[#This Row],[عدد الايام ]]*65","v":0},null,null,{"$f":"Table1[[#This Row],[المرتب ]]-(Table1[[#This Row],[السلف ]]+Table1[[#This Row],[الخصم ]])","v":0}]
["احمد محمد احمد حسن",{"$f":"SUM(Salim!C58:AF58)","v":0},{"$f":"Table1[[#This Row],[عدد الايام ]]*65","v":0},null,null,{"$f":"Table1[[#This Row],[المرتب ]]-(Table1[[#This Row],[السلف ]]+Table1[[#This Row],[الخصم ]])","v":0}]
["احمد محمد جاد الضي",{"$f":"SUM(Salim!C59:AF59)","v":0},{"$f":"Table1[[#This Row],[عدد الايام ]]*65","v":0},null,null,{"$f":"Table1[[#This Row],[المرتب ]]-(Table1[[#This Row],[السلف ]]+Table1[[#This Row],[الخصم ]])","v":0}]
["احمد محمد جمعه علي موسي",{"$f":"SUM(Salim!C60:AF60)","v":0},{"$f":"Table1[[#This Row],[عدد الايام ]]*65","v":0},null,null,{"$f":"Table1[[#This Row],[المرتب ]]-(Table1[[#This Row],[السلف ]]+Table1[[#This Row],[الخصم ]])","v":0}]
["احمد محمد حمد عبدالسيد",{"$f":"SUM(Salim!C61:AF61)","v":0},{"$f":"Table1[[#This Row],[عدد الايام ]]*65","v":0},null,null,{"$f":"Table1[[#This Row],[المرتب ]]-(Table1[[#This Row],[السلف ]]+Table1[[#This Row],[الخصم ]])","v":0}]
["احمد محمد عبدالعزيز زنون",{"$f":"SUM(Salim!C62:AF62)","v":0},{"$f":"Table1[[#This Row],[عدد الايام ]]*65","v":0},null,null,{"$f":"Table1[[#This Row],[المرتب ]]-(Table1[[#This Row],[السلف ]]+Table1[[#This Row],[الخصم ]])","v":0}]
["احمد محمد عبدالفتاح اسماعيل",{"$f":"SUM(Salim!C63:AF63)","v":0},{"$f":"Table1[[#This Row],[عدد الايام ]]*65","v":0},null,null,{"$f":"Table1[[#This Row],[المرتب ]]-(Table1[[#This Row],[السلف ]]+Table1[[#This Row],[الخصم ]])","v":0}]
["احمد محمد عبدالله سيد احمد",{"$f":"SUM(Salim!C64:AF64)","v":0},{"$f":"Table1[[#This Row],[عدد الايام ]]*65","v":0},null,null,{"$f":"Table1[[#This Row],[المرتب ]]-(Table1[[#This Row],[السلف ]]+Table1[[#This Row],[الخصم ]])","v":0}]
["احمد محمد عبدالله محمد",{"$f":"SUM(Salim!C65:AF65)","v":0},{"$f":"Table1[[#This Row],[عدد الايام ]]*65","v":0},null,null,{"$f":"Table1[[#This Row],[المرتب ]]-(Table1[[#This Row],[السلف ]]+Table1[[#This Row],[الخصم ]])","v":0}]
["احمد محمد عبدالمقصود",{"$f":"SUM(Salim!C66:AF66)","v":0},{"$f":"Table1[[#This Row],[عدد الايام ]]*65","v":0},null,null,{"$f":"Table1[[#This Row],[المرتب ]]-(Table1[[#This Row],[السلف ]]+Table1[[#This Row],[الخصم ]])","v":0}]
["احمد محمد عبدالمنعم عثمان  الجندي",{"$f":"SUM(Salim!C67:AF67)","v":0},{"$f":"Table1[[#This Row],[عدد الايام ]]*65","v":0},null,null,{"$f":"Table1[[#This Row],[المرتب ]]-(Table1[[#This Row],[السلف ]]+Table1[[#This Row],[الخصم ]])","v":0}]
["احمد محمد علي محمد علي",{"$f":"SUM(Salim!C68:AF68)","v":0},{"$f":"Table1[[#This Row],[عدد الايام ]]*65","v":0},null,null,{"$f":"Table1[[#This Row],[المرتب ]]-(Table1[[#This Row],[السلف ]]+Table1[[#This Row],[الخصم ]])","v":0}]
["احمد محمد محمد زيدان",{"$f":"SUM(Salim!C69:AF69)","v":0},{"$f":"Table1[[#This Row],[عدد الايام ]]*65","v":0},null,null,{"$f":"Table1[[#This Row],[المرتب ]]-(Table1[[#This Row],[السلف ]]+Table1[[#This Row],[الخصم ]])","v":0}]
["احمد محمد محمد عبدالسيد",{"$f":"SUM(Salim!C70:AF70)","v":0},{"$f":"Table1[[#This Row],[عدد الايام ]]*65","v":0},null,null,{"$f":"Table1[[#This Row],[المرتب ]]-(Table1[[#This Row],[السلف ]]+Table1[[#This Row],[الخصم ]])","v":0}]
["احمد محمود احمد حبيب",{"$f":"SUM(Salim!C71:AF71)","v":0},{"$f":"Table1[[#This Row],[عدد الايام ]]*65","v":0},null,null,{"$f":"Table1[[#This Row],[المرتب ]]-(Table1[[#This Row],[السلف ]]+Table1[[#This Row],[الخصم ]])","v":0}]
["احمد محمود عبدالغفار",{"$f":"SUM(Salim!C72:AF72)","v":0},{"$f":"Table1[[#This Row],[عدد الايام ]]*65","v":0},null,null,{"$f":"Table1[[#This Row],[المرتب ]]-(Table1[[#This Row],[السلف ]]+Table1[[#This Row],[الخصم ]])","v":0}]
["احمد محمود محمد حبيش",{"$f":"SUM(Salim!C73:AF73)","v":0},{"$f":"Table1[[#This Row],[عدد الايام ]]*65","v":0},null,null,{"$f":"Table1[[#This Row],[المرتب ]]-(Table1[[#This Row],[السلف ]]+Table1[[#This Row],[الخصم ]])","v":0}]
["احمد محمود محمد حسين",{"$f":"SUM(Salim!C74:AF74)","v":0},{"$f":"Table1[[#This Row],[عدد الايام ]]*65","v":0},null,null,{"$f":"Table1[[#This Row],[المرتب ]]-(Table1[[#This Row],[السلف ]]+Table1[[#This Row],[الخصم ]])","v":0}]
["احمد محمود مصطفي علي",{"$f":"SUM(Salim!C75:AF75)","v":0},{"$f":"Table1[[#This Row],[عدد الايام ]]*65","v":0},null,null,{"$f":"Table1[[#This Row],[المرتب ]]-(Table1[[#This Row],[السلف ]]+Table1[[#This Row],[الخصم ]])","v":0}]
["احمد مرزوق عبدالحفيظ امين",{"$f":"SUM(Salim!C76:AF76)","v":0},{"$f":"Table1[[#This Row],[عدد الايام ]]*65","v":0},null,null,{"$f":"Table1[[#This Row],[المرتب ]]-(Table1[[#This Row],[السلف ]]+Table1[[#This Row],[الخصم ]])","v":0}]
["احمد منير محتمد سعد",{"$f":"SUM(Salim!C77:AF77)","v":0},{"$f":"Table1[[#This Row],[عدد الايام ]]*65","v":0},null,null,{"$f":"Table1[[#This Row],[المرتب ]]-(Table1[[#This Row],[السلف ]]+Table1[[#This Row],[الخصم ]])","v":0}]
["ادم رمضان عوض محمد",{"$f":"SUM(Salim!C78:AF78)","v":0},{"$f":"Table1[[#This Row],[عدد الايام ]]*65","v":0},null,null,{"$f":"Table1[[#This Row],[المرتب ]]-(Table1[[#This Row],[السلف ]]+Table1[[#This Row],[الخصم ]])","v":0}]
["ادهم رمضان عوض محمد",{"$f":"SUM(Salim!C79:AF79)","v":0},{"$f":"Table1[[#This Row],[عدد الايام ]]*65","v":0},null,null,{"$f":"Table1[[#This Row],[المرتب ]]-(Table1[[#This Row],[السلف ]]+Table1[[#This Row],[الخصم ]])","v":0}]
["اسامه جمعه عبدالعظيم",{"$f":"SUM(Salim!C80:AF80)","v":0},{"$f":"Table1[[#This Row],[عدد الايام ]]*65","v":0},null,null,{"$f":"Table1[[#This Row],[المرتب ]]-(Table1[[#This Row],[السلف ]]+Table1[[#This Row],[الخصم ]])","v":0}]
["اسامه عبدالله محمود عبدالله",{"$f":"SUM(Salim!C81:AF81)","v":0},{"$f":"Table1[[#This Row],[عدد الايام ]]*65","v":0},null,null,{"$f":"Table1[[#This Row],[المرتب ]]-(Table1[[#This Row],[السلف ]]+Table1[[#This Row],[الخصم ]])","v":0}]
["اسامه محمد عبدالمنعم الغريب",{"$f":"SUM(Salim!C82:AF82)","v":0},{"$f":"Table1[[#This Row],[عدد الايام ]]*65","v":0},null,null,{"$f":"Table1[[#This Row],[المرتب ]]-(Table1[[#This Row],[السلف ]]+Table1[[#This Row],[الخصم ]])","v":0}]
["اسلام احمد رجب عيد",{"$f":"SUM(Salim!C83:AF83)","v":0},{"$f":"Table1[[#This Row],[عدد الايام ]]*65","v":0},null,null,{"$f":"Table1[[#This Row],[المرتب ]]-(Table1[[#This Row],[السلف ]]+Table1[[#This Row],[الخصم ]])","v":0}]
["اسلام طارق عبدالفتاح",{"$f":"SUM(Salim!C84:AF84)","v":0},{"$f":"Table1[[#This Row],[عدد الايام ]]*65","v":0},null,null,{"$f":"Table1[[#This Row],[المرتب ]]-(Table1[[#This Row],[السلف ]]+Table1[[#This Row],[الخصم ]])","v":0}]
["اسلام محمد عبدالرحيم",{"$f":"SUM(Salim!C85:AF85)","v":0},{"$f":"Table1[[#This Row],[عدد الايام ]]*65","v":0},null,null,{"$f":"Table1[[#This Row],[المرتب ]]-(Table1[[#This Row],[السلف ]]+Table1[[#This Row],[الخصم ]])","v":0}]
["اسلام محمود ابراهيم حسن",{"$f":"SUM(Salim!C86:AF86)","v":0},{"$f":"Table1[[#This Row],[عدد الايام ]]*65","v":0},null,null,{"$f":"Table1[[#This Row],[المرتب ]]-(Table1[[#This Row],[السلف ]]+Table1[[#This Row],[الخصم ]])","v":0}]
["اسلام مسعد عبدالعزيزسليمان",{"$f":"SUM(Salim!C87:AF87)","v":0},{"$f":"Table1[[#This Row],[عدد الايام ]]*65","v":0},null,null,{"$f":"Table1[[#This Row],[المرتب ]]-(Table1[[#This Row],[السلف ]]+Table1[[#This Row],[الخصم ]])","v":0}]
["اسلام مصطفي علي ابوالحديد",{"$f":"SUM(Salim!C88:AF88)","v":0},{"$f":"Table1[[#This Row],[عدد الايام ]]*65","v":0},null,null,{"$f":"Table1[[#This Row],[المرتب ]]-(Table1[[#This Row],[السلف ]]+Table1[[#This Row],[الخصم ]])","v":0}]
["اسلام مصطفي محمد عبدالعزيز",{"$f":"SUM(Salim!C89:AF89)","v":0},{"$f":"Table1[[#This Row],[عدد الايام ]]*65","v":0},null,null,{"$f":"Table1[[#This Row],[المرتب ]]-(Table1[[#This Row],[السلف ]]+Table1[[#This Row],[الخصم ]])","v":0}]
["اسماعيل احمد محمود احمد",{"$f":"SUM(Salim!C90:AF90)","v":0},{"$f":"Table1[[#This Row],[عدد الايام ]]*65","v":0},null,null,{"$f":"Table1[[#This Row],[المرتب ]]-(Table1[[#This Row],[السلف ]]+Table1[[#This Row],[الخصم ]])","v":0}]
["اسماعيل محمد اسماعيل الطنطي",{"$f":"SUM(Salim!C91:AF91)","v":0},{"$f":"Table1[[#This Row],[عدد الايام ]]*65","v":0},null,null,{"$f":"Table1[[#This Row],[المرتب ]]-(Table1[[#This Row],[السلف ]]+Table1[[#This Row],[الخصم ]])","v":0}]
["اسماعيل مشحوت محمد عيد",{"$f":"SUM(Salim!C92:AF92)","v":0},{"$f":"Table1[[#This Row],[عدد الايام ]]*65","v":0},null,null,{"$f":"Table1[[#This Row],[المرتب ]]-(Table1[[#This Row],[السلف ]]+Table1[[#This Row],[الخصم ]])","v":0}]
["اشرف صادق عطيه",{"$f":"SUM(Salim!C93:AF93)","v":0},{"$f":"Table1[[#This Row],[عدد الايام ]]*65","v":0},null,null,{"$f":"Table1[[#This Row],[المرتب ]]-(Table1[[#This Row],[السلف ]]+Table1[[#This Row],[الخصم ]])","v":0}]
["اكرامي محمد مجاور حموده",{"$f":"SUM(Salim!C94:AF94)","v":0},{"$f":"Table1[[#This Row],[عدد الايام ]]*65","v":0},null,null,{"$f":"Table1[[#This Row],[المرتب ]]-(Table1[[#This Row],[السلف ]]+Table1[[#This Row],[الخصم ]])","v":0}]
["اكرامي محمد محمد موسي",{"$f":"SUM(Salim!C95:AF95)","v":0},{"$f":"Table1[[#This Row],[عدد الايام ]]*65","v":0},null,null,{"$f":"Table1[[#This Row],[المرتب ]]-(Table1[[#This Row],[السلف ]]+Table1[[#This Row],[الخصم ]])","v":0}]
["السيد عبدالله عمر مصباح",{"$f":"SUM(Salim!C96:AF96)","v":0},{"$f":"Table1[[#This Row],[عدد الايام ]]*65","v":0},null,null,{"$f":"Table1[[#This Row],[المرتب ]]-(Table1[[#This Row],[السلف ]]+Table1[[#This Row],[الخصم ]])","v":0}]
["السيد مبارك السيد علي الكسبي",{"$f":"SUM(Salim!C97:AF97)","v":0},{"$f":"Table1[[#This Row],[عدد الايام ]]*65","v":0},null,null,{"$f":"Table1[[#This Row],[المرتب ]]-(Table1[[#This Row],[السلف ]]+Table1[[#This Row],[الخصم ]])","v":0}]
["السيد محمود احمد عبداللطيف",{"$f":"SUM(Salim!C98:AF98)","v":0},{"$f":"Table1[[#This Row],[عدد الايام ]]*65","v":0},null,null,{"$f":"Table1[[#This Row],[المرتب ]]-(Table1[[#This Row],[السلف ]]+Table1[[#This Row],[الخصم ]])","v":0}]
["السيد مسعود السيد محمد",{"$f":"SUM(Salim!C99:AF99)","v":0},{"$f":"Table1[[#This Row],[عدد الايام ]]*65","v":0},null,null,{"$f":"Table1[[#This Row],[المرتب ]]-(Table1[[#This Row],[السلف ]]+Table1[[#This Row],[الخصم ]])","v":0}]
["الشحات حميده مبروك اسماعيل",{"$f":"SUM(Salim!C100:AF100)","v":0},{"$f":"Table1[[#This Row],[عدد الايام ]]*65","v":0},null,null,{"$f":"Table1[[#This Row],[المرتب ]]-(Table1[[#This Row],[السلف ]]+Table1[[#This Row],[الخصم ]])","v":0}]
["انس سعد مصطفي سلامه",{"$f":"SUM(Salim!C101:AF101)","v":0},{"$f":"Table1[[#This Row],[عدد الايام ]]*65","v":0},null,null,{"$f":"Table1[[#This Row],[المرتب ]]-(Table1[[#This Row],[السلف ]]+Table1[[#This Row],[الخصم ]])","v":0}]
["انور عبدالسلام احمد العجوز",{"$f":"SUM(Salim!C102:AF102)","v":0},{"$f":"Table1[[#This Row],[عدد الايام ]]*65","v":0},null,null,{"$f":"Table1[[#This Row],[المرتب ]]-(Table1[[#This Row],[السلف ]]+Table1[[#This Row],[الخصم ]])","v":0}]
["ايمن السيد محمد ابوزيد",{"$f":"SUM(Salim!C103:AF103)","v":0},{"$f":"Table1[[#This Row],[عدد الايام ]]*65","v":0},null,null,{"$f":"Table1[[#This Row],[المرتب ]]-(Table1[[#This Row],[السلف ]]+Table1[[#This Row],[الخصم ]])","v":0}]
["ايمن جمال السيد السيد مشحوت",{"$f":"SUM(Salim!C104:AF104)","v":0},{"$f":"Table1[[#This Row],[عدد الايام ]]*65","v":0},null,null,{"$f":"Table1[[#This Row],[المرتب ]]-(Table1[[#This Row],[السلف ]]+Table1[[#This Row],[الخصم ]])","v":0}]
["ايمن عبدالعزيز محمد زايد",{"$f":"SUM(Salim!C105:AF105)","v":0},{"$f":"Table1[[#This Row],[عدد الايام ]]*65","v":0},null,null,{"$f":"Table1[[#This Row],[المرتب ]]-(Table1[[#This Row],[السلف ]]+Table1[[#This Row],[الخصم ]])","v":0}]
["ايمن محمود هاشم محمود",{"$f":"SUM(Salim!C106:AF106)","v":0},{"$f":"Table1[[#This Row],[عدد الايام ]]*65","v":0},null,null,{"$f":"Table1[[#This Row],[المرتب ]]-(Table1[[#This Row],[السلف ]]+Table1[[#This Row],[الخصم ]])","v":0}]
["ايهاب حسن عبدالنطلب غنيم",{"$f":"SUM(Salim!C107:AF107)","v":0},{"$f":"Table1[[#This Row],[عدد الايام ]]*65","v":0},null,null,{"$f":"Table1[[#This Row],[المرتب ]]-(Table1[[#This Row],[السلف ]]+Table1[[#This Row],[الخصم ]])","v":0}]
["ايهاب فتحي مصطفي",{"$f":"SUM(Salim!C108:AF108)","v":0},{"$f":"Table1[[#This Row],[عدد الايام ]]*65","v":0},null,null,{"$f":"Table1[[#This Row],[المرتب ]]-(Table1[[#This Row],[السلف ]]+Table1[[#This Row],[الخصم ]])","v":0}]
["باسم فاروق محمود همام",{"$f":"SUM(Salim!C109:AF109)","v":0},{"$f":"Table1[[#This Row],[عدد الايام ]]*65","v":0},null,null,{"$f":"Table1[[#This Row],[المرتب ]]-(Table1[[#This Row],[السلف ]]+Table1[[#This Row],[الخصم ]])","v":0}]
["باسم نصر ابراهيم اسماعيل",{"$f":"SUM(Salim!C110:AF110)","v":0},{"$f":"Table1[[#This Row],[عدد الايام ]]*65","v":0},null,null,{"$f":"Table1[[#This Row],[المرتب ]]-(Table1[[#This Row],[السلف ]]+Table1[[#This Row],[الخصم ]])","v":0}]
["بدري عبدالله بدري عبدالله",{"$f":"SUM(Salim!C111:AF111)","v":0},{"$f":"Table1[[#This Row],[عدد الايام ]]*65","v":0},null,null,{"$f":"Table1[[#This Row],[المرتب ]]-(Table1[[#This Row],[السلف ]]+Table1[[#This Row],[الخصم ]])","v":0}]
["بلال جمعه عمر امين",{"$f":"SUM(Salim!C112:AF112)","v":0},{"$f":"Table1[[#This Row],[عدد الايام ]]*65","v":0},null,null,{"$f":"Table1[[#This Row],[المرتب ]]-(Table1[[#This Row],[السلف ]]+Table1[[#This Row],[الخصم ]])","v":0}]
["بلال رزق عبدالعزيز",{"$f":"SUM(Salim!C113:AF113)","v":0},{"$f":"Table1[[#This Row],[عدد الايام ]]*65","v":0},null,null,{"$f":"Table1[[#This Row],[المرتب ]]-(Table1[[#This Row],[السلف ]]+Table1[[#This Row],[الخصم ]])","v":0}]
["بلال عبدالعزيز احمد",{"$f":"SUM(Salim!C114:AF114)","v":0},{"$f":"Table1[[#This Row],[عدد الايام ]]*65","v":0},null,null,{"$f":"Table1[[#This Row],[المرتب ]]-(Table1[[#This Row],[السلف ]]+Table1[[#This Row],[الخصم ]])","v":0}]
["بلال عطيه على احمد",{"$f":"SUM(Salim!C115:AF115)","v":0},{"$f":"Table1[[#This Row],[عدد الايام ]]*65","v":0},null,null,{"$f":"Table1[[#This Row],[المرتب ]]-(Table1[[#This Row],[السلف ]]+Table1[[#This Row],[الخصم ]])","v":0}]
["بلال محمد عبدالتواب",{"$f":"SUM(Salim!C116:AF116)","v":0},{"$f":"Table1[[#This Row],[عدد الايام ]]*65","v":0},null,null,{"$f":"Table1[[#This Row],[المرتب ]]-(Table1[[#This Row],[السلف ]]+Table1[[#This Row],[الخصم ]])","v":0}]
["بلال محمد عبدالعزيز محمد علي",{"$f":"SUM(Salim!C117:AF117)","v":0},{"$f":"Table1[[#This Row],[عدد الايام ]]*65","v":0},null,null,{"$f":"Table1[[#This Row],[المرتب ]]-(Table1[[#This Row],[السلف ]]+Table1[[#This Row],[الخصم ]])","v":0}]
["بيشوي رضا جرجس سعد",{"$f":"SUM(Salim!C118:AF118)","v":0},{"$f":"Table1[[#This Row],[عدد الايام ]]*65","v":0},null,null,{"$f":"Table1[[#This Row],[المرتب ]]-(Table1[[#This Row],[السلف ]]+Table1[[#This Row],[الخصم ]])","v":0}]
["جابر صبري محمود اسماعيل",{"$f":"SUM(Salim!C119:AF119)","v":0},{"$f":"Table1[[#This Row],[عدد الايام ]]*65","v":0},null,null,{"$f":"Table1[[#This Row],[المرتب ]]-(Table1[[#This Row],[السلف ]]+Table1[[#This Row],[الخصم ]])","v":0}]
["جاد رزق عبدالعزيز احمد شعيشع",{"$f":"SUM(Salim!C120:AF120)","v":0},{"$f":"Table1[[#This Row],[عدد الايام ]]*65","v":0},null,null,{"$f":"Table1[[#This Row],[المرتب ]]-(Table1[[#This Row],[السلف ]]+Table1[[#This Row],[الخصم ]])","v":0}]
["جرجس موريس وهيب",{"$f":"SUM(Salim!C121:AF121)","v":0},{"$f":"Table1[[#This Row],[عدد الايام ]]*65","v":0},null,null,{"$f":"Table1[[#This Row],[المرتب ]]-(Table1[[#This Row],[السلف ]]+Table1[[#This Row],[الخصم ]])","v":0}]
["جمعه حمدي زكي محمد",{"$f":"SUM(Salim!C122:AF122)","v":0},{"$f":"Table1[[#This Row],[عدد الايام ]]*65","v":0},null,null,{"$f":"Table1[[#This Row],[المرتب ]]-(Table1[[#This Row],[السلف ]]+Table1[[#This Row],[الخصم ]])","v":0}]
["حازم عبدالجليل احمد",{"$f":"SUM(Salim!C123:AF123)","v":0},{"$f":"Table1[[#This Row],[عدد الايام ]]*65","v":0},null,null,{"$f":"Table1[[#This Row],[المرتب ]]-(Table1[[#This Row],[السلف ]]+Table1[[#This Row],[الخصم ]])","v":0}]
["حسام عصام فتحي محمد",{"$f":"SUM(Salim!C124:AF124)","v":0},{"$f":"Table1[[#This Row],[عدد الايام ]]*65","v":0},null,null,{"$f":"Table1[[#This Row],[المرتب ]]-(Table1[[#This Row],[السلف ]]+Table1[[#This Row],[الخصم ]])","v":0}]
["حسام فتحي احمد الشامي",{"$f":"SUM(Salim!C125:AF125)","v":0},{"$f":"Table1[[#This Row],[عدد الايام ]]*65","v":0},null,null,{"$f":"Table1[[#This Row],[المرتب ]]-(Table1[[#This Row],[السلف ]]+Table1[[#This Row],[الخصم ]])","v":0}]
["حسام كريم ابراهيم السيد",{"$f":"SUM(Salim!C126:AF126)","v":0},{"$f":"Table1[[#This Row],[عدد الايام ]]*65","v":0},null,null,{"$f":"Table1[[#This Row],[المرتب ]]-(Table1[[#This Row],[السلف ]]+Table1[[#This Row],[الخصم ]])","v":0}]
["حسام محمد محمود يوسف",{"$f":"SUM(Salim!C127:AF127)","v":0},{"$f":"Table1[[#This Row],[عدد الايام ]]*65","v":0},null,null,{"$f":"Table1[[#This Row],[المرتب ]]-(Table1[[#This Row],[السلف ]]+Table1[[#This Row],[الخصم ]])","v":0}]
["حسام نبيل محمود ",{"$f":"SUM(Salim!C128:AF128)","v":0},{"$f":"Table1[[#This Row],[عدد الايام ]]*65","v":0},null,null,{"$f":"Table1[[#This Row],[المرتب ]]-(Table1[[#This Row],[السلف ]]+Table1[[#This Row],[الخصم ]])","v":0}]
["حسب النبي سعيد فتحي",{"$f":"SUM(Salim!C129:AF129)","v":0},{"$f":"Table1[[#This Row],[عدد الايام ]]*65","v":0},null,null,{"$f":"Table1[[#This Row],[المرتب ]]-(Table1[[#This Row],[السلف ]]+Table1[[#This Row],[الخصم ]])","v":0}]
["حسن الحسيني مسعد",{"$f":"SUM(Salim!C130:AF130)","v":0},{"$f":"Table1[[#This Row],[عدد الايام ]]*65","v":0},null,null,{"$f":"Table1[[#This Row],[المرتب ]]-(Table1[[#This Row],[السلف ]]+Table1[[#This Row],[الخصم ]])","v":0}]
["حسن رمضان السيد سليم",{"$f":"SUM(Salim!C131:AF131)","v":0},{"$f":"Table1[[#This Row],[عدد الايام ]]*65","v":0},null,null,{"$f":"Table1[[#This Row],[المرتب ]]-(Table1[[#This Row],[السلف ]]+Table1[[#This Row],[الخصم ]])","v":0}]
["حسن سامي سعيد",{"$f":"SUM(Salim!C132:AF132)","v":0},{"$f":"Table1[[#This Row],[عدد الايام ]]*65","v":0},null,null,{"$f":"Table1[[#This Row],[المرتب ]]-(Table1[[#This Row],[السلف ]]+Table1[[#This Row],[الخصم ]])","v":0}]
["حسن سامي سعيد الكر",{"$f":"SUM(Salim!C133:AF133)","v":0},{"$f":"Table1[[#This Row],[عدد الايام ]]*65","v":0},null,null,{"$f":"Table1[[#This Row],[المرتب ]]-(Table1[[#This Row],[السلف ]]+Table1[[#This Row],[الخصم ]])","v":0}]
["حسن عبدالغفار محمد عبدالعليم",{"$f":"SUM(Salim!C134:AF134)","v":0},{"$f":"Table1[[#This Row],[عدد الايام ]]*65","v":0},null,null,{"$f":"Table1[[#This Row],[المرتب ]]-(Table1[[#This Row],[السلف ]]+Table1[[#This Row],[الخصم ]])","v":0}]
["حسني عزالدين عبدالفضيل",{"$f":"SUM(Salim!C135:AF135)","v":0},{"$f":"Table1[[#This Row],[عدد الايام ]]*65","v":0},null,null,{"$f":"Table1[[#This Row],[المرتب ]]-(Table1[[#This Row],[السلف ]]+Table1[[#This Row],[الخصم ]])","v":0}]
["حسين عبدالغنى السيد محمد",{"$f":"SUM(Salim!C136:AF136)","v":0},{"$f":"Table1[[#This Row],[عدد الايام ]]*65","v":0},null,null,{"$f":"Table1[[#This Row],[المرتب ]]-(Table1[[#This Row],[السلف ]]+Table1[[#This Row],[الخصم ]])","v":0}]
["حماده رجب عبدالحفيظ",{"$f":"SUM(Salim!C137:AF137)","v":0},{"$f":"Table1[[#This Row],[عدد الايام ]]*65","v":0},null,null,{"$f":"Table1[[#This Row],[المرتب ]]-(Table1[[#This Row],[السلف ]]+Table1[[#This Row],[الخصم ]])","v":0}]
["حماده مرعي سعد محمد",{"$f":"SUM(Salim!C138:AF138)","v":0},{"$f":"Table1[[#This Row],[عدد الايام ]]*65","v":0},null,null,{"$f":"Table1[[#This Row],[المرتب ]]-(Table1[[#This Row],[السلف ]]+Table1[[#This Row],[الخصم ]])","v":0}]
["خالد عوض السيد عبدالرحمن",{"$f":"SUM(Salim!C139:AF139)","v":0},{"$f":"Table1[[#This Row],[عدد الايام ]]*65","v":0},null,null,{"$f":"Table1[[#This Row],[المرتب ]]-(Table1[[#This Row],[السلف ]]+Table1[[#This Row],[الخصم ]])","v":0}]
["خالد محمود محمد عبداللطيف",{"$f":"SUM(Salim!C140:AF140)","v":0},{"$f":"Table1[[#This Row],[عدد الايام ]]*65","v":0},null,null,{"$f":"Table1[[#This Row],[المرتب ]]-(Table1[[#This Row],[السلف ]]+Table1[[#This Row],[الخصم ]])","v":0}]
["خيري احمد عبدالغني هنداوي",{"$f":"SUM(Salim!C141:AF141)","v":0},{"$f":"Table1[[#This Row],[عدد الايام ]]*65","v":0},null,null,{"$f":"Table1[[#This Row],[المرتب ]]-(Table1[[#This Row],[السلف ]]+Table1[[#This Row],[الخصم ]])","v":0}]
["درويش الجوهري ابراهيم البري",{"$f":"SUM(Salim!C142:AF142)","v":0},{"$f":"Table1[[#This Row],[عدد الايام ]]*65","v":0},null,null,{"$f":"Table1[[#This Row],[المرتب ]]-(Table1[[#This Row],[السلف ]]+Table1[[#This Row],[الخصم ]])","v":0}]
["درويش رافت درويش",{"$f":"SUM(Salim!C143:AF143)","v":0},{"$f":"Table1[[#This Row],[عدد الايام ]]*65","v":0},null,null,{"$f":"Table1[[#This Row],[المرتب ]]-(Table1[[#This Row],[السلف ]]+Table1[[#This Row],[الخصم ]])","v":0}]
["راجي محمد الصباحي",{"$f":"SUM(Salim!C144:AF144)","v":0},{"$f":"Table1[[#This Row],[عدد الايام ]]*65","v":0},null,null,{"$f":"Table1[[#This Row],[المرتب ]]-(Table1[[#This Row],[السلف ]]+Table1[[#This Row],[الخصم ]])","v":0}]
["راعي سيد علي بربر ",{"$f":"SUM(Salim!C145:AF145)","v":0},{"$f":"Table1[[#This Row],[عدد الايام ]]*65","v":0},null,null,{"$f":"Table1[[#This Row],[المرتب ]]-(Table1[[#This Row],[السلف ]]+Table1[[#This Row],[الخصم ]])","v":0}]
["رافت اشرف رفعت امين",{"$f":"SUM(Salim!C146:AF146)","v":0},{"$f":"Table1[[#This Row],[عدد الايام ]]*65","v":0},null,null,{"$f":"Table1[[#This Row],[المرتب ]]-(Table1[[#This Row],[السلف ]]+Table1[[#This Row],[الخصم ]])","v":0}]
["رافت كامل عبدالله  عبدالعزيز",{"$f":"SUM(Salim!C147:AF147)","v":0},{"$f":"Table1[[#This Row],[عدد الايام ]]*65","v":0},null,null,{"$f":"Table1[[#This Row],[المرتب ]]-(Table1[[#This Row],[السلف ]]+Table1[[#This Row],[الخصم ]])","v":0}]
["رزق علاء رجب نصر عيسي",{"$f":"SUM(Salim!C148:AF148)","v":0},{"$f":"Table1[[#This Row],[عدد الايام ]]*65","v":0},null,null,{"$f":"Table1[[#This Row],[المرتب ]]-(Table1[[#This Row],[السلف ]]+Table1[[#This Row],[الخصم ]])","v":0}]
["رزق محمد رزق اسماعيل",{"$f":"SUM(Salim!C149:AF149)","v":0},{"$f":"Table1[[#This Row],[عدد الايام ]]*65","v":0},null,null,{"$f":"Table1[[#This Row],[المرتب ]]-(Table1[[#This Row],[السلف ]]+Table1[[#This Row],[الخصم ]])","v":0}]
["رضا غريب صقر محمد",{"$f":"SUM(Salim!C150:AF150)","v":0},{"$f":"Table1[[#This Row],[عدد الايام ]]*65","v":0},null,null,{"$f":"Table1[[#This Row],[المرتب ]]-(Table1[[#This Row],[السلف ]]+Table1[[#This Row],[الخصم ]])","v":0}]
["رضا معوض عباس",{"$f":"SUM(Salim!C151:AF151)","v":0},{"$f":"Table1[[#This Row],[عدد الايام ]]*65","v":0},null,null,{"$f":"Table1[[#This Row],[المرتب ]]-(Table1[[#This Row],[السلف ]]+Table1[[#This Row],[الخصم ]])","v":0}]
["رضوان شحاته احمد",{"$f":"SUM(Salim!C152:AF152)","v":0},{"$f":"Table1[[#This Row],[عدد الايام ]]*65","v":0},null,null,{"$f":"Table1[[#This Row],[المرتب ]]-(Table1[[#This Row],[السلف ]]+Table1[[#This Row],[الخصم ]])","v":0}]
["رفعت اشرف رفعت امين",{"$f":"SUM(Salim!C153:AF153)","v":0},{"$f":"Table1[[#This Row],[عدد الايام ]]*65","v":0},null,null,{"$f":"Table1[[#This Row],[المرتب ]]-(Table1[[#This Row],[السلف ]]+Table1[[#This Row],[الخصم ]])","v":0}]
["زكريا عبدالفتاح عبدالحميد",{"$f":"SUM(Salim!C154:AF154)","v":0},{"$f":"Table1[[#This Row],[عدد الايام ]]*65","v":0},null,null,{"$f":"Table1[[#This Row],[المرتب ]]-(Table1[[#This Row],[السلف ]]+Table1[[#This Row],[الخصم ]])","v":0}]
["زياد سالم احمد فراج",{"$f":"SUM(Salim!C155:AF155)","v":0},{"$f":"Table1[[#This Row],[عدد الايام ]]*65","v":0},null,null,{"$f":"Table1[[#This Row],[المرتب ]]-(Table1[[#This Row],[السلف ]]+Table1[[#This Row],[الخصم ]])","v":0}]
["سامح انور طلبه عطاالله",{"$f":"SUM(Salim!C156:AF156)","v":0},{"$f":"Table1[[#This Row],[عدد الايام ]]*65","v":0},null,null,{"$f":"Table1[[#This Row],[المرتب ]]-(Table1[[#This Row],[السلف ]]+Table1[[#This Row],[الخصم ]])","v":0}]
["سامح عابدين محمد علي",{"$f":"SUM(Salim!C157:AF157)","v":0},{"$f":"Table1[[#This Row],[عدد الايام ]]*65","v":0},null,null,{"$f":"Table1[[#This Row],[المرتب ]]-(Table1[[#This Row],[السلف ]]+Table1[[#This Row],[الخصم ]])","v":0}]
["سامي صبري جبر علي",{"$f":"SUM(Salim!C158:AF158)","v":0},{"$f":"Table1[[#This Row],[عدد الايام ]]*65","v":0},null,null,{"$f":"Table1[[#This Row],[المرتب ]]-(Table1[[#This Row],[السلف ]]+Table1[[#This Row],[الخصم ]])","v":0}]
["سامي عبدالله محمد سيد احمد",{"$f":"SUM(Salim!C159:AF159)","v":0},{"$f":"Table1[[#This Row],[عدد الايام ]]*65","v":0},null,null,{"$f":"Table1[[#This Row],[المرتب ]]-(Table1[[#This Row],[السلف ]]+Table1[[#This Row],[الخصم ]])","v":0}]
["سامي محمد عبده السيسي",{"$f":"SUM(Salim!C160:AF160)","v":0},{"$f":"Table1[[#This Row],[عدد الايام ]]*65","v":0},null,null,{"$f":"Table1[[#This Row],[المرتب ]]-(Table1[[#This Row],[السلف ]]+Table1[[#This Row],[الخصم ]])","v":0}]
["سعد محمد سعد خرش",{"$f":"SUM(Salim!C161:AF161)","v":0},{"$f":"Table1[[#This Row],[عدد الايام ]]*65","v":0},null,null,{"$f":"Table1[[#This Row],[المرتب ]]-(Table1[[#This Row],[السلف ]]+Table1[[#This Row],[الخصم ]])","v":0}]
["سعودي محمد طلبه محمد",{"$f":"SUM(Salim!C162:AF162)","v":0},{"$f":"Table1[[#This Row],[عدد الايام ]]*65","v":0},null,null,{"$f":"Table1[[#This Row],[المرتب ]]-(Table1[[#This Row],[السلف ]]+Table1[[#This Row],[الخصم ]])","v":0}]
["سعودي محمد عطيه",{"$f":"SUM(Salim!C163:AF163)","v":0},{"$f":"Table1[[#This Row],[عدد الايام ]]*65","v":0},null,null,{"$f":"Table1[[#This Row],[المرتب ]]-(Table1[[#This Row],[السلف ]]+Table1[[#This Row],[الخصم ]])","v":0}]
["سعيد علي عبدالهادي ",{"$f":"SUM(Salim!C164:AF164)","v":0},{"$f":"Table1[[#This Row],[عدد الايام ]]*65","v":0},null,null,{"$f":"Table1[[#This Row],[المرتب ]]-(Table1[[#This Row],[السلف ]]+Table1[[#This Row],[الخصم ]])","v":0}]
["سليم اسماعيل بيومي سليم ",{"$f":"SUM(Salim!C165:AF165)","v":0},{"$f":"Table1[[#This Row],[عدد الايام ]]*65","v":0},null,null,{"$f":"Table1[[#This Row],[المرتب ]]-(Table1[[#This Row],[السلف ]]+Table1[[#This Row],[الخصم ]])","v":0}]
["سليم عمار رحصان عيد",{"$f":"SUM(Salim!C166:AF166)","v":0},{"$f":"Table1[[#This Row],[عدد الايام ]]*65","v":0},null,null,{"$f":"Table1[[#This Row],[المرتب ]]-(Table1[[#This Row],[السلف ]]+Table1[[#This Row],[الخصم ]])","v":0}]
["سيد فاروق فؤاد سعد",{"$f":"SUM(Salim!C167:AF167)","v":0},{"$f":"Table1[[#This Row],[عدد الايام ]]*65","v":0},null,null,{"$f":"Table1[[#This Row],[المرتب ]]-(Table1[[#This Row],[السلف ]]+Table1[[#This Row],[الخصم ]])","v":0}]
["شامل مبروك حسن محمد",{"$f":"SUM(Salim!C168:AF168)","v":0},{"$f":"Table1[[#This Row],[عدد الايام ]]*65","v":0},null,null,{"$f":"Table1[[#This Row],[المرتب ]]-(Table1[[#This Row],[السلف ]]+Table1[[#This Row],[الخصم ]])","v":0}]
["شريف احمد محمد عبدالله",{"$f":"SUM(Salim!C169:AF169)","v":0},{"$f":"Table1[[#This Row],[عدد الايام ]]*65","v":0},null,null,{"$f":"Table1[[#This Row],[المرتب ]]-(Table1[[#This Row],[السلف ]]+Table1[[#This Row],[الخصم ]])","v":0}]
["شريف عبدالعزيز علي هندي",{"$f":"SUM(Salim!C170:AF170)","v":0},{"$f":"Table1[[#This Row],[عدد الايام ]]*65","v":0},null,null,{"$f":"Table1[[#This Row],[المرتب ]]-(Table1[[#This Row],[السلف ]]+Table1[[#This Row],[الخصم ]])","v":0}]
["شريف عمر امين محمد",{"$f":"SUM(Salim!C171:AF171)","v":0},{"$f":"Table1[[#This Row],[عدد الايام ]]*65","v":0},null,null,{"$f":"Table1[[#This Row],[المرتب ]]-(Table1[[#This Row],[السلف ]]+Table1[[#This Row],[الخصم ]])","v":0}]
["شعبان الشحات المتولي الشوكي",{"$f":"SUM(Salim!C172:AF172)","v":0},{"$f":"Table1[[#This Row],[عدد الايام ]]*65","v":0},null,null,{"$f":"Table1[[#This Row],[المرتب ]]-(Table1[[#This Row],[السلف ]]+Table1[[#This Row],[الخصم ]])","v":0}]
["شعبان بلبل الشحات المتولي",{"$f":"SUM(Salim!C173:AF173)","v":0},{"$f":"Table1[[#This Row],[عدد الايام ]]*65","v":0},null,null,{"$f":"Table1[[#This Row],[المرتب ]]-(Table1[[#This Row],[السلف ]]+Table1[[#This Row],[الخصم ]])","v":0}]
["شعبان حمدي شعبان الهليس",{"$f":"SUM(Salim!C174:AF174)","v":0},{"$f":"Table1[[#This Row],[عدد الايام ]]*65","v":0},null,null,{"$f":"Table1[[#This Row],[المرتب ]]-(Table1[[#This Row],[السلف ]]+Table1[[#This Row],[الخصم ]])","v":0}]
["شعبان عبدالكريم علواني عبدالكريم",{"$f":"SUM(Salim!C175:AF175)","v":0},{"$f":"Table1[[#This Row],[عدد الايام ]]*65","v":0},null,null,{"$f":"Table1[[#This Row],[المرتب ]]-(Table1[[#This Row],[السلف ]]+Table1[[#This Row],[الخصم ]])","v":0}]
["شكر صابر ابراهيم رضوان",{"$f":"SUM(Salim!C176:AF176)","v":0},{"$f":"Table1[[#This Row],[عدد الايام ]]*65","v":0},null,null,{"$f":"Table1[[#This Row],[المرتب ]]-(Table1[[#This Row],[السلف ]]+Table1[[#This Row],[الخصم ]])","v":0}]
["شهاب ابراهيم فرج عبدالعزيز",{"$f":"SUM(Salim!C177:AF177)","v":0},{"$f":"Table1[[#This Row],[عدد الايام ]]*65","v":0},null,null,{"$f":"Table1[[#This Row],[المرتب ]]-(Table1[[#This Row],[السلف ]]+Table1[[#This Row],[الخصم ]])","v":0}]
["صابر صبري محمود اسماعيل",{"$f":"SUM(Salim!C178:AF178)","v":0},{"$f":"Table1[[#This Row],[عدد الايام ]]*65","v":0},null,null,{"$f":"Table1[[#This Row],[المرتب ]]-(Table1[[#This Row],[السلف ]]+Table1[[#This Row],[الخصم ]])","v":0}]
["صادق عيد السيد عبدالرحمن",{"$f":"SUM(Salim!C179:AF179)","v":0},{"$f":"Table1[[#This Row],[عدد الايام ]]*65","v":0},null,null,{"$f":"Table1[[#This Row],[المرتب ]]-(Table1[[#This Row],[السلف ]]+Table1[[#This Row],[الخصم ]])","v":0}]
["صبحي توفيق السيد",{"$f":"SUM(Salim!C180:AF180)","v":0},{"$f":"Table1[[#This Row],[عدد الايام ]]*65","v":0},null,null,{"$f":"Table1[[#This Row],[المرتب ]]-(Table1[[#This Row],[السلف ]]+Table1[[#This Row],[الخصم ]])","v":0}]
["ضياء محمد محمد شحاته بحيري",{"$f":"SUM(Salim!C181:AF181)","v":0},{"$f":"Table1[[#This Row],[عدد الايام ]]*65","v":0},null,null,{"$f":"Table1[[#This Row],[المرتب ]]-(Table1[[#This Row],[السلف ]]+Table1[[#This Row],[الخصم ]])","v":0}]
["طارق عبدالفتاح السعيد عبدالباقي",{"$f":"SUM(Salim!C182:AF182)","v":0},{"$f":"Table1[[#This Row],[عدد الايام ]]*65","v":0},null,null,{"$f":"Table1[[#This Row],[المرتب ]]-(Table1[[#This Row],[السلف ]]+Table1[[#This Row],[الخصم ]])","v":0}]
["طارق عرفه عنتر زراع",{"$f":"SUM(Salim!C183:AF183)","v":0},{"$f":"Table1[[#This Row],[عدد الايام ]]*65","v":0},null,null,{"$f":"Table1[[#This Row],[المرتب ]]-(Table1[[#This Row],[السلف ]]+Table1[[#This Row],[الخصم ]])","v":0}]
["طارق محمود محمود عبدالمعطي",{"$f":"SUM(Salim!C184:AF184)","v":0},{"$f":"Table1[[#This Row],[عدد الايام ]]*65","v":0},null,null,{"$f":"Table1[[#This Row],[المرتب ]]-(Table1[[#This Row],[السلف ]]+Table1[[#This Row],[الخصم ]])","v":0}]
["طه حسن حسن الهندي",{"$f":"SUM(Salim!C185:AF185)","v":0},{"$f":"Table1[[#This Row],[عدد الايام ]]*65","v":0},null,null,{"$f":"Table1[[#This Row],[المرتب ]]-(Table1[[#This Row],[السلف ]]+Table1[[#This Row],[الخصم ]])","v":0}]
["طه عيد عبدالله شحاته",{"$f":"SUM(Salim!C186:AF186)","v":0},{"$f":"Table1[[#This Row],[عدد الايام ]]*65","v":0},null,null,{"$f":"Table1[[#This Row],[المرتب ]]-(Table1[[#This Row],[السلف ]]+Table1[[#This Row],[الخصم ]])","v":0}]
["عاصم السيد عبدالرحمن الدسوقي",{"$f":"SUM(Salim!C187:AF187)","v":0},{"$f":"Table1[[#This Row],[عدد الايام ]]*65","v":0},null,null,{"$f":"Table1[[#This Row],[المرتب ]]-(Table1[[#This Row],[السلف ]]+Table1[[#This Row],[الخصم ]])","v":0}]
["عاطف ابراهيم حليم مشحوت",{"$f":"SUM(Salim!C188:AF188)","v":0},{"$f":"Table1[[#This Row],[عدد الايام ]]*65","v":0},null,null,{"$f":"Table1[[#This Row],[المرتب ]]-(Table1[[#This Row],[السلف ]]+Table1[[#This Row],[الخصم ]])","v":0}]
["عاطف محمد محمد دراز",{"$f":"SUM(Salim!C189:AF189)","v":0},{"$f":"Table1[[#This Row],[عدد الايام ]]*65","v":0},null,null,{"$f":"Table1[[#This Row],[المرتب ]]-(Table1[[#This Row],[السلف ]]+Table1[[#This Row],[الخصم ]])","v":0}]
["عامر ابراهيم عامر بدوي",{"$f":"SUM(Salim!C190:AF190)","v":0},{"$f":"Table1[[#This Row],[عدد الايام ]]*65","v":0},null,null,{"$f":"Table1[[#This Row],[المرتب ]]-(Table1[[#This Row],[السلف ]]+Table1[[#This Row],[الخصم ]])","v":0}]
["عامر حبشي محمد حبشي",{"$f":"SUM(Salim!C191:AF191)","v":0},{"$f":"Table1[[#This Row],[عدد الايام ]]*65","v":0},null,null,{"$f":"Table1[[#This Row],[المرتب ]]-(Table1[[#This Row],[السلف ]]+Table1[[#This Row],[الخصم ]])","v":0}]
["عبدالحميد غريب عبدالحميد",{"$f":"SUM(Salim!C192:AF192)","v":0},{"$f":"Table1[[#This Row],[عدد الايام ]]*65","v":0},null,null,{"$f":"Table1[[#This Row],[المرتب ]]-(Table1[[#This Row],[السلف ]]+Table1[[#This Row],[الخصم ]])","v":0}]
["عبدالرحمن ابراهيم عبدالغني الطوخي",{"$f":"SUM(Salim!C193:AF193)","v":0},{"$f":"Table1[[#This Row],[عدد الايام ]]*65","v":0},null,null,{"$f":"Table1[[#This Row],[المرتب ]]-(Table1[[#This Row],[السلف ]]+Table1[[#This Row],[الخصم ]])","v":0}]
["عبدالرحمن ابراهيم عيد الفقي",{"$f":"SUM(Salim!C194:AF194)","v":0},{"$f":"Table1[[#This Row],[عدد الايام ]]*65","v":0},null,null,{"$f":"Table1[[#This Row],[المرتب ]]-(Table1[[#This Row],[السلف ]]+Table1[[#This Row],[الخصم ]])","v":0}]
["عبدالرحمن سالم عبدالرحمن",{"$f":"SUM(Salim!C195:AF195)","v":0},{"$f":"Table1[[#This Row],[عدد الايام ]]*65","v":0},null,null,{"$f":"Table1[[#This Row],[المرتب ]]-(Table1[[#This Row],[السلف ]]+Table1[[#This Row],[الخصم ]])","v":0}]
["عبدالرحمن عبداللاه عبدالعزيز طه",{"$f":"SUM(Salim!C196:AF196)","v":0},{"$f":"Table1[[#This Row],[عدد الايام ]]*65","v":0},null,null,{"$f":"Table1[[#This Row],[المرتب ]]-(Table1[[#This Row],[السلف ]]+Table1[[#This Row],[الخصم ]])","v":0}]
["عبدالرحمن محمد زياد محمد ",{"$f":"SUM(Salim!C197:AF197)","v":0},{"$f":"Table1[[#This Row],[عدد الايام ]]*65","v":0},null,null,{"$f":"Table1[[#This Row],[المرتب ]]-(Table1[[#This Row],[السلف ]]+Table1[[#This Row],[الخصم ]])","v":0}]
["عبدالستارعيدعبدالستارعيسي ",{"$f":"SUM(Salim!C198:AF198)","v":0},{"$f":"Table1[[#This Row],[عدد الايام ]]*65","v":0},null,null,{"$f":"Table1[[#This Row],[المرتب ]]-(Table1[[#This Row],[السلف ]]+Table1[[#This Row],[الخصم ]])","v":0}]
["عبدالسلام فتحي شلبي",{"$f":"SUM(Salim!C199:AF199)","v":0},{"$f":"Table1[[#This Row],[عدد الايام ]]*65","v":0},null,null,{"$f":"Table1[[#This Row],[المرتب ]]-(Table1[[#This Row],[السلف ]]+Table1[[#This Row],[الخصم ]])","v":0}]
["عبدالسلام فتحي محمد",{"$f":"SUM(Salim!C200:AF200)","v":0},{"$f":"Table1[[#This Row],[عدد الايام ]]*65","v":0},null,null,{"$f":"Table1[[#This Row],[المرتب ]]-(Table1[[#This Row],[السلف ]]+Table1[[#This Row],[الخصم ]])","v":0}]
["عبدالسلام مصطفي علي",{"$f":"SUM(Salim!C201:AF201)","v":0},{"$f":"Table1[[#This Row],[عدد الايام ]]*65","v":0},null,null,{"$f":"Table1[[#This Row],[المرتب ]]-(Table1[[#This Row],[السلف ]]+Table1[[#This Row],[الخصم ]])","v":0}]
["عبدالعزيز حمدي عبدالعزيز محمد",{"$f":"SUM(Salim!C202:AF202)","v":0},{"$f":"Table1[[#This Row],[عدد الايام ]]*65","v":0},null,null,{"$f":"Table1[[#This Row],[المرتب ]]-(Table1[[#This Row],[السلف ]]+Table1[[#This Row],[الخصم ]])","v":0}]
["عبدالغفار محمد منير",{"$f":"SUM(Salim!C203:AF203)","v":0},{"$f":"Table1[[#This Row],[عدد الايام ]]*65","v":0},null,null,{"$f":"Table1[[#This Row],[المرتب ]]-(Table1[[#This Row],[السلف ]]+Table1[[#This Row],[الخصم ]])","v":0}]
["عبدالغفور محمد عبالغفور دره",{"$f":"SUM(Salim!C204:AF204)","v":0},{"$f":"Table1[[#This Row],[عدد الايام ]]*65","v":0},null,null,{"$f":"Table1[[#This Row],[المرتب ]]-(Table1[[#This Row],[السلف ]]+Table1[[#This Row],[الخصم ]])","v":0}]
["عبدالغني جمال عاشور محمد",{"$f":"SUM(Salim!C205:AF205)","v":0},{"$f":"Table1[[#This Row],[عدد الايام ]]*65","v":0},null,null,{"$f":"Table1[[#This Row],[المرتب ]]-(Table1[[#This Row],[السلف ]]+Table1[[#This Row],[الخصم ]])","v":0}]
["عبدالفتاح جمعه عبدالحكيم جمعه",{"$f":"SUM(Salim!C206:AF206)","v":0},{"$f":"Table1[[#This Row],[عدد الايام ]]*65","v":0},null,null,{"$f":"Table1[[#This Row],[المرتب ]]-(Table1[[#This Row],[السلف ]]+Table1[[#This Row],[الخصم ]])","v":0}]
["عبدالفتاح عبدالقوي عبدالفتاح",{"$f":"SUM(Salim!C207:AF207)","v":0},{"$f":"Table1[[#This Row],[عدد الايام ]]*65","v":0},null,null,{"$f":"Table1[[#This Row],[المرتب ]]-(Table1[[#This Row],[السلف ]]+Table1[[#This Row],[الخصم ]])","v":0}]
["عبدالكريم محمد محمود",{"$f":"SUM(Salim!C208:AF208)","v":0},{"$f":"Table1[[#This Row],[عدد الايام ]]*65","v":0},null,null,{"$f":"Table1[[#This Row],[المرتب ]]-(Table1[[#This Row],[السلف ]]+Table1[[#This Row],[الخصم ]])","v":0}]
["عبدالله ابوالسعود عبدالمجيد",{"$f":"SUM(Salim!C209:AF209)","v":0},{"$f":"Table1[[#This Row],[عدد الايام ]]*65","v":0},null,null,{"$f":"Table1[[#This Row],[المرتب ]]-(Table1[[#This Row],[السلف ]]+Table1[[#This Row],[الخصم ]])","v":0}]
["عبدالله ابوبكر سلامه",{"$f":"SUM(Salim!C210:AF210)","v":0},{"$f":"Table1[[#This Row],[عدد الايام ]]*65","v":0},null,null,{"$f":"Table1[[#This Row],[المرتب ]]-(Table1[[#This Row],[السلف ]]+Table1[[#This Row],[الخصم ]])","v":0}]
["عبدالله احمد كامل علي عويان",{"$f":"SUM(Salim!C211:AF211)","v":0},{"$f":"Table1[[#This Row],[عدد الايام ]]*65","v":0},null,null,{"$f":"Table1[[#This Row],[المرتب ]]-(Table1[[#This Row],[السلف ]]+Table1[[#This Row],[الخصم ]])","v":0}]
["عبدالله حسين احمد جاد الرب",{"$f":"SUM(Salim!C212:AF212)","v":0},{"$f":"Table1[[#This Row],[عدد الايام ]]*65","v":0},null,null,{"$f":"Table1[[#This Row],[المرتب ]]-(Table1[[#This Row],[السلف ]]+Table1[[#This Row],[الخصم ]])","v":0}]
["عبدالله سالم عبدالرحمن",{"$f":"SUM(Salim!C213:AF213)","v":0},{"$f":"Table1[[#This Row],[عدد الايام ]]*65","v":0},null,null,{"$f":"Table1[[#This Row],[المرتب ]]-(Table1[[#This Row],[السلف ]]+Table1[[#This Row],[الخصم ]])","v":0}]
["عبدالله سامي مصطفي الجمال",{"$f":"SUM(Salim!C214:AF214)","v":0},{"$f":"Table1[[#This Row],[عدد الايام ]]*65","v":0},null,null,{"$f":"Table1[[#This Row],[المرتب ]]-(Table1[[#This Row],[السلف ]]+Table1[[#This Row],[الخصم ]])","v":0}]
["عبدالله سامي مصطفي كامل القط",{"$f":"SUM(Salim!C215:AF215)","v":0},{"$f":"Table1[[#This Row],[عدد الايام ]]*65","v":0},null,null,{"$f":"Table1[[#This Row],[المرتب ]]-(Table1[[#This Row],[السلف ]]+Table1[[#This Row],[الخصم ]])","v":0}]
["عبدالله شعبان عبدالله",{"$f":"SUM(Salim!C216:AF216)","v":0},{"$f":"Table1[[#This Row],[عدد الايام ]]*65","v":0},null,null,{"$f":"Table1[[#This Row],[المرتب ]]-(Table1[[#This Row],[السلف ]]+Table1[[#This Row],[الخصم ]])","v":0}]
["عبدالله عبدالحميد عبدالله",{"$f":"SUM(Salim!C217:AF217)","v":0},{"$f":"Table1[[#This Row],[عدد الايام ]]*65","v":0},null,null,{"$f":"Table1[[#This Row],[المرتب ]]-(Table1[[#This Row],[السلف ]]+Table1[[#This Row],[الخصم ]])","v":0}]
["عبدالله عبدالصادق محمد ",{"$f":"SUM(Salim!C218:AF218)","v":0},{"$f":"Table1[[#This Row],[عدد الايام ]]*65","v":0},null,null,{"$f":"Table1[[#This Row],[المرتب ]]-(Table1[[#This Row],[السلف ]]+Table1[[#This Row],[الخصم ]])","v":0}]
["عبدالله علي عبدالله علي",{"$f":"SUM(Salim!C219:AF219)","v":0},{"$f":"Table1[[#This Row],[عدد الايام ]]*65","v":0},null,null,{"$f":"Table1[[#This Row],[المرتب ]]-(Table1[[#This Row],[السلف ]]+Table1[[#This Row],[الخصم ]])","v":0}]
["عبدالله فوزي عبدالله مرجان",{"$f":"SUM(Salim!C220:AF220)","v":0},{"$f":"Table1[[#This Row],[عدد الايام ]]*65","v":0},null,null,{"$f":"Table1[[#This Row],[المرتب ]]-(Table1[[#This Row],[السلف ]]+Table1[[#This Row],[الخصم ]])","v":0}]
["عبدالله محمد الصافي عبدالفتاح",{"$f":"SUM(Salim!C221:AF221)","v":0},{"$f":"Table1[[#This Row],[عدد الايام ]]*65","v":0},null,null,{"$f":"Table1[[#This Row],[المرتب ]]-(Table1[[#This Row],[السلف ]]+Table1[[#This Row],[الخصم ]])","v":0}]
["عبدالله محمد صبحي متولي",{"$f":"SUM(Salim!C222:AF222)","v":0},{"$f":"Table1[[#This Row],[عدد الايام ]]*65","v":0},null,null,{"$f":"Table1[[#This Row],[المرتب ]]-(Table1[[#This Row],[السلف ]]+Table1[[#This Row],[الخصم ]])","v":0}]
["عبدالله محمد عبدالله خليفه محمد",{"$f":"SUM(Salim!C223:AF223)","v":0},{"$f":"Table1[[#This Row],[عدد الايام ]]*65","v":0},null,null,{"$f":"Table1[[#This Row],[المرتب ]]-(Table1[[#This Row],[السلف ]]+Table1[[#This Row],[الخصم ]])","v":0}]
["عبدالناصر احمد عبدالوهاب",{"$f":"SUM(Salim!C224:AF224)","v":0},{"$f":"Table1[[#This Row],[عدد الايام ]]*65","v":0},null,null,{"$f":"Table1[[#This Row],[المرتب ]]-(Table1[[#This Row],[السلف ]]+Table1[[#This Row],[الخصم ]])","v":0}]
["عبدالنبي حسين عبداللطيف",{"$f":"SUM(Salim!C225:AF225)","v":0},{"$f":"Table1[[#This Row],[عدد الايام ]]*65","v":0},null,null,{"$f":"Table1[[#This Row],[المرتب ]]-(Table1[[#This Row],[السلف ]]+Table1[[#This Row],[الخصم ]])","v":0}]
["عبدالواحد كمال عبدالواحد",{"$f":"SUM(Salim!C226:AF226)","v":0},{"$f":"Table1[[#This Row],[عدد الايام ]]*65","v":0},null,null,{"$f":"Table1[[#This Row],[المرتب ]]-(Table1[[#This Row],[السلف ]]+Table1[[#This Row],[الخصم ]])","v":0}]
["عز الدين فتحي قرني بكر",{"$f":"SUM(Salim!C227:AF227)","v":0},{"$f":"Table1[[#This Row],[عدد الايام ]]*65","v":0},null,null,{"$f":"Table1[[#This Row],[المرتب ]]-(Table1[[#This Row],[السلف ]]+Table1[[#This Row],[الخصم ]])","v":0}]
["عزت محمد ابوالعز",{"$f":"SUM(Salim!C228:AF228)","v":0},{"$f":"Table1[[#This Row],[عدد الايام ]]*65","v":0},null,null,{"$f":"Table1[[#This Row],[المرتب ]]-(Table1[[#This Row],[السلف ]]+Table1[[#This Row],[الخصم ]])","v":0}]
["عطيه مصطفي السيد الجنزوري",{"$f":"SUM(Salim!C229:AF229)","v":0},{"$f":"Table1[[#This Row],[عدد الايام ]]*65","v":0},null,null,{"$f":"Table1[[#This Row],[المرتب ]]-(Table1[[#This Row],[السلف ]]+Table1[[#This Row],[الخصم ]])","v":0}]
["علاء جمعه التايب جمعه",{"$f":"SUM(Salim!C230:AF230)","v":0},{"$f":"Table1[[#This Row],[عدد الايام ]]*65","v":0},null,null,{"$f":"Table1[[#This Row],[المرتب ]]-(Table1[[#This Row],[السلف ]]+Table1[[#This Row],[الخصم ]])","v":0}]
["علي احمد علي قنديل",{"$f":"SUM(Salim!C231:AF231)","v":0},{"$f":"Table1[[#This Row],[عدد الايام ]]*65","v":0},null,null,{"$f":"Table1[[#This Row],[المرتب ]]-(Table1[[#This Row],[السلف ]]+Table1[[#This Row],[الخصم ]])","v":0}]
["علي احمدعلي عوض العزب",{"$f":"SUM(Salim!C232:AF232)","v":0},{"$f":"Table1[[#This Row],[عدد الايام ]]*65","v":0},null,null,{"$f":"Table1[[#This Row],[المرتب ]]-(Table1[[#This Row],[السلف ]]+Table1[[#This Row],[الخصم ]])","v":0}]
["علي السيد رياض ",{"$f":"SUM(Salim!C233:AF233)","v":0},{"$f":"Table1[[#This Row],[عدد الايام ]]*65","v":0},null,null,{"$f":"Table1[[#This Row],[المرتب ]]-(Table1[[#This Row],[السلف ]]+Table1[[#This Row],[الخصم ]])","v":0}]
["علي صلاح علي سليمان",{"$f":"SUM(Salim!C234:AF234)","v":0},{"$f":"Table1[[#This Row],[عدد الايام ]]*65","v":0},null,null,{"$f":"Table1[[#This Row],[المرتب ]]-(Table1[[#This Row],[السلف ]]+Table1[[#This Row],[الخصم ]])","v":0}]
["علي عبدالباسط علي الجندي",{"$f":"SUM(Salim!C235:AF235)","v":0},{"$f":"Table1[[#This Row],[عدد الايام ]]*65","v":0},null,null,{"$f":"Table1[[#This Row],[المرتب ]]-(Table1[[#This Row],[السلف ]]+Table1[[#This Row],[الخصم ]])","v":0}]
["علي عبدالهادي علي",{"$f":"SUM(Salim!C236:AF236)","v":0},{"$f":"Table1[[#This Row],[عدد الايام ]]*65","v":0},null,null,{"$f":"Table1[[#This Row],[المرتب ]]-(Table1[[#This Row],[السلف ]]+Table1[[#This Row],[الخصم ]])","v":0}]
["علي عيسي امين عيسي",{"$f":"SUM(Salim!C237:AF237)","v":0},{"$f":"Table1[[#This Row],[عدد الايام ]]*65","v":0},null,null,{"$f":"Table1[[#This Row],[المرتب ]]-(Table1[[#This Row],[السلف ]]+Table1[[#This Row],[الخصم ]])","v":0}]
["علي غزالي ابراهيم",{"$f":"SUM(Salim!C238:AF238)","v":0},{"$f":"Table1[[#This Row],[عدد الايام ]]*65","v":0},null,null,{"$f":"Table1[[#This Row],[المرتب ]]-(Table1[[#This Row],[السلف ]]+Table1[[#This Row],[الخصم ]])","v":0}]
["علي محمد علي توفيق",{"$f":"SUM(Salim!C239:AF239)","v":0},{"$f":"Table1[[#This Row],[عدد الايام ]]*65","v":0},null,null,{"$f":"Table1[[#This Row],[المرتب ]]-(Table1[[#This Row],[السلف ]]+Table1[[#This Row],[الخصم ]])","v":0}]
["علي محمود محمد محمود الدجاج",{"$f":"SUM(Salim!C240:AF240)","v":0},{"$f":"Table1[[#This Row],[عدد الايام ]]*65","v":0},null,null,{"$f":"Table1[[#This Row],[المرتب ]]-(Table1[[#This Row],[السلف ]]+Table1[[#This Row],[الخصم ]])","v":0}]
["عماد عبدالله مصطفي عبدالله",{"$f":"SUM(Salim!C241:AF241)","v":0},{"$f":"Table1[[#This Row],[عدد الايام ]]*65","v":0},null,null,{"$f":"Table1[[#This Row],[المرتب ]]-(Table1[[#This Row],[السلف ]]+Table1[[#This Row],[الخصم ]])","v":0}]
["عماد محمد عبداللاه معوض",{"$f":"SUM(Salim!C242:AF242)","v":0},{"$f":"Table1[[#This Row],[عدد الايام ]]*65","v":0},null,null,{"$f":"Table1[[#This Row],[المرتب ]]-(Table1[[#This Row],[السلف ]]+Table1[[#This Row],[الخصم ]])","v":0}]
["عمارمحمد مصطفي شحاته",{"$f":"SUM(Salim!C243:AF243)","v":0},{"$f":"Table1[[#This Row],[عدد الايام ]]*65","v":0},null,null,{"$f":"Table1[[#This Row],[المرتب ]]-(Table1[[#This Row],[السلف ]]+Table1[[#This Row],[الخصم ]])","v":0}]
["عمر عبدالعال سليمان عثمان",{"$f":"SUM(Salim!C244:AF244)","v":0},{"$f":"Table1[[#This Row],[عدد الايام ]]*65","v":0},null,null,{"$f":"Table1[[#This Row],[المرتب ]]-(Table1[[#This Row],[السلف ]]+Table1[[#This Row],[الخصم ]])","v":0}]
["عمر فتحي عبدالفتاح احمد",{"$f":"SUM(Salim!C245:AF245)","v":0},{"$f":"Table1[[#This Row],[عدد الايام ]]*65","v":0},null,null,{"$f":"Table1[[#This Row],[المرتب ]]-(Table1[[#This Row],[السلف ]]+Table1[[#This Row],[الخصم ]])","v":0}]
["عمر ممدوح ابراهيم جويده",{"$f":"SUM(Salim!C246:AF246)","v":0},{"$f":"Table1[[#This Row],[عدد الايام ]]*65","v":0},null,null,{"$f":"Table1[[#This Row],[المرتب ]]-(Table1[[#This Row],[السلف ]]+Table1[[#This Row],[الخصم ]])","v":0}]
["عمرو ثابت عبدالفتاح علي",{"$f":"SUM(Salim!C247:AF247)","v":0},{"$f":"Table1[[#This Row],[عدد الايام ]]*65","v":0},null,null,{"$f":"Table1[[#This Row],[المرتب ]]-(Table1[[#This Row],[السلف ]]+Table1[[#This Row],[الخصم ]])","v":0}]
["عمرو حامد عبدالله قناوي",{"$f":"SUM(Salim!C248:AF248)","v":0},{"$f":"Table1[[#This Row],[عدد الايام ]]*65","v":0},null,null,{"$f":"Table1[[#This Row],[المرتب ]]-(Table1[[#This Row],[السلف ]]+Table1[[#This Row],[الخصم ]])","v":0}]
["عمرو حامد عطا الله قناوي",{"$f":"SUM(Salim!C249:AF249)","v":0},{"$f":"Table1[[#This Row],[عدد الايام ]]*65","v":0},null,null,{"$f":"Table1[[#This Row],[المرتب ]]-(Table1[[#This Row],[السلف ]]+Table1[[#This Row],[الخصم ]])","v":0}]
["عمرو عبدالصمد محمد",{"$f":"SUM(Salim!C250:AF250)","v":0},{"$f":"Table1[[#This Row],[عدد الايام ]]*65","v":0},null,null,{"$f":"Table1[[#This Row],[المرتب ]]-(Table1[[#This Row],[السلف ]]+Table1[[#This Row],[الخصم ]])","v":0}]
["عمرو محمد حسن عبدالغني",{"$f":"SUM(Salim!C251:AF251)","v":0},{"$f":"Table1[[#This Row],[عدد الايام ]]*65","v":0},null,null,{"$f":"Table1[[#This Row],[المرتب ]]-(Table1[[#This Row],[السلف ]]+Table1[[#This Row],[الخصم ]])","v":0}]
["عمرو محمد عبدالصمد",{"$f":"SUM(Salim!C252:AF252)","v":0},{"$f":"Table1[[#This Row],[عدد الايام ]]*65","v":0},null,null,{"$f":"Table1[[#This Row],[المرتب ]]-(Table1[[#This Row],[السلف ]]+Table1[[#This Row],[الخصم ]])","v":0}]
["عمرو محمد عبدالفتاح",{"$f":"SUM(Salim!C253:AF253)","v":0},{"$f":"Table1[[#This Row],[عدد الايام ]]*65","v":0},null,null,{"$f":"Table1[[#This Row],[المرتب ]]-(Table1[[#This Row],[السلف ]]+Table1[[#This Row],[الخصم ]])","v":0}]
["عمرو محمد فهمي خليفه",{"$f":"SUM(Salim!C254:AF254)","v":0},{"$f":"Table1[[#This Row],[عدد الايام ]]*65","v":0},null,null,{"$f":"Table1[[#This Row],[المرتب ]]-(Table1[[#This Row],[السلف ]]+Table1[[#This Row],[الخصم ]])","v":0}]
["عيد عبدالمنعم عيد عجيبه",{"$f":"SUM(Salim!C255:AF255)","v":0},{"$f":"Table1[[#This Row],[عدد الايام ]]*65","v":0},null,null,{"$f":"Table1[[#This Row],[المرتب ]]-(Table1[[#This Row],[السلف ]]+Table1[[#This Row],[الخصم ]])","v":0}]
["فارس رشاد حماد عبدالهادي",{"$f":"SUM(Salim!C256:AF256)","v":0},{"$f":"Table1[[#This Row],[عدد الايام ]]*65","v":0},null,null,{"$f":"Table1[[#This Row],[المرتب ]]-(Table1[[#This Row],[السلف ]]+Table1[[#This Row],[الخصم ]])","v":0}]
["فارس صبري رزق",{"$f":"SUM(Salim!C257:AF257)","v":0},{"$f":"Table1[[#This Row],[عدد الايام ]]*65","v":0},null,null,{"$f":"Table1[[#This Row],[المرتب ]]-(Table1[[#This Row],[السلف ]]+Table1[[#This Row],[الخصم ]])","v":0}]
["فارس ياسر احمد عبدالعليم علي",{"$f":"SUM(Salim!C258:AF258)","v":0},{"$f":"Table1[[#This Row],[عدد الايام ]]*65","v":0},null,null,{"$f":"Table1[[#This Row],[المرتب ]]-(Table1[[#This Row],[السلف ]]+Table1[[#This Row],[الخصم ]])","v":0}]
["فايز عبدالله احمد ابراهيم",{"$f":"SUM(Salim!C259:AF259)","v":0},{"$f":"Table1[[#This Row],[عدد الايام ]]*65","v":0},null,null,{"$f":"Table1[[#This Row],[المرتب ]]-(Table1[[#This Row],[السلف ]]+Table1[[#This Row],[الخصم ]])","v":0}]
["فتحي احمد محمد عبده الحريري",{"$f":"SUM(Salim!C260:AF260)","v":0},{"$f":"Table1[[#This Row],[عدد الايام ]]*65","v":0},null,null,{"$f":"Table1[[#This Row],[المرتب ]]-(Table1[[#This Row],[السلف ]]+Table1[[#This Row],[الخصم ]])","v":0}]
["فهمي عباس عبدالدايم حلفايه",{"$f":"SUM(Salim!C261:AF261)","v":0},{"$f":"Table1[[#This Row],[عدد الايام ]]*65","v":0},null,null,{"$f":"Table1[[#This Row],[المرتب ]]-(Table1[[#This Row],[السلف ]]+Table1[[#This Row],[الخصم ]])","v":0}]
["فوقي جلال عبده النحري",{"$f":"SUM(Salim!C262:AF262)","v":0},{"$f":"Table1[[#This Row],[عدد الايام ]]*65","v":0},null,null,{"$f":"Table1[[#This Row],[المرتب ]]-(Table1[[#This Row],[السلف ]]+Table1[[#This Row],[الخصم ]])","v":0}]
["كامل عبدالله كامل الشيخ",{"$f":"SUM(Salim!C263:AF263)","v":0},{"$f":"Table1[[#This Row],[عدد الايام ]]*65","v":0},null,null,{"$f":"Table1[[#This Row],[المرتب ]]-(Table1[[#This Row],[السلف ]]+Table1[[#This Row],[الخصم ]])","v":0}]
["كريم سليمان عيد عبدالمحسن",{"$f":"SUM(Salim!C264:AF264)","v":0},{"$f":"Table1[[#This Row],[عدد الايام ]]*65","v":0},null,null,{"$f":"Table1[[#This Row],[المرتب ]]-(Table1[[#This Row],[السلف ]]+Table1[[#This Row],[الخصم ]])","v":0}]
["كريم عبدالحارس عبدالراضي",{"$f":"SUM(Salim!C265:AF265)","v":0},{"$f":"Table1[[#This Row],[عدد الايام ]]*65","v":0},null,null,{"$f":"Table1[[#This Row],[المرتب ]]-(Table1[[#This Row],[السلف ]]+Table1[[#This Row],[الخصم ]])","v":0}]
["كريم عبدالقوي عبدالفتاح",{"$f":"SUM(Salim!C266:AF266)","v":0},{"$f":"Table1[[#This Row],[عدد الايام ]]*65","v":0},null,null,{"$f":"Table1[[#This Row],[المرتب ]]-(Table1[[#This Row],[السلف ]]+Table1[[#This Row],[الخصم ]])","v":0}]
["كمال شريف عبدالمجيد بشر",{"$f":"SUM(Salim!C267:AF267)","v":0},{"$f":"Table1[[#This Row],[عدد الايام ]]*65","v":0},null,null,{"$f":"Table1[[#This Row],[المرتب ]]-(Table1[[#This Row],[السلف ]]+Table1[[#This Row],[الخصم ]])","v":0}]
["كيرلس صلاح رزق الله",{"$f":"SUM(Salim!C268:AF268)","v":0},{"$f":"Table1[[#This Row],[عدد الايام ]]*65","v":0},null,null,{"$f":"Table1[[#This Row],[المرتب ]]-(Table1[[#This Row],[السلف ]]+Table1[[#This Row],[الخصم ]])","v":0}]
["كيرلس غندي رزق مللك",{"$f":"SUM(Salim!C269:AF269)","v":0},{"$f":"Table1[[#This Row],[عدد الايام ]]*65","v":0},null,null,{"$f":"Table1[[#This Row],[المرتب ]]-(Table1[[#This Row],[السلف ]]+Table1[[#This Row],[الخصم ]])","v":0}]
["كيرلس فادي ناجي",{"$f":"SUM(Salim!C270:AF270)","v":0},{"$f":"Table1[[#This Row],[عدد الايام ]]*65","v":0},null,null,{"$f":"Table1[[#This Row],[المرتب ]]-(Table1[[#This Row],[السلف ]]+Table1[[#This Row],[الخصم ]])","v":0}]
["ماهر احمد علي حماد",{"$f":"SUM(Salim!C271:AF271)","v":0},{"$f":"Table1[[#This Row],[عدد الايام ]]*65","v":0},null,null,{"$f":"Table1[[#This Row],[المرتب ]]-(Table1[[#This Row],[السلف ]]+Table1[[#This Row],[الخصم ]])","v":0}]
["مبروك عبدالسلام عمار ابراهيم",{"$f":"SUM(Salim!C272:AF272)","v":0},{"$f":"Table1[[#This Row],[عدد الايام ]]*65","v":0},null,null,{"$f":"Table1[[#This Row],[المرتب ]]-(Table1[[#This Row],[السلف ]]+Table1[[#This Row],[الخصم ]])","v":0}]
["مبروك محمود مبروك مطر",{"$f":"SUM(Salim!C273:AF273)","v":0},{"$f":"Table1[[#This Row],[عدد الايام ]]*65","v":0},null,null,{"$f":"Table1[[#This Row],[المرتب ]]-(Table1[[#This Row],[السلف ]]+Table1[[#This Row],[الخصم ]])","v":0}]
["مجدي زكريا عباس",{"$f":"SUM(Salim!C274:AF274)","v":0},{"$f":"Table1[[#This Row],[عدد الايام ]]*65","v":0},null,null,{"$f":"Table1[[#This Row],[المرتب ]]-(Table1[[#This Row],[السلف ]]+Table1[[#This Row],[الخصم ]])","v":0}]
["محمد ابراهيم السيد ابراهيم",{"$f":"SUM(Salim!C275:AF275)","v":0},{"$f":"Table1[[#This Row],[عدد الايام ]]*65","v":0},null,null,{"$f":"Table1[[#This Row],[المرتب ]]-(Table1[[#This Row],[السلف ]]+Table1[[#This Row],[الخصم ]])","v":0}]
["محمد ابراهيم عاشور عبدالوهاب",{"$f":"SUM(Salim!C276:AF276)","v":0},{"$f":"Table1[[#This Row],[عدد الايام ]]*65","v":0},null,null,{"$f":"Table1[[#This Row],[المرتب ]]-(Table1[[#This Row],[السلف ]]+Table1[[#This Row],[الخصم ]])","v":0}]
["محمد ابراهيم عبدالمنعم مغربي",{"$f":"SUM(Salim!C277:AF277)","v":0},{"$f":"Table1[[#This Row],[عدد الايام ]]*65","v":0},null,null,{"$f":"Table1[[#This Row],[المرتب ]]-(Table1[[#This Row],[السلف ]]+Table1[[#This Row],[الخصم ]])","v":0}]
["محمد ابراهيم محمود سليمان",{"$f":"SUM(Salim!C278:AF278)","v":0},{"$f":"Table1[[#This Row],[عدد الايام ]]*65","v":0},null,null,{"$f":"Table1[[#This Row],[المرتب ]]-(Table1[[#This Row],[السلف ]]+Table1[[#This Row],[الخصم ]])","v":0}]
["محمد احمد رفاعي محمد البياع",{"$f":"SUM(Salim!C279:AF279)","v":0},{"$f":"Table1[[#This Row],[عدد الايام ]]*65","v":0},null,null,{"$f":"Table1[[#This Row],[المرتب ]]-(Table1[[#This Row],[السلف ]]+Table1[[#This Row],[الخصم ]])","v":0}]
["محمد احمد زكريا شهبو",{"$f":"SUM(Salim!C280:AF280)","v":0},{"$f":"Table1[[#This Row],[عدد الايام ]]*65","v":0},null,null,{"$f":"Table1[[#This Row],[المرتب ]]-(Table1[[#This Row],[السلف ]]+Table1[[#This Row],[الخصم ]])","v":0}]
["محمد احمد سيد احمد محفوظ",{"$f":"SUM(Salim!C281:AF281)","v":0},{"$f":"Table1[[#This Row],[عدد الايام ]]*65","v":0},null,null,{"$f":"Table1[[#This Row],[المرتب ]]-(Table1[[#This Row],[السلف ]]+Table1[[#This Row],[الخصم ]])","v":0}]
["محمد احمد عبدالحكم عبدالمطلب",{"$f":"SUM(Salim!C282:AF282)","v":0},{"$f":"Table1[[#This Row],[عدد الايام ]]*65","v":0},null,null,{"$f":"Table1[[#This Row],[المرتب ]]-(Table1[[#This Row],[السلف ]]+Table1[[#This Row],[الخصم ]])","v":0}]
["محمد احمد عبدالرحيم",{"$f":"SUM(Salim!C283:AF283)","v":0},{"$f":"Table1[[#This Row],[عدد الايام ]]*65","v":0},null,null,{"$f":"Table1[[#This Row],[المرتب ]]-(Table1[[#This Row],[السلف ]]+Table1[[#This Row],[الخصم ]])","v":0}]
["محمد احمد عبدالمجيد عسل",{"$f":"SUM(Salim!C284:AF284)","v":0},{"$f":"Table1[[#This Row],[عدد الايام ]]*65","v":0},null,null,{"$f":"Table1[[#This Row],[المرتب ]]-(Table1[[#This Row],[السلف ]]+Table1[[#This Row],[الخصم ]])","v":0}]
["محمد احمد عبدالمقصود شتله ",{"$f":"SUM(Salim!C285:AF285)","v":0},{"$f":"Table1[[#This Row],[عدد الايام ]]*65","v":0},null,null,{"$f":"Table1[[#This Row],[المرتب ]]-(Table1[[#This Row],[السلف ]]+Table1[[#This Row],[الخصم ]])","v":0}]
["محمد احمد علي قنديل",{"$f":"SUM(Salim!C286:AF286)","v":0},{"$f":"Table1[[#This Row],[عدد الايام ]]*65","v":0},null,null,{"$f":"Table1[[#This Row],[المرتب ]]-(Table1[[#This Row],[السلف ]]+Table1[[#This Row],[الخصم ]])","v":0}]
["محمد احمد عيداحمد",{"$f":"SUM(Salim!C287:AF287)","v":0},{"$f":"Table1[[#This Row],[عدد الايام ]]*65","v":0},null,null,{"$f":"Table1[[#This Row],[المرتب ]]-(Table1[[#This Row],[السلف ]]+Table1[[#This Row],[الخصم ]])","v":0}]
["محمد احمد محمد عبدالله",{"$f":"SUM(Salim!C288:AF288)","v":0},{"$f":"Table1[[#This Row],[عدد الايام ]]*65","v":0},null,null,{"$f":"Table1[[#This Row],[المرتب ]]-(Table1[[#This Row],[السلف ]]+Table1[[#This Row],[الخصم ]])","v":0}]
["محمد احمد مرضي",{"$f":"SUM(Salim!C289:AF289)","v":0},{"$f":"Table1[[#This Row],[عدد الايام ]]*65","v":0},null,null,{"$f":"Table1[[#This Row],[المرتب ]]-(Table1[[#This Row],[السلف ]]+Table1[[#This Row],[الخصم ]])","v":0}]
["محمد اسماعيل محمد احمد الديب",{"$f":"SUM(Salim!C290:AF290)","v":0},{"$f":"Table1[[#This Row],[عدد الايام ]]*65","v":0},null,null,{"$f":"Table1[[#This Row],[المرتب ]]-(Table1[[#This Row],[السلف ]]+Table1[[#This Row],[الخصم ]])","v":0}]
["محمد اشرف محمد محمود",{"$f":"SUM(Salim!C291:AF291)","v":0},{"$f":"Table1[[#This Row],[عدد الايام ]]*65","v":0},null,null,{"$f":"Table1[[#This Row],[المرتب ]]-(Table1[[#This Row],[السلف ]]+Table1[[#This Row],[الخصم ]])","v":0}]
["محمد السطوحي محمد عبدالعال",{"$f":"SUM(Salim!C292:AF292)","v":0},{"$f":"Table1[[#This Row],[عدد الايام ]]*65","v":0},null,null,{"$f":"Table1[[#This Row],[المرتب ]]-(Table1[[#This Row],[السلف ]]+Table1[[#This Row],[الخصم ]])","v":0}]
["محمد السعيد عبدالجواد",{"$f":"SUM(Salim!C293:AF293)","v":0},{"$f":"Table1[[#This Row],[عدد الايام ]]*65","v":0},null,null,{"$f":"Table1[[#This Row],[المرتب ]]-(Table1[[#This Row],[السلف ]]+Table1[[#This Row],[الخصم ]])","v":0}]
["محمد الشحات عبدالحميد",{"$f":"SUM(Salim!C294:AF294)","v":0},{"$f":"Table1[[#This Row],[عدد الايام ]]*65","v":0},null,null,{"$f":"Table1[[#This Row],[المرتب ]]-(Table1[[#This Row],[السلف ]]+Table1[[#This Row],[الخصم ]])","v":0}]
["محمد امين عبدالحميد شلبي",{"$f":"SUM(Salim!C295:AF295)","v":0},{"$f":"Table1[[#This Row],[عدد الايام ]]*65","v":0},null,null,{"$f":"Table1[[#This Row],[المرتب ]]-(Table1[[#This Row],[السلف ]]+Table1[[#This Row],[الخصم ]])","v":0}]
["محمد انور خميس السيد",{"$f":"SUM(Salim!C296:AF296)","v":0},{"$f":"Table1[[#This Row],[عدد الايام ]]*65","v":0},null,null,{"$f":"Table1[[#This Row],[المرتب ]]-(Table1[[#This Row],[السلف ]]+Table1[[#This Row],[الخصم ]])","v":0}]
["محمد جمال عبدالفضيل ابراهيم ",{"$f":"SUM(Salim!C297:AF297)","v":0},{"$f":"Table1[[#This Row],[عدد الايام ]]*65","v":0},null,null,{"$f":"Table1[[#This Row],[المرتب ]]-(Table1[[#This Row],[السلف ]]+Table1[[#This Row],[الخصم ]])","v":0}]
["محمد جمعه عبدالحكيم",{"$f":"SUM(Salim!C298:AF298)","v":0},{"$f":"Table1[[#This Row],[عدد الايام ]]*65","v":0},null,null,{"$f":"Table1[[#This Row],[المرتب ]]-(Table1[[#This Row],[السلف ]]+Table1[[#This Row],[الخصم ]])","v":0}]
["محمد جمعه عبدالعظيم محمد",{"$f":"SUM(Salim!C299:AF299)","v":0},{"$f":"Table1[[#This Row],[عدد الايام ]]*65","v":0},null,null,{"$f":"Table1[[#This Row],[المرتب ]]-(Table1[[#This Row],[السلف ]]+Table1[[#This Row],[الخصم ]])","v":0}]
["محمد حسام الدين محمد عباس",{"$f":"SUM(Salim!C300:AF300)","v":0},{"$f":"Table1[[#This Row],[عدد الايام ]]*65","v":0},null,null,{"$f":"Table1[[#This Row],[المرتب ]]-(Table1[[#This Row],[السلف ]]+Table1[[#This Row],[الخصم ]])","v":0}]
["محمد حسن صابر احمد",{"$f":"SUM(Salim!C301:AF301)","v":0},{"$f":"Table1[[#This Row],[عدد الايام ]]*65","v":0},null,null,{"$f":"Table1[[#This Row],[المرتب ]]-(Table1[[#This Row],[السلف ]]+Table1[[#This Row],[الخصم ]])","v":0}]
["محمد حسني خيرت عبدالعزيز",{"$f":"SUM(Salim!C302:AF302)","v":0},{"$f":"Table1[[#This Row],[عدد الايام ]]*65","v":0},null,null,{"$f":"Table1[[#This Row],[المرتب ]]-(Table1[[#This Row],[السلف ]]+Table1[[#This Row],[الخصم ]])","v":0}]
["محمد حمدي محمد علي ",{"$f":"SUM(Salim!C303:AF303)","v":0},{"$f":"Table1[[#This Row],[عدد الايام ]]*65","v":0},null,null,{"$f":"Table1[[#This Row],[المرتب ]]-(Table1[[#This Row],[السلف ]]+Table1[[#This Row],[الخصم ]])","v":0}]
["محمد خالد حلمي الشمالي",{"$f":"SUM(Salim!C304:AF304)","v":0},{"$f":"Table1[[#This Row],[عدد الايام ]]*65","v":0},null,null,{"$f":"Table1[[#This Row],[المرتب ]]-(Table1[[#This Row],[السلف ]]+Table1[[#This Row],[الخصم ]])","v":0}]
["محمد رجب عبدالظاهر عيد",{"$f":"SUM(Salim!C305:AF305)","v":0},{"$f":"Table1[[#This Row],[عدد الايام ]]*65","v":0},null,null,{"$f":"Table1[[#This Row],[المرتب ]]-(Table1[[#This Row],[السلف ]]+Table1[[#This Row],[الخصم ]])","v":0}]
["محمد رضا ابراهيم مبروك",{"$f":"SUM(Salim!C306:AF306)","v":0},{"$f":"Table1[[#This Row],[عدد الايام ]]*65","v":0},null,null,{"$f":"Table1[[#This Row],[المرتب ]]-(Table1[[#This Row],[السلف ]]+Table1[[#This Row],[الخصم ]])","v":0}]
["محمد رضا محمد علي اسماعيل",{"$f":"SUM(Salim!C307:AF307)","v":0},{"$f":"Table1[[#This Row],[عدد الايام ]]*65","v":0},null,null,{"$f":"Table1[[#This Row],[المرتب ]]-(Table1[[#This Row],[السلف ]]+Table1[[#This Row],[الخصم ]])","v":0}]
["محمد زكريا عبده البربري",{"$f":"SUM(Salim!C308:AF308)","v":0},{"$f":"Table1[[#This Row],[عدد الايام ]]*65","v":0},null,null,{"$f":"Table1[[#This Row],[المرتب ]]-(Table1[[#This Row],[السلف ]]+Table1[[#This Row],[الخصم ]])","v":0}]
["محمد سامي عبدالعزيز محمد",{"$f":"SUM(Salim!C309:AF309)","v":0},{"$f":"Table1[[#This Row],[عدد الايام ]]*65","v":0},null,null,{"$f":"Table1[[#This Row],[المرتب ]]-(Table1[[#This Row],[السلف ]]+Table1[[#This Row],[الخصم ]])","v":0}]
["محمد سعيد قطب محمود",{"$f":"SUM(Salim!C310:AF310)","v":0},{"$f":"Table1[[#This Row],[عدد الايام ]]*65","v":0},null,null,{"$f":"Table1[[#This Row],[المرتب ]]-(Table1[[#This Row],[السلف ]]+Table1[[#This Row],[الخصم ]])","v":0}]
["محمد سمير حسن عامر",{"$f":"SUM(Salim!C311:AF311)","v":0},{"$f":"Table1[[#This Row],[عدد الايام ]]*65","v":0},null,null,{"$f":"Table1[[#This Row],[المرتب ]]-(Table1[[#This Row],[السلف ]]+Table1[[#This Row],[الخصم ]])","v":0}]
["محمد شديد حسن  مراجعه علي الاسم",{"$f":"SUM(Salim!C312:AF312)","v":0},{"$f":"Table1[[#This Row],[عدد الايام ]]*65","v":0},null,null,{"$f":"Table1[[#This Row],[المرتب ]]-(Table1[[#This Row],[السلف ]]+Table1[[#This Row],[الخصم ]])","v":0}]
["محمد صبحي محمد الوكيل",{"$f":"SUM(Salim!C313:AF313)","v":0},{"$f":"Table1[[#This Row],[عدد الايام ]]*65","v":0},null,null,{"$f":"Table1[[#This Row],[المرتب ]]-(Table1[[#This Row],[السلف ]]+Table1[[#This Row],[الخصم ]])","v":0}]
["محمد صبري محمد حميده",{"$f":"SUM(Salim!C314:AF314)","v":0},{"$f":"Table1[[#This Row],[عدد الايام ]]*65","v":0},null,null,{"$f":"Table1[[#This Row],[المرتب ]]-(Table1[[#This Row],[السلف ]]+Table1[[#This Row],[الخصم ]])","v":0}]
["محمد صبري محمود الشرقاوي",{"$f":"SUM(Salim!C315:AF315)","v":0},{"$f":"Table1[[#This Row],[عدد الايام ]]*65","v":0},null,null,{"$f":"Table1[[#This Row],[المرتب ]]-(Table1[[#This Row],[السلف ]]+Table1[[#This Row],[الخصم ]])","v":0}]
["محمد طارق سعيد محمد",{"$f":"SUM(Salim!C316:AF316)","v":0},{"$f":"Table1[[#This Row],[عدد الايام ]]*65","v":0},null,null,{"$f":"Table1[[#This Row],[المرتب ]]-(Table1[[#This Row],[السلف ]]+Table1[[#This Row],[الخصم ]])","v":0}]
["محمد طلعت سيد عبدالرحيم",{"$f":"SUM(Salim!C317:AF317)","v":0},{"$f":"Table1[[#This Row],[عدد الايام ]]*65","v":0},null,null,{"$f":"Table1[[#This Row],[المرتب ]]-(Table1[[#This Row],[السلف ]]+Table1[[#This Row],[الخصم ]])","v":0}]
["محمد عبدالباسط محمد الطباخ",{"$f":"SUM(Salim!C318:AF318)","v":0},{"$f":"Table1[[#This Row],[عدد الايام ]]*65","v":0},null,null,{"$f":"Table1[[#This Row],[المرتب ]]-(Table1[[#This Row],[السلف ]]+Table1[[#This Row],[الخصم ]])","v":0}]
["محمد عبدالجليل حلاجي عبدالجليل",{"$f":"SUM(Salim!C319:AF319)","v":0},{"$f":"Table1[[#This Row],[عدد الايام ]]*65","v":0},null,null,{"$f":"Table1[[#This Row],[المرتب ]]-(Table1[[#This Row],[السلف ]]+Table1[[#This Row],[الخصم ]])","v":0}]
["محمد عبدالحميد امين هندي",{"$f":"SUM(Salim!C320:AF320)","v":0},{"$f":"Table1[[#This Row],[عدد الايام ]]*65","v":0},null,null,{"$f":"Table1[[#This Row],[المرتب ]]-(Table1[[#This Row],[السلف ]]+Table1[[#This Row],[الخصم ]])","v":0}]
["محمد عبدالرحيم عبدالمنعم",{"$f":"SUM(Salim!C321:AF321)","v":0},{"$f":"Table1[[#This Row],[عدد الايام ]]*65","v":0},null,null,{"$f":"Table1[[#This Row],[المرتب ]]-(Table1[[#This Row],[السلف ]]+Table1[[#This Row],[الخصم ]])","v":0}]
["محمد عبدالعزيز محمد زايد",{"$f":"SUM(Salim!C322:AF322)","v":0},{"$f":"Table1[[#This Row],[عدد الايام ]]*65","v":0},null,null,{"$f":"Table1[[#This Row],[المرتب ]]-(Table1[[#This Row],[السلف ]]+Table1[[#This Row],[الخصم ]])","v":0}]
["محمد عبدالغني جبر غنيم",{"$f":"SUM(Salim!C323:AF323)","v":0},{"$f":"Table1[[#This Row],[عدد الايام ]]*65","v":0},null,null,{"$f":"Table1[[#This Row],[المرتب ]]-(Table1[[#This Row],[السلف ]]+Table1[[#This Row],[الخصم ]])","v":0}]
["محمد عبداللطيف احمد البسيوني",{"$f":"SUM(Salim!C324:AF324)","v":0},{"$f":"Table1[[#This Row],[عدد الايام ]]*65","v":0},null,null,{"$f":"Table1[[#This Row],[المرتب ]]-(Table1[[#This Row],[السلف ]]+Table1[[#This Row],[الخصم ]])","v":0}]
["محمد عبداللطيف محمد عثمان",{"$f":"SUM(Salim!C325:AF325)","v":0},{"$f":"Table1[[#This Row],[عدد الايام ]]*65","v":0},null,null,{"$f":"Table1[[#This Row],[المرتب ]]-(Table1[[#This Row],[السلف ]]+Table1[[#This Row],[الخصم ]])","v":0}]
["محمد عبده الهولي علي",{"$f":"SUM(Salim!C326:AF326)","v":0},{"$f":"Table1[[#This Row],[عدد الايام ]]*65","v":0},null,null,{"$f":"Table1[[#This Row],[المرتب ]]-(Table1[[#This Row],[السلف ]]+Table1[[#This Row],[الخصم ]])","v":0}]
["محمد علي احمد علي مقبول",{"$f":"SUM(Salim!C327:AF327)","v":0},{"$f":"Table1[[#This Row],[عدد الايام ]]*65","v":0},null,null,{"$f":"Table1[[#This Row],[المرتب ]]-(Table1[[#This Row],[السلف ]]+Table1[[#This Row],[الخصم ]])","v":0}]
["محمد علي محمود علي نبيده علي",{"$f":"SUM(Salim!C328:AF328)","v":0},{"$f":"Table1[[#This Row],[عدد الايام ]]*65","v":0},null,null,{"$f":"Table1[[#This Row],[المرتب ]]-(Table1[[#This Row],[السلف ]]+Table1[[#This Row],[الخصم ]])","v":0}]
["محمد عمران حسن محمد",{"$f":"SUM(Salim!C329:AF329)","v":0},{"$f":"Table1[[#This Row],[عدد الايام ]]*65","v":0},null,null,{"$f":"Table1[[#This Row],[المرتب ]]-(Table1[[#This Row],[السلف ]]+Table1[[#This Row],[الخصم ]])","v":0}]
["محمد غريب رفاعي البياع",{"$f":"SUM(Salim!C330:AF330)","v":0},{"$f":"Table1[[#This Row],[عدد الايام ]]*65","v":0},null,null,{"$f":"Table1[[#This Row],[المرتب ]]-(Table1[[#This Row],[السلف ]]+Table1[[#This Row],[الخصم ]])","v":0}]
["محمد فتحي عبدالجليل",{"$f":"SUM(Salim!C331:AF331)","v":0},{"$f":"Table1[[#This Row],[عدد الايام ]]*65","v":0},null,null,{"$f":"Table1[[#This Row],[المرتب ]]-(Table1[[#This Row],[السلف ]]+Table1[[#This Row],[الخصم ]])","v":0}]
["محمد فتحي عبدالمجيد النجار",{"$f":"SUM(Salim!C332:AF332)","v":0},{"$f":"Table1[[#This Row],[عدد الايام ]]*65","v":0},null,null,{"$f":"Table1[[#This Row],[المرتب ]]-(Table1[[#This Row],[السلف ]]+Table1[[#This Row],[الخصم ]])","v":0}]
["محمد فتحي عطية عبدالجليل ",{"$f":"SUM(Salim!C333:AF333)","v":0},{"$f":"Table1[[#This Row],[عدد الايام ]]*65","v":0},null,null,{"$f":"Table1[[#This Row],[المرتب ]]-(Table1[[#This Row],[السلف ]]+Table1[[#This Row],[الخصم ]])","v":0}]
["محمد فتحي فكري احمد",{"$f":"SUM(Salim!C334:AF334)","v":0},{"$f":"Table1[[#This Row],[عدد الايام ]]*65","v":0},null,null,{"$f":"Table1[[#This Row],[المرتب ]]-(Table1[[#This Row],[السلف ]]+Table1[[#This Row],[الخصم ]])","v":0}]
["محمد فتحي فوزي خالد",{"$f":"SUM(Salim!C335:AF335)","v":0},{"$f":"Table1[[#This Row],[عدد الايام ]]*65","v":0},null,null,{"$f":"Table1[[#This Row],[المرتب ]]-(Table1[[#This Row],[السلف ]]+Table1[[#This Row],[الخصم ]])","v":0}]
["محمد فرج عبدالعزيز عبدالسلام",{"$f":"SUM(Salim!C336:AF336)","v":0},{"$f":"Table1[[#This Row],[عدد الايام ]]*65","v":0},null,null,{"$f":"Table1[[#This Row],[المرتب ]]-(Table1[[#This Row],[السلف ]]+Table1[[#This Row],[الخصم ]])","v":0}]
["محمد فوزي صديق موسي",{"$f":"SUM(Salim!C337:AF337)","v":0},{"$f":"Table1[[#This Row],[عدد الايام ]]*65","v":0},null,null,{"$f":"Table1[[#This Row],[المرتب ]]-(Table1[[#This Row],[السلف ]]+Table1[[#This Row],[الخصم ]])","v":0}]
["محمد كمال احمد محمد",{"$f":"SUM(Salim!C338:AF338)","v":0},{"$f":"Table1[[#This Row],[عدد الايام ]]*65","v":0},null,null,{"$f":"Table1[[#This Row],[المرتب ]]-(Table1[[#This Row],[السلف ]]+Table1[[#This Row],[الخصم ]])","v":0}]
["محمد لطفي عطا",{"$f":"SUM(Salim!C339:AF339)","v":0},{"$f":"Table1[[#This Row],[عدد الايام ]]*65","v":0},null,null,{"$f":"Table1[[#This Row],[المرتب ]]-(Table1[[#This Row],[السلف ]]+Table1[[#This Row],[الخصم ]])","v":0}]
["محمد محروس علي عبدالعزيز",{"$f":"SUM(Salim!C340:AF340)","v":0},{"$f":"Table1[[#This Row],[عدد الايام ]]*65","v":0},null,null,{"$f":"Table1[[#This Row],[المرتب ]]-(Table1[[#This Row],[السلف ]]+Table1[[#This Row],[الخصم ]])","v":0}]
["محمد محمود ابراهيم الخولي",{"$f":"SUM(Salim!C341:AF341)","v":0},{"$f":"Table1[[#This Row],[عدد الايام ]]*65","v":0},null,null,{"$f":"Table1[[#This Row],[المرتب ]]-(Table1[[#This Row],[السلف ]]+Table1[[#This Row],[الخصم ]])","v":0}]
["محمد محمود حماده اسماعيل",{"$f":"SUM(Salim!C342:AF342)","v":0},{"$f":"Table1[[#This Row],[عدد الايام ]]*65","v":0},null,null,{"$f":"Table1[[#This Row],[المرتب ]]-(Table1[[#This Row],[السلف ]]+Table1[[#This Row],[الخصم ]])","v":0}]
["محمد محمود عبدالغفار عبدالهادي",{"$f":"SUM(Salim!C343:AF343)","v":0},{"$f":"Table1[[#This Row],[عدد الايام ]]*65","v":0},null,null,{"$f":"Table1[[#This Row],[المرتب ]]-(Table1[[#This Row],[السلف ]]+Table1[[#This Row],[الخصم ]])","v":0}]
["محمد محمود علي محمود",{"$f":"SUM(Salim!C344:AF344)","v":0},{"$f":"Table1[[#This Row],[عدد الايام ]]*65","v":0},null,null,{"$f":"Table1[[#This Row],[المرتب ]]-(Table1[[#This Row],[السلف ]]+Table1[[#This Row],[الخصم ]])","v":0}]
["محمد محمود محمد احمد",{"$f":"SUM(Salim!C345:AF345)","v":0},{"$f":"Table1[[#This Row],[عدد الايام ]]*65","v":0},null,null,{"$f":"Table1[[#This Row],[المرتب ]]-(Table1[[#This Row],[السلف ]]+Table1[[#This Row],[الخصم ]])","v":0}]
["محمد محمود محمد السقا",{"$f":"SUM(Salim!C346:AF346)","v":0},{"$f":"Table1[[#This Row],[عدد الايام ]]*65","v":0},null,null,{"$f":"Table1[[#This Row],[المرتب ]]-(Table1[[#This Row],[السلف ]]+Table1[[#This Row],[الخصم ]])","v":0}]
["محمد مخلص محمد محمد عوض",{"$f":"SUM(Salim!C347:AF347)","v":0},{"$f":"Table1[[#This Row],[عدد الايام ]]*65","v":0},null,null,{"$f":"Table1[[#This Row],[المرتب ]]-(Table1[[#This Row],[السلف ]]+Table1[[#This Row],[الخصم ]])","v":0}]
["محمد ممدوح محمد عبدالجواد",{"$f":"SUM(Salim!C348:AF348)","v":0},{"$f":"Table1[[#This Row],[عدد الايام ]]*65","v":0},null,null,{"$f":"Table1[[#This Row],[المرتب ]]-(Table1[[#This Row],[السلف ]]+Table1[[#This Row],[الخصم ]])","v":0}]
["محمد منصور عبدالمجيد",{"$f":"SUM(Salim!C349:AF349)","v":0},{"$f":"Table1[[#This Row],[عدد الايام ]]*65","v":0},null,null,{"$f":"Table1[[#This Row],[المرتب ]]-(Table1[[#This Row],[السلف ]]+Table1[[#This Row],[الخصم ]])","v":0}]
["محمد مهدي سالم",{"$f":"SUM(Salim!C350:AF350)","v":0},{"$f":"Table1[[#This Row],[عدد الايام ]]*65","v":0},null,null,{"$f":"Table1[[#This Row],[المرتب ]]-(Table1[[#This Row],[السلف ]]+Table1[[#This Row],[الخصم ]])","v":0}]
["محمد ناصر محمد سليم",{"$f":"SUM(Salim!C351:AF351)","v":0},{"$f":"Table1[[#This Row],[عدد الايام ]]*65","v":0},null,null,{"$f":"Table1[[#This Row],[المرتب ]]-(Table1[[#This Row],[السلف ]]+Table1[[#This Row],[الخصم ]])","v":0}]
["محمد ناصرعبداللطيف محمود حسب النبي",{"$f":"SUM(Salim!C352:AF352)","v":0},{"$f":"Table1[[#This Row],[عدد الايام ]]*65","v":0},null,null,{"$f":"Table1[[#This Row],[المرتب ]]-(Table1[[#This Row],[السلف ]]+Table1[[#This Row],[الخصم ]])","v":0}]
["محمد نور خميس السيد",{"$f":"SUM(Salim!C353:AF353)","v":0},{"$f":"Table1[[#This Row],[عدد الايام ]]*65","v":0},null,null,{"$f":"Table1[[#This Row],[المرتب ]]-(Table1[[#This Row],[السلف ]]+Table1[[#This Row],[الخصم ]])","v":0}]
["محمد وليد محمود الشحات",{"$f":"SUM(Salim!C354:AF354)","v":0},{"$f":"Table1[[#This Row],[عدد الايام ]]*65","v":0},null,null,{"$f":"Table1[[#This Row],[المرتب ]]-(Table1[[#This Row],[السلف ]]+Table1[[#This Row],[الخصم ]])","v":0}]
["محمد ياسر محمدعبدالحميد",{"$f":"SUM(Salim!C355:AF355)","v":0},{"$f":"Table1[[#This Row],[عدد الايام ]]*65","v":0},null,null,{"$f":"Table1[[#This Row],[المرتب ]]-(Table1[[#This Row],[السلف ]]+Table1[[#This Row],[الخصم ]])","v":0}]
["محمد يحيي محمد مبروك",{"$f":"SUM(Salim!C356:AF356)","v":0},{"$f":"Table1[[#This Row],[عدد الايام ]]*65","v":0},null,null,{"$f":"Table1[[#This Row],[المرتب ]]-(Table1[[#This Row],[السلف ]]+Table1[[#This Row],[الخصم ]])","v":0}]
["محمد يسري محمد رجب",{"$f":"SUM(Salim!C357:AF357)","v":0},{"$f":"Table1[[#This Row],[عدد الايام ]]*65","v":0},null,null,{"$f":"Table1[[#This Row],[المرتب ]]-(Table1[[#This Row],[السلف ]]+Table1[[#This Row],[الخصم ]])","v":0}]
["محمود ابراهيم عاشور عبدالوهاب",{"$f":"SUM(Salim!C358:AF358)","v":0},{"$f":"Table1[[#This Row],[عدد الايام ]]*65","v":0},null,null,{"$f":"Table1[[#This Row],[المرتب ]]-(Table1[[#This Row],[السلف ]]+Table1[[#This Row],[الخصم ]])","v":0}]
["محمود احمد عبدالمقصود عبدالعاطي",{"$f":"SUM(Salim!C359:AF359)","v":0},{"$f":"Table1[[#This Row],[عدد الايام ]]*65","v":0},null,null,{"$f":"Table1[[#This Row],[المرتب ]]-(Table1[[#This Row],[السلف ]]+Table1[[#This Row],[الخصم ]])","v":0}]
["محمود احمد محمد حمزة",{"$f":"SUM(Salim!C360:AF360)","v":0},{"$f":"Table1[[#This Row],[عدد الايام ]]*65","v":0},null,null,{"$f":"Table1[[#This Row],[المرتب ]]-(Table1[[#This Row],[السلف ]]+Table1[[#This Row],[الخصم ]])","v":0}]
["محمود اشرف محمد محمود",{"$f":"SUM(Salim!C361:AF361)","v":0},{"$f":"Table1[[#This Row],[عدد الايام ]]*65","v":0},null,null,{"$f":"Table1[[#This Row],[المرتب ]]-(Table1[[#This Row],[السلف ]]+Table1[[#This Row],[الخصم ]])","v":0}]
["محمود بغدادي توفيق",{"$f":"SUM(Salim!C362:AF362)","v":0},{"$f":"Table1[[#This Row],[عدد الايام ]]*65","v":0},null,null,{"$f":"Table1[[#This Row],[المرتب ]]-(Table1[[#This Row],[السلف ]]+Table1[[#This Row],[الخصم ]])","v":0}]
["محمود تحسين جاد الرب",{"$f":"SUM(Salim!C363:AF363)","v":0},{"$f":"Table1[[#This Row],[عدد الايام ]]*65","v":0},null,null,{"$f":"Table1[[#This Row],[المرتب ]]-(Table1[[#This Row],[السلف ]]+Table1[[#This Row],[الخصم ]])","v":0}]
["محمود جلال عثمان",{"$f":"SUM(Salim!C364:AF364)","v":0},{"$f":"Table1[[#This Row],[عدد الايام ]]*65","v":0},null,null,{"$f":"Table1[[#This Row],[المرتب ]]-(Table1[[#This Row],[السلف ]]+Table1[[#This Row],[الخصم ]])","v":0}]
["محمود جوده احمد علي",{"$f":"SUM(Salim!C365:AF365)","v":0},{"$f":"Table1[[#This Row],[عدد الايام ]]*65","v":0},null,null,{"$f":"Table1[[#This Row],[المرتب ]]-(Table1[[#This Row],[السلف ]]+Table1[[#This Row],[الخصم ]])","v":0}]
["محمود حسن السيد احمد",{"$f":"SUM(Salim!C366:AF366)","v":0},{"$f":"Table1[[#This Row],[عدد الايام ]]*65","v":0},null,null,{"$f":"Table1[[#This Row],[المرتب ]]-(Table1[[#This Row],[السلف ]]+Table1[[#This Row],[الخصم ]])","v":0}]
["محمود خليل عثمان البربري",{"$f":"SUM(Salim!C367:AF367)","v":0},{"$f":"Table1[[#This Row],[عدد الايام ]]*65","v":0},null,null,{"$f":"Table1[[#This Row],[المرتب ]]-(Table1[[#This Row],[السلف ]]+Table1[[#This Row],[الخصم ]])","v":0}]
["محمود رجب عبدالظاهر ",{"$f":"SUM(Salim!C368:AF368)","v":0},{"$f":"Table1[[#This Row],[عدد الايام ]]*65","v":0},null,null,{"$f":"Table1[[#This Row],[المرتب ]]-(Table1[[#This Row],[السلف ]]+Table1[[#This Row],[الخصم ]])","v":0}]
["محمود رفعت محمدالجزار",{"$f":"SUM(Salim!C369:AF369)","v":0},{"$f":"Table1[[#This Row],[عدد الايام ]]*65","v":0},null,null,{"$f":"Table1[[#This Row],[المرتب ]]-(Table1[[#This Row],[السلف ]]+Table1[[#This Row],[الخصم ]])","v":0}]
["محمود سامي عبدالعزيز",{"$f":"SUM(Salim!C370:AF370)","v":0},{"$f":"Table1[[#This Row],[عدد الايام ]]*65","v":0},null,null,{"$f":"Table1[[#This Row],[المرتب ]]-(Table1[[#This Row],[السلف ]]+Table1[[#This Row],[الخصم ]])","v":0}]
["محمود سعيد نجم ",{"$f":"SUM(Salim!C371:AF371)","v":0},{"$f":"Table1[[#This Row],[عدد الايام ]]*65","v":0},null,null,{"$f":"Table1[[#This Row],[المرتب ]]-(Table1[[#This Row],[السلف ]]+Table1[[#This Row],[الخصم ]])","v":0}]
["محمود صبري محمود الشرقاوي",{"$f":"SUM(Salim!C372:AF372)","v":0},{"$f":"Table1[[#This Row],[عدد الايام ]]*65","v":0},null,null,{"$f":"Table1[[#This Row],[المرتب ]]-(Table1[[#This Row],[السلف ]]+Table1[[#This Row],[الخصم ]])","v":0}]
["محمود عامر محمد متولي",{"$f":"SUM(Salim!C373:AF373)","v":0},{"$f":"Table1[[#This Row],[عدد الايام ]]*65","v":0},null,null,{"$f":"Table1[[#This Row],[المرتب ]]-(Table1[[#This Row],[السلف ]]+Table1[[#This Row],[الخصم ]])","v":0}]
["محمود عبدالسميع السعيد عبدالجواد",{"$f":"SUM(Salim!C374:AF374)","v":0},{"$f":"Table1[[#This Row],[عدد الايام ]]*65","v":0},null,null,{"$f":"Table1[[#This Row],[المرتب ]]-(Table1[[#This Row],[السلف ]]+Table1[[#This Row],[الخصم ]])","v":0}]
["محمود عيد محمد عبدالغني",{"$f":"SUM(Salim!C375:AF375)","v":0},{"$f":"Table1[[#This Row],[عدد الايام ]]*65","v":0},null,null,{"$f":"Table1[[#This Row],[المرتب ]]-(Table1[[#This Row],[السلف ]]+Table1[[#This Row],[الخصم ]])","v":0}]
["محمود فتحي فوزي خالد",{"$f":"SUM(Salim!C376:AF376)","v":0},{"$f":"Table1[[#This Row],[عدد الايام ]]*65","v":0},null,null,{"$f":"Table1[[#This Row],[المرتب ]]-(Table1[[#This Row],[السلف ]]+Table1[[#This Row],[الخصم ]])","v":0}]
["محمود فوزي صديق",{"$f":"SUM(Salim!C377:AF377)","v":0},{"$f":"Table1[[#This Row],[عدد الايام ]]*65","v":0},null,null,{"$f":"Table1[[#This Row],[المرتب ]]-(Table1[[#This Row],[السلف ]]+Table1[[#This Row],[الخصم ]])","v":0}]
["محمود محمد احمدعبدالمقصود",{"$f":"SUM(Salim!C378:AF378)","v":0},{"$f":"Table1[[#This Row],[عدد الايام ]]*65","v":0},null,null,{"$f":"Table1[[#This Row],[المرتب ]]-(Table1[[#This Row],[السلف ]]+Table1[[#This Row],[الخصم ]])","v":0}]
["محمود محمد محمد الشرباصي",{"$f":"SUM(Salim!C379:AF379)","v":0},{"$f":"Table1[[#This Row],[عدد الايام ]]*65","v":0},null,null,{"$f":"Table1[[#This Row],[المرتب ]]-(Table1[[#This Row],[السلف ]]+Table1[[#This Row],[الخصم ]])","v":0}]
["محمود نمر وهيب ادم",{"$f":"SUM(Salim!C380:AF380)","v":0},{"$f":"Table1[[#This Row],[عدد الايام ]]*65","v":0},null,null,{"$f":"Table1[[#This Row],[المرتب ]]-(Table1[[#This Row],[السلف ]]+Table1[[#This Row],[الخصم ]])","v":0}]
["محمود يوسف جامع احمد",{"$f":"SUM(Salim!C381:AF381)","v":0},{"$f":"Table1[[#This Row],[عدد الايام ]]*65","v":0},null,null,{"$f":"Table1[[#This Row],[المرتب ]]-(Table1[[#This Row],[السلف ]]+Table1[[#This Row],[الخصم ]])","v":0}]
["محمود يوسف محمود مهدي",{"$f":"SUM(Salim!C382:AF382)","v":0},{"$f":"Table1[[#This Row],[عدد الايام ]]*65","v":0},null,null,{"$f":"Table1[[#This Row],[المرتب ]]-(Table1[[#This Row],[السلف ]]+Table1[[#This Row],[الخصم ]])","v":0}]
["مختار علي محمد عبدالخالق",{"$f":"SUM(Salim!C383:AF383)","v":0},{"$f":"Table1[[#This Row],[عدد الايام ]]*65","v":0},null,null,{"$f":"Table1[[#This Row],[المرتب ]]-(Table1[[#This Row],[السلف ]]+Table1[[#This Row],[الخصم ]])","v":0}]
["مختار محمد محمود محمد حسن",{"$f":"SUM(Salim!C384:AF384)","v":0},{"$f":"Table1[[#This Row],[عدد الايام ]]*65","v":0},null,null,{"$f":"Table1[[#This Row],[المرتب ]]-(Table1[[#This Row],[السلف ]]+Table1[[#This Row],[الخصم ]])","v":0}]
["مصطفي احمد عبدالحميد عبدالمنصف",{"$f":"SUM(Salim!C385:AF385)","v":0},{"$f":"Table1[[#This Row],[عدد الايام ]]*65","v":0},null,null,{"$f":"Table1[[#This Row],[المرتب ]]-(Table1[[#This Row],[السلف ]]+Table1[[#This Row],[الخصم ]])","v":0}]
["مصطفي احمد عيد عبدالحميد",{"$f":"SUM(Salim!C386:AF386)","v":0},{"$f":"Table1[[#This Row],[عدد الايام ]]*65","v":0},null,null,{"$f":"Table1[[#This Row],[المرتب ]]-(Table1[[#This Row],[السلف ]]+Table1[[#This Row],[الخصم ]])","v":0}]
["مصطفي اسماعيل اسماعيل  ",{"$f":"SUM(Salim!C387:AF387)","v":0},{"$f":"Table1[[#This Row],[عدد الايام ]]*65","v":0},null,null,{"$f":"Table1[[#This Row],[المرتب ]]-(Table1[[#This Row],[السلف ]]+Table1[[#This Row],[الخصم ]])","v":0}]
["مصطفي ايهاب محمد عبدالعليم",{"$f":"SUM(Salim!C388:AF388)","v":0},{"$f":"Table1[[#This Row],[عدد الايام ]]*65","v":0},null,null,{"$f":"Table1[[#This Row],[المرتب ]]-(Table1[[#This Row],[السلف ]]+Table1[[#This Row],[الخصم ]])","v":0}]
["مصطفي سمير ابراهيم رزق",{"$f":"SUM(Salim!C389:AF389)","v":0},{"$f":"Table1[[#This Row],[عدد الايام ]]*65","v":0},null,null,{"$f":"Table1[[#This Row],[المرتب ]]-(Table1[[#This Row],[السلف ]]+Table1[[#This Row],[الخصم ]])","v":0}]
["مصطفي صلاح عباس",{"$f":"SUM(Salim!C390:AF390)","v":0},{"$f":"Table1[[#This Row],[عدد الايام ]]*65","v":0},null,null,{"$f":"Table1[[#This Row],[المرتب ]]-(Table1[[#This Row],[السلف ]]+Table1[[#This Row],[الخصم ]])","v":0}]
["مصطفي عبدالحميد عبدالمنصف",{"$f":"SUM(Salim!C391:AF391)","v":0},{"$f":"Table1[[#This Row],[عدد الايام ]]*65","v":0},null,null,{"$f":"Table1[[#This Row],[المرتب ]]-(Table1[[#This Row],[السلف ]]+Table1[[#This Row],[الخصم ]])","v":0}]
["مصطفي عبدالقادر مبروك",{"$f":"SUM(Salim!C392:AF392)","v":0},{"$f":"Table1[[#This Row],[عدد الايام ]]*65","v":0},null,null,{"$f":"Table1[[#This Row],[المرتب ]]-(Table1[[#This Row],[السلف ]]+Table1[[#This Row],[الخصم ]])","v":0}]
["مصطفي محمد محمد دراز",{"$f":"SUM(Salim!C393:AF393)","v":0},{"$f":"Table1[[#This Row],[عدد الايام ]]*65","v":0},null,null,{"$f":"Table1[[#This Row],[المرتب ]]-(Table1[[#This Row],[السلف ]]+Table1[[#This Row],[الخصم ]])","v":0}]
["مصطفي محمود حافظ عاشور",{"$f":"SUM(Salim!C394:AF394)","v":0},{"$f":"Table1[[#This Row],[عدد الايام ]]*65","v":0},null,null,{"$f":"Table1[[#This Row],[المرتب ]]-(Table1[[#This Row],[السلف ]]+Table1[[#This Row],[الخصم ]])","v":0}]
["مصطفي ناصر ثابت علي",{"$f":"SUM(Salim!C395:AF395)","v":0},{"$f":"Table1[[#This Row],[عدد الايام ]]*65","v":0},null,null,{"$f":"Table1[[#This Row],[المرتب ]]-(Table1[[#This Row],[السلف ]]+Table1[[#This Row],[الخصم ]])","v":0}]
["معاز ممدوح ابراهيم جويده",{"$f":"SUM(Salim!C396:AF396)","v":0},{"$f":"Table1[[#This Row],[عدد الايام ]]*65","v":0},null,null,{"$f":"Table1[[#This Row],[المرتب ]]-(Table1[[#This Row],[السلف ]]+Table1[[#This Row],[الخصم ]])","v":0}]
["معتز سمير عبدربه محمد",{"$f":"SUM(Salim!C397:AF397)","v":0},{"$f":"Table1[[#This Row],[عدد الايام ]]*65","v":0},null,null,{"$f":"Table1[[#This Row],[المرتب ]]-(Table1[[#This Row],[السلف ]]+Table1[[#This Row],[الخصم ]])","v":0}]
["مؤمن نور فتحي بدر",{"$f":"SUM(Salim!C398:AF398)","v":0},{"$f":"Table1[[#This Row],[عدد الايام ]]*65","v":0},null,null,{"$f":"Table1[[#This Row],[المرتب ]]-(Table1[[#This Row],[السلف ]]+Table1[[#This Row],[الخصم ]])","v":0}]
["مينا ميلاد بباوي جبرايل",{"$f":"SUM(Salim!C399:AF399)","v":0},{"$f":"Table1[[#This Row],[عدد الايام ]]*65","v":0},null,null,{"$f":"Table1[[#This Row],[المرتب ]]-(Table1[[#This Row],[السلف ]]+Table1[[#This Row],[الخصم ]])","v":0}]
["نادر الشحات بدير الشحات",{"$f":"SUM(Salim!C400:AF400)","v":0},{"$f":"Table1[[#This Row],[عدد الايام ]]*65","v":0},null,null,{"$f":"Table1[[#This Row],[المرتب ]]-(Table1[[#This Row],[السلف ]]+Table1[[#This Row],[الخصم ]])","v":0}]
["نورالدين سيد معروف علي",{"$f":"SUM(Salim!C401:AF401)","v":0},{"$f":"Table1[[#This Row],[عدد الايام ]]*65","v":0},null,null,{"$f":"Table1[[#This Row],[المرتب ]]-(Table1[[#This Row],[السلف ]]+Table1[[#This Row],[الخصم ]])","v":0}]
["هاني سعد ابراهيم محارب",{"$f":"SUM(Salim!C402:AF402)","v":0},{"$f":"Table1[[#This Row],[عدد الايام ]]*65","v":0},null,null,{"$f":"Table1[[#This Row],[المرتب ]]-(Table1[[#This Row],[السلف ]]+Table1[[#This Row],[الخصم ]])","v":0}]
["هاني عبدالحي عيد حسن",{"$f":"SUM(Salim!C403:AF403)","v":0},{"$f":"Table1[[#This Row],[عدد الايام ]]*65","v":0},null,null,{"$f":"Table1[[#This Row],[المرتب ]]-(Table1[[#This Row],[السلف ]]+Table1[[#This Row],[الخصم ]])","v":0}]
["هديره طه عبدالهادي قنديل",{"$f":"SUM(Salim!C404:AF404)","v":0},{"$f":"Table1[[#This Row],[عدد الايام ]]*65","v":0},null,null,{"$f":"Table1[[#This Row],[المرتب ]]-(Table1[[#This Row],[السلف ]]+Table1[[#This Row],[الخصم ]])","v":0}]
["هشام سعيد صبحي عبدالعزيز",{"$f":"SUM(Salim!C405:AF405)","v":0},{"$f":"Table1[[#This Row],[عدد الايام ]]*65","v":0},null,null,{"$f":"Table1[[#This Row],[المرتب ]]-(Table1[[#This Row],[السلف ]]+Table1[[#This Row],[الخصم ]])","v":0}]
["هشام صابر سليم ادم",{"$f":"SUM(Salim!C406:AF406)","v":0},{"$f":"Table1[[#This Row],[عدد الايام ]]*65","v":0},null,null,{"$f":"Table1[[#This Row],[المرتب ]]-(Table1[[#This Row],[السلف ]]+Table1[[#This Row],[الخصم ]])","v":0}]
["هشام فتحي خليل المنوفي",{"$f":"SUM(Salim!C407:AF407)","v":0},{"$f":"Table1[[#This Row],[عدد الايام ]]*65","v":0},null,null,{"$f":"Table1[[#This Row],[المرتب ]]-(Table1[[#This Row],[السلف ]]+Table1[[#This Row],[الخصم ]])","v":0}]
["واءل رجب فنح الله حماده",{"$f":"SUM(Salim!C408:AF408)","v":0},{"$f":"Table1[[#This Row],[عدد الايام ]]*65","v":0},null,null,{"$f":"Table1[[#This Row],[المرتب ]]-(Table1[[#This Row],[السلف ]]+Table1[[#This Row],[الخصم ]])","v":0}]
["ياسر محمد ابراهيم سيد",{"$f":"SUM(Salim!C409:AF409)","v":0},{"$f":"Table1[[#This Row],[عدد الايام ]]*65","v":0},null,null,{"$f":"Table1[[#This Row],[المرتب ]]-(Table1[[#This Row],[السلف ]]+Table1[[#This Row],[الخصم ]])","v":0}]
["ياسر محمد محمد عباده",{"$f":"SUM(Salim!C410:AF410)","v":0},{"$f":"Table1[[#This Row],[عدد الايام ]]*65","v":0},null,null,{"$f":"Table1[[#This Row],[المرتب ]]-(Table1[[#This Row],[السلف ]]+Table1[[#This Row],[الخصم ]])","v":0}]
["يحي محمد عبدالكريم الاعرج",{"$f":"SUM(Salim!C411:AF411)","v":0},{"$f":"Table1[[#This Row],[عدد الايام ]]*65","v":0},null,null,{"$f":"Table1[[#This Row],[المرتب ]]-(Table1[[#This Row],[السلف ]]+Table1[[#This Row],[الخصم ]])","v":0}]
["يحيي فتحي محمد عبدالله راشد",{"$f":"SUM(Salim!C412:AF412)","v":0},{"$f":"Table1[[#This Row],[عدد الايام ]]*65","v":0},null,null,{"$f":"Table1[[#This Row],[المرتب ]]-(Table1[[#This Row],[السلف ]]+Table1[[#This Row],[الخصم ]])","v":0}]
["يوسف احمد السيد",{"$f":"SUM(Salim!C413:AF413)","v":0},{"$f":"Table1[[#This Row],[عدد الايام ]]*65","v":0},null,null,{"$f":"Table1[[#This Row],[المرتب ]]-(Table1[[#This Row],[السلف ]]+Table1[[#This Row],[الخصم ]])","v":0}]
["يوسف الجمل علي كمال الدين",{"$f":"SUM(Salim!C414:AF414)","v":0},{"$f":"Table1[[#This Row],[عدد الايام ]]*65","v":0},null,null,{"$f":"Table1[[#This Row],[المرتب ]]-(Table1[[#This Row],[السلف ]]+Table1[[#This Row],[الخصم ]])","v":0}]
["يوسف حسين فرحات",{"$f":"SUM(Salim!C415:AF415)","v":14},{"$f":"Table1[[#This Row],[عدد الايام ]]*65","v":910},null,null,{"$f":"Table1[[#This Row],[المرتب ]]-(Table1[[#This Row],[السلف ]]+Table1[[#This Row],[الخصم ]])","v":910}]
["يوسف شعبان عبدالمنعم",{"$f":"SUM(Salim!C416:AF416)","v":0},{"$f":"Table1[[#This Row],[عدد الايام ]]*65","v":0},null,null,{"$f":"Table1[[#This Row],[المرتب ]]-(Table1[[#This Row],[السلف ]]+Table1[[#This Row],[الخصم ]])","v":0}]
["يونس الجمل علي كمال",{"$f":"SUM(Salim!C417:AF417)","v":0},{"$f":"Table1[[#This Row],[عدد الايام ]]*65","v":0},null,null,{"$f":"Table1[[#This Row],[المرتب ]]-(Table1[[#This Row],[السلف ]]+Table1[[#This Row],[الخصم ]])","v":0}]
[null,{"$f":"SUM(Salim!C418:AF418)","v":0},{"$f":"Table1[[#This Row],[عدد الايام ]]*65","v":0},null,null,{"$f":"Table1[[#This Row],[المرتب ]]-(Table1[[#This Row],[السلف ]]+Table1[[#This Row],[الخصم ]])","v":0}]
[null,{"$f":"SUM(Salim!C419:AF419)","v":0},{"$f":"Table1[[#This Row],[عدد الايام ]]*65","v":0},null,null,{"$f":"Table1[[#This Row],[المرتب ]]-(Table1[[#This Row],[السلف ]]+Table1[[#This Row],[الخصم ]])","v":0}]
[null,{"$f":"SUM(Salim!C420:AF420)","v":0},{"$f":"Table1[[#This Row],[عدد الايام ]]*65","v":0},null,null,{"$f":"Table1[[#This Row],[المرتب ]]-(Table1[[#This Row],[السلف ]]+Table1[[#This Row],[الخصم ]])","v":0}]
[null,{"$f":"SUM(Salim!C421:AF421)","v":0},{"$f":"Table1[[#This Row],[عدد الايام ]]*65","v":0},null,null,{"$f":"Table1[[#This Row],[المرتب ]]-(Table1[[#This Row],[السلف ]]+Table1[[#This Row],[الخصم ]])","v":0}]
[null,{"$f":"SUM(Salim!C422:AF422)","v":0},{"$f":"Table1[[#This Row],[عدد الايام ]]*65","v":0},null,null,{"$f":"Table1[[#This Row],[المرتب ]]-(Table1[[#This Row],[السلف ]]+Table1[[#This Row],[الخصم ]])","v":0}]
[null,{"$f":"SUM(Salim!C423:AF423)","v":0},{"$f":"Table1[[#This Row],[عدد الايام ]]*65","v":0},null,null,{"$f":"Table1[[#This Row],[المرتب ]]-(Table1[[#This Row],[السلف ]]+Table1[[#This Row],[الخصم ]])","v":0}]
[null,{"$f":"SUM(Salim!C424:AF424)","v":0},{"$f":"Table1[[#This Row],[عدد الايام ]]*65","v":0},null,null,{"$f":"Table1[[#This Row],[المرتب ]]-(Table1[[#This Row],[السلف ]]+Table1[[#This Row],[الخصم ]])","v":0}]
[null,{"$f":"SUM(Salim!C425:AF425)","v":0},{"$f":"Table1[[#This Row],[عدد الايام ]]*65","v":0},null,null,{"$f":"Table1[[#This Row],[المرتب ]]-(Table1[[#This Row],[السلف ]]+Table1[[#This Row],[الخصم ]])","v":0}]
[null,{"$f":"SUM(Salim!C426:AF426)","v":0},{"$f":"Table1[[#This Row],[عدد الايام ]]*65","v":0},null,null,{"$f":"Table1[[#This Row],[المرتب ]]-(Table1[[#This Row],[السلف ]]+Table1[[#This Row],[الخصم ]])","v":0}]
[null,{"$f":"SUM(Salim!C427:AF427)","v":0},{"$f":"Table1[[#This Row],[عدد الايام ]]*65","v":0},null,null,{"$f":"Table1[[#This Row],[المرتب ]]-(Table1[[#This Row],[السلف ]]+Table1[[#This Row],[الخصم ]])","v":0}]
[null,{"$f":"SUM(Salim!C428:AF428)","v":0},{"$f":"Table1[[#This Row],[عدد الايام ]]*65","v":0},null,null,{"$f":"Table1[[#This Row],[المرتب ]]-(Table1[[#This Row],[السلف ]]+Table1[[#This Row],[الخصم ]])","v":0}]
[null,{"$f":"SUM(Salim!C429:AF429)","v":0},{"$f":"Table1[[#This Row],[عدد الايام ]]*65","v":0},null,null,{"$f":"Table1[[#This Row],[المرتب ]]-(Table1[[#This Row],[السلف ]]+Table1[[#This Row],[الخصم ]])","v":0}]
[null,{"$f":"SUM(Salim!C430:AF430)","v":0},{"$f":"Table1[[#This Row],[عدد الايام ]]*65","v":0},null,null,{"$f":"Table1[[#This Row],[المرتب ]]-(Table1[[#This Row],[السلف ]]+Table1[[#This Row],[الخصم ]])","v":0}]
[null,{"$f":"SUM(Salim!C431:AF431)","v":0},{"$f":"Table1[[#This Row],[عدد الايام ]]*65","v":0},null,null,{"$f":"Table1[[#This Row],[المرتب ]]-(Table1[[#This Row],[السلف ]]+Table1[[#This Row],[الخصم ]])","v":0}]
[null,{"$f":"SUM(Salim!C432:AF432)","v":0},{"$f":"Table1[[#This Row],[عدد الايام ]]*65","v":0},null,null,{"$f":"Table1[[#This Row],[المرتب ]]-(Table1[[#This Row],[السلف ]]+Table1[[#This Row],[الخصم ]])","v":0}]
[null,{"$f":"SUM(Salim!C433:AF433)","v":0},{"$f":"Table1[[#This Row],[عدد الايام ]]*65","v":0},null,null,{"$f":"Table1[[#This Row],[المرتب ]]-(Table1[[#This Row],[السلف ]]+Table1[[#This Row],[الخصم ]])","v":0}]
[null,{"$f":"SUM(Salim!C434:AF434)","v":0},{"$f":"Table1[[#This Row],[عدد الايام ]]*65","v":0},null,null,{"$f":"Table1[[#This Row],[المرتب ]]-(Table1[[#This Row],[السلف ]]+Table1[[#This Row],[الخصم ]])","v":0}]
[null,{"$f":"SUM(Salim!C435:AF435)","v":0},{"$f":"Table1[[#This Row],[عدد الايام ]]*65","v":0},null,null,{"$f":"Table1[[#This Row],[المرتب ]]-(Table1[[#This Row],[السلف ]]+Table1[[#This Row],[الخصم ]])","v":0}]
[null,{"$f":"SUM(Salim!C436:AF436)","v":0},{"$f":"Table1[[#This Row],[عدد الايام ]]*65","v":0},null,null,{"$f":"Table1[[#This Row],[المرتب ]]-(Table1[[#This Row],[السلف ]]+Table1[[#This Row],[الخصم ]])","v":0}]
[null,{"$f":"SUM(Salim!C437:AF437)","v":0},{"$f":"Table1[[#This Row],[عدد الايام ]]*65","v":0},null,null,{"$f":"Table1[[#This Row],[المرتب ]]-(Table1[[#This Row],[السلف ]]+Table1[[#This Row],[الخصم ]])","v":0}]
[null,{"$f":"SUM(Salim!C438:AF438)","v":0},{"$f":"Table1[[#This Row],[عدد الايام ]]*65","v":0},null,null,{"$f":"Table1[[#This Row],[المرتب ]]-(Table1[[#This Row],[السلف ]]+Table1[[#This Row],[الخصم ]])","v":0}]
[null,{"$f":"SUM(Salim!C439:AF439)","v":0},{"$f":"Table1[[#This Row],[عدد الايام ]]*65","v":0},null,null,{"$f":"Table1[[#This Row],[المرتب ]]-(Table1[[#This Row],[السلف ]]+Table1[[#This Row],[الخصم ]])","v":0}]
[null,{"$f":"SUM(Salim!C440:AF440)","v":0},{"$f":"Table1[[#This Row],[عدد الايام ]]*65","v":0},null,null,{"$f":"Table1[[#This Row],[المرتب ]]-(Table1[[#This Row],[السلف ]]+Table1[[#This Row],[الخصم ]])","v":0}]
[null,{"$f":"SUM(Salim!C441:AF441)","v":0},{"$f":"Table1[[#This Row],[عدد الايام ]]*65","v":0},null,null,{"$f":"Table1[[#This Row],[المرتب ]]-(Table1[[#This Row],[السلف ]]+Table1[[#This Row],[الخصم ]])","v":0}]
[null,{"$f":"SUM(Salim!C442:AF442)","v":0},{"$f":"Table1[[#This Row],[عدد الايام ]]*65","v":0},null,null,{"$f":"Table1[[#This Row],[المرتب ]]-(Table1[[#This Row],[السلف ]]+Table1[[#This Row],[الخصم ]])","v":0}]
[null,{"$f":"SUM(Salim!C443:AF443)","v":0},{"$f":"Table1[[#This Row],[عدد الايام ]]*65","v":0},null,null,{"$f":"Table1[[#This Row],[المرتب ]]-(Table1[[#This Row],[السلف ]]+Table1[[#This Row],[الخصم ]])","v":0}]
[null,{"$f":"SUM(Salim!C444:AF444)","v":0},{"$f":"Table1[[#This Row],[عدد الايام ]]*65","v":0},null,null,{"$f":"Table1[[#This Row],[المرتب ]]-(Table1[[#This Row],[السلف ]]+Table1[[#This Row],[الخصم ]])","v":0}]
[null,{"$f":"SUM(Salim!C445:AF445)","v":0},{"$f":"Table1[[#This Row],[عدد الايام ]]*65","v":0},null,null,{"$f":"Table1[[#This Row],[المرتب ]]-(Table1[[#This Row],[السلف ]]+Table1[[#This Row],[الخصم ]])","v":0}]
[null,{"$f":"SUM(Salim!C446:AF446)","v":0},{"$f":"Table1[[#This Row],[عدد الايام ]]*65","v":0},null,null,{"$f":"Table1[[#This Row],[المرتب ]]-(Table1[[#This Row],[السلف ]]+Table1[[#This Row],[الخصم ]])","v":0}]
[null,{"$f":"SUM(Salim!C447:AF447)","v":0},{"$f":"Table1[[#This Row],[عدد الايام ]]*65","v":0},null,null,{"$f":"Table1[[#This Row],[المرتب ]]-(Table1[[#This Row],[السلف ]]+Table1[[#This Row],[الخصم ]])","v":0}]
[null,{"$f":"SUM(Salim!C448:AF448)","v":0},{"$f":"Table1[[#This Row],[عدد الايام ]]*65","v":0},null,null,{"$f":"Table1[[#This Row],[المرتب ]]-(Table1[[#This Row],[السلف ]]+Table1[[#This Row],[الخصم ]])","v":0}]
[null,{"$f":"SUM(Salim!C449:AF449)","v":0},{"$f":"Table1[[#This Row],[عدد الايام ]]*65","v":0},null,null,{"$f":"Table1[[#This Row],[المرتب ]]-(Table1[[#This Row],[السلف ]]+Table1[[#This Row],[الخصم ]])","v":0}]
[null,{"$f":"SUM(Salim!C450:AF450)","v":0},{"$f":"Table1[[#This Row],[عدد الايام ]]*65","v":0},null,null,{"$f":"Table1[[#This Row],[المرتب ]]-(Table1[[#This Row],[السلف ]]+Table1[[#This Row],[الخصم ]])","v":0}]
[null,{"$f":"SUM(Salim!C451:AF451)","v":0},{"$f":"Table1[[#This Row],[عدد الايام ]]*65","v":0},null,null,{"$f":"Table1[[#This Row],[المرتب ]]-(Table1[[#This Row],[السلف ]]+Table1[[#This Row],[الخصم ]])","v":0}]
[null,{"$f":"SUM(Salim!C452:AF452)","v":0},{"$f":"Table1[[#This Row],[عدد الايام ]]*65","v":0},null,null,{"$f":"Table1[[#This Row],[المرتب ]]-(Table1[[#This Row],[السلف ]]+Table1[[#This Row],[الخصم ]])","v":0}]
[null,{"$f":"SUM(Salim!C453:AF453)","v":0},{"$f":"Table1[[#This Row],[عدد الايام ]]*65","v":0},null,null,{"$f":"Table1[[#This Row],[المرتب ]]-(Table1[[#This Row],[السلف ]]+Table1[[#This Row],[الخصم ]])","v":0}]
[null,{"$f":"SUM(Salim!C454:AF454)","v":0},{"$f":"Table1[[#This Row],[عدد الايام ]]*65","v":0},null,null,{"$f":"Table1[[#This Row],[المرتب ]]-(Table1[[#This Row],[السلف ]]+Table1[[#This Row],[الخصم ]])","v":0}]
[null,{"$f":"SUM(Salim!C455:AF455)","v":0},{"$f":"Table1[[#This Row],[عدد الايام ]]*65","v":0},null,null,{"$f":"Table1[[#This Row],[المرتب ]]-(Table1[[#This Row],[السلف ]]+Table1[[#This Row],[الخصم ]])","v":0}]
[null,{"$f":"SUM(Salim!C456:AF456)","v":0},{"$f":"Table1[[#This Row],[عدد الايام ]]*65","v":0},null,null,{"$f":"Table1[[#This Row],[المرتب ]]-(Table1[[#This Row],[السلف ]]+Table1[[#This Row],[الخصم ]])","v":0}]
[null,{"$f":"SUM(Salim!C457:AF457)","v":0},{"$f":"Table1[[#This Row],[عدد الايام ]]*65","v":0},null,null,{"$f":"Table1[[#This Row],[المرتب ]]-(Table1[[#This Row],[السلف ]]+Table1[[#This Row],[الخصم ]])","v":0}]
[null,{"$f":"SUM(Salim!C458:AF458)","v":0},{"$f":"Table1[[#This Row],[عدد الايام ]]*65","v":0},null,null,{"$f":"Table1[[#This Row],[المرتب ]]-(Table1[[#This Row],[السلف ]]+Table1[[#This Row],[الخصم ]])","v":0}]
[null,{"$f":"SUM(Salim!C459:AF459)","v":0},{"$f":"Table1[[#This Row],[عدد الايام ]]*65","v":0},null,null,{"$f":"Table1[[#This Row],[المرتب ]]-(Table1[[#This Row],[السلف ]]+Table1[[#This Row],[الخصم ]])","v":0}]
[null,{"$f":"SUM(Salim!C460:AF460)","v":0},{"$f":"Table1[[#This Row],[عدد الايام ]]*65","v":0},null,null,{"$f":"Table1[[#This Row],[المرتب ]]-(Table1[[#This Row],[السلف ]]+Table1[[#This Row],[الخصم ]])","v":0}]
[null,{"$f":"SUM(Salim!C461:AF461)","v":0},{"$f":"Table1[[#This Row],[عدد الايام ]]*65","v":0},null,null,{"$f":"Table1[[#This Row],[المرتب ]]-(Table1[[#This Row],[السلف ]]+Table1[[#This Row],[الخصم ]])","v":0}]
[null,{"$f":"SUM(Salim!C462:AF462)","v":0},{"$f":"Table1[[#This Row],[عدد الايام ]]*65","v":0},null,null,{"$f":"Table1[[#This Row],[المرتب ]]-(Table1[[#This Row],[السلف ]]+Table1[[#This Row],[الخصم ]])","v":0}]
[null,{"$f":"SUM(Salim!C463:AF463)","v":0},{"$f":"Table1[[#This Row],[عدد الايام ]]*65","v":0},null,null,{"$f":"Table1[[#This Row],[المرتب ]]-(Table1[[#This Row],[السلف ]]+Table1[[#This Row],[الخصم ]])","v":0}]
[null,{"$f":"SUM(Salim!C464:AF464)","v":0},{"$f":"Table1[[#This Row],[عدد الايام ]]*65","v":0},null,null,{"$f":"Table1[[#This Row],[المرتب ]]-(Table1[[#This Row],[السلف ]]+Table1[[#This Row],[الخصم ]])","v":0}]
[null,{"$f":"SUM(Salim!C465:AF465)","v":0},{"$f":"Table1[[#This Row],[عدد الايام ]]*65","v":0},null,null,{"$f":"Table1[[#This Row],[المرتب ]]-(Table1[[#This Row],[السلف ]]+Table1[[#This Row],[الخصم ]])","v":0}]
[null,{"$f":"SUM(Salim!C466:AF466)","v":0},{"$f":"Table1[[#This Row],[عدد الايام ]]*65","v":0},null,null,{"$f":"Table1[[#This Row],[المرتب ]]-(Table1[[#This Row],[السلف ]]+Table1[[#This Row],[الخصم ]])","v":0}]
[null,{"$f":"SUM(Salim!C467:AF467)","v":0},{"$f":"Table1[[#This Row],[عدد الايام ]]*65","v":0},null,null,{"$f":"Table1[[#This Row],[المرتب ]]-(Table1[[#This Row],[السلف ]]+Table1[[#This Row],[الخصم ]])","v":0}]
[null,{"$f":"SUM(Salim!C468:AF468)","v":0},{"$f":"Table1[[#This Row],[عدد الايام ]]*65","v":0},null,null,{"$f":"Table1[[#This Row],[المرتب ]]-(Table1[[#This Row],[السلف ]]+Table1[[#This Row],[الخصم ]])","v":0}]
[null,{"$f":"SUM(Salim!C469:AF469)","v":0},{"$f":"Table1[[#This Row],[عدد الايام ]]*65","v":0},null,null,{"$f":"Table1[[#This Row],[المرتب ]]-(Table1[[#This Row],[السلف ]]+Table1[[#This Row],[الخصم ]])","v":0}]
[null,{"$f":"SUM(Salim!C470:AF470)","v":0},{"$f":"Table1[[#This Row],[عدد الايام ]]*65","v":0},null,null,{"$f":"Table1[[#This Row],[المرتب ]]-(Table1[[#This Row],[السلف ]]+Table1[[#This Row],[الخصم ]])","v":0}]
[null,{"$f":"SUM(Salim!C471:AF471)","v":0},{"$f":"Table1[[#This Row],[عدد الايام ]]*65","v":0},null,null,{"$f":"Table1[[#This Row],[المرتب ]]-(Table1[[#This Row],[السلف ]]+Table1[[#This Row],[الخصم ]])","v":0}]
[null,{"$f":"SUM(Salim!C472:AF472)","v":0},{"$f":"Table1[[#This Row],[عدد الايام ]]*65","v":0},null,null,{"$f":"Table1[[#This Row],[المرتب ]]-(Table1[[#This Row],[السلف ]]+Table1[[#This Row],[الخصم ]])","v":0}]
[null,{"$f":"SUM(Salim!C473:AF473)","v":0},{"$f":"Table1[[#This Row],[عدد الايام ]]*65","v":0},null,null,{"$f":"Table1[[#This Row],[المرتب ]]-(Table1[[#This Row],[السلف ]]+Table1[[#This Row],[الخصم ]])","v":0}]
[null,{"$f":"SUM(Salim!C474:AF474)","v":0},{"$f":"Table1[[#This Row],[عدد الايام ]]*65","v":0},null,null,{"$f":"Table1[[#This Row],[المرتب ]]-(Table1[[#This Row],[السلف ]]+Table1[[#This Row],[الخصم ]])","v":0}]
[null,{"$f":"SUM(Salim!C475:AF475)","v":0},{"$f":"Table1[[#This Row],[عدد الايام ]]*65","v":0},null,null,{"$f":"Table1[[#This Row],[المرتب ]]-(Table1[[#This Row],[السلف ]]+Table1[[#This Row],[الخصم ]])","v":0}]
[null,{"$f":"SUM(Salim!C476:AF476)","v":0},{"$f":"Table1[[#This Row],[عدد الايام ]]*65","v":0},null,null,{"$f":"Table1[[#This Row],[المرتب ]]-(Table1[[#This Row],[السلف ]]+Table1[[#This Row],[الخصم ]])","v":0}]
[null,{"$f":"SUM(Salim!C477:AF477)","v":0},{"$f":"Table1[[#This Row],[عدد الايام ]]*65","v":0},null,null,{"$f":"Table1[[#This Row],[المرتب ]]-(Table1[[#This Row],[السلف ]]+Table1[[#This Row],[الخصم ]])","v":0}]
[null,{"$f":"SUM(Salim!C478:AF478)","v":0},{"$f":"Table1[[#This Row],[عدد الايام ]]*65","v":0},null,null,{"$f":"Table1[[#This Row],[المرتب ]]-(Table1[[#This Row],[السلف ]]+Table1[[#This Row],[الخصم ]])","v":0}]
[null,{"$f":"SUM(Salim!C479:AF479)","v":0},{"$f":"Table1[[#This Row],[عدد الايام ]]*65","v":0},null,null,{"$f":"Table1[[#This Row],[المرتب ]]-(Table1[[#This Row],[السلف ]]+Table1[[#This Row],[الخصم ]])","v":0}]
[null,{"$f":"SUM(Salim!C480:AF480)","v":0},{"$f":"Table1[[#This Row],[عدد الايام ]]*65","v":0},null,null,{"$f":"Table1[[#This Row],[المرتب ]]-(Table1[[#This Row],[السلف ]]+Table1[[#This Row],[الخصم ]])","v":0}]
[null,{"$f":"SUM(Salim!C481:AF481)","v":0},{"$f":"Table1[[#This Row],[عدد الايام ]]*65","v":0},null,null,{"$f":"Table1[[#This Row],[المرتب ]]-(Table1[[#This Row],[السلف ]]+Table1[[#This Row],[الخصم ]])","v":0}]
[null,{"$f":"SUM(Salim!C482:AF482)","v":0},{"$f":"Table1[[#This Row],[عدد الايام ]]*65","v":0},null,null,{"$f":"Table1[[#This Row],[المرتب ]]-(Table1[[#This Row],[السلف ]]+Table1[[#This Row],[الخصم ]])","v":0}]
[null,{"$f":"SUM(Salim!C483:AF483)","v":0},{"$f":"Table1[[#This Row],[عدد الايام ]]*65","v":0},null,null,{"$f":"Table1[[#This Row],[المرتب ]]-(Table1[[#This Row],[السلف ]]+Table1[[#This Row],[الخصم ]])","v":0}]
[null,{"$f":"SUM(Salim!C484:AF484)","v":0},{"$f":"Table1[[#This Row],[عدد الايام ]]*65","v":0},null,null,{"$f":"Table1[[#This Row],[المرتب ]]-(Table1[[#This Row],[السلف ]]+Table1[[#This Row],[الخصم ]])","v":0}]
[null,{"$f":"SUM(Salim!C485:AF485)","v":0},{"$f":"Table1[[#This Row],[عدد الايام ]]*65","v":0},null,null,{"$f":"Table1[[#This Row],[المرتب ]]-(Table1[[#This Row],[السلف ]]+Table1[[#This Row],[الخصم ]])","v":0}]
[null,{"$f":"SUM(Salim!C486:AF486)","v":0},{"$f":"Table1[[#This Row],[عدد الايام ]]*65","v":0},null,null,{"$f":"Table1[[#This Row],[المرتب ]]-(Table1[[#This Row],[السلف ]]+Table1[[#This Row],[الخصم ]])","v":0}]
[null,{"$f":"SUM(Salim!C487:AF487)","v":0},{"$f":"Table1[[#This Row],[عدد الايام ]]*65","v":0},null,null,{"$f":"Table1[[#This Row],[المرتب ]]-(Table1[[#This Row],[السلف ]]+Table1[[#This Row],[الخصم ]])","v":0}]
[null,{"$f":"SUM(Salim!C488:AF488)","v":0},{"$f":"Table1[[#This Row],[عدد الايام ]]*65","v":0},null,null,{"$f":"Table1[[#This Row],[المرتب ]]-(Table1[[#This Row],[السلف ]]+Table1[[#This Row],[الخصم ]])","v":0}]
[null,{"$f":"SUM(Salim!C489:AF489)","v":0},{"$f":"Table1[[#This Row],[عدد الايام ]]*65","v":0},null,null,{"$f":"Table1[[#This Row],[المرتب ]]-(Table1[[#This Row],[السلف ]]+Table1[[#This Row],[الخصم ]])","v":0}]
[null,{"$f":"SUM(Salim!C490:AF490)","v":0},{"$f":"Table1[[#This Row],[عدد الايام ]]*65","v":0},null,null,{"$f":"Table1[[#This Row],[المرتب ]]-(Table1[[#This Row],[السلف ]]+Table1[[#This Row],[الخصم ]])","v":0}]
[null,{"$f":"SUM(Salim!C491:AF491)","v":0},{"$f":"Table1[[#This Row],[عدد الايام ]]*65","v":0},null,null,{"$f":"Table1[[#This Row],[المرتب ]]-(Table1[[#This Row],[السلف ]]+Table1[[#This Row],[الخصم ]])","v":0}]
[null,{"$f":"SUM(Salim!C492:AF492)","v":0},{"$f":"Table1[[#This Row],[عدد الايام ]]*65","v":0},null,null,{"$f":"Table1[[#This Row],[المرتب ]]-(Table1[[#This Row],[السلف ]]+Table1[[#This Row],[الخصم ]])","v":0}]
[null,{"$f":"SUM(Salim!C493:AF493)","v":0},{"$f":"Table1[[#This Row],[عدد الايام ]]*65","v":0},null,null,{"$f":"Table1[[#This Row],[المرتب ]]-(Table1[[#This Row],[السلف ]]+Table1[[#This Row],[الخصم ]])","v":0}]
[null,{"$f":"SUM(Salim!C494:AF494)","v":0},{"$f":"Table1[[#This Row],[عدد الايام ]]*65","v":0},null,null,{"$f":"Table1[[#This Row],[المرتب ]]-(Table1[[#This Row],[السلف ]]+Table1[[#This Row],[الخصم ]])","v":0}]
[null,{"$f":"SUM(Salim!C495:AF495)","v":0},{"$f":"Table1[[#This Row],[عدد الايام ]]*65","v":0},null,null,{"$f":"Table1[[#This Row],[المرتب ]]-(Table1[[#This Row],[السلف ]]+Table1[[#This Row],[الخصم ]])","v":0}]
[null,{"$f":"SUM(Salim!C496:AF496)","v":0},{"$f":"Table1[[#This Row],[عدد الايام ]]*65","v":0},null,null,{"$f":"Table1[[#This Row],[المرتب ]]-(Table1[[#This Row],[السلف ]]+Table1[[#This Row],[الخصم ]])","v":0}]
[null,{"$f":"SUM(Salim!C497:AF497)","v":0},{"$f":"Table1[[#This Row],[عدد الايام ]]*65","v":0},null,null,{"$f":"Table1[[#This Row],[المرتب ]]-(Table1[[#This Row],[السلف ]]+Table1[[#This Row],[الخصم ]])","v":0}]
[null,{"$f":"SUM(Salim!C498:AF498)","v":0},{"$f":"Table1[[#This Row],[عدد الايام ]]*65","v":0},null,null,{"$f":"Table1[[#This Row],[المرتب ]]-(Table1[[#This Row],[السلف ]]+Table1[[#This Row],[الخصم ]])","v":0}]
[null,{"$f":"SUM(Salim!C499:AF499)","v":0},{"$f":"Table1[[#This Row],[عدد الايام ]]*65","v":0},null,null,{"$f":"Table1[[#This Row],[المرتب ]]-(Table1[[#This Row],[السلف ]]+Table1[[#This Row],[الخصم ]])","v":0}]
[null,{"$f":"SUM(Salim!C500:AF500)","v":0},{"$f":"Table1[[#This Row],[عدد الايام ]]*65","v":0},null,null,{"$f":"Table1[[#This Row],[المرتب ]]-(Table1[[#This Row],[السلف ]]+Table1[[#This Row],[الخصم ]])","v":0}]
[null,{"$f":"SUM(Salim!C501:AF501)","v":0},{"$f":"Table1[[#This Row],[عدد الايام ]]*65","v":0},null,null,{"$f":"Table1[[#This Row],[المرتب ]]-(Table1[[#This Row],[السلف ]]+Table1[[#This Row],[الخصم ]])","v":0}]
[null,{"$f":"SUM(Salim!C502:AF502)","v":0},{"$f":"Table1[[#This Row],[عدد الايام ]]*65","v":0},null,null,{"$f":"Table1[[#This Row],[المرتب ]]-(Table1[[#This Row],[السلف ]]+Table1[[#This Row],[الخصم ]])","v":0}]
[null,{"$f":"SUM(Salim!C503:AF503)","v":0},{"$f":"Table1[[#This Row],[عدد الايام ]]*65","v":0},null,null,{"$f":"Table1[[#This Row],[المرتب ]]-(Table1[[#This Row],[السلف ]]+Table1[[#This Row],[الخصم ]])","v":0}]
[null,{"$f":"SUM(Salim!C504:AF504)","v":0},{"$f":"Table1[[#This Row],[عدد الايام ]]*65","v":0},null,null,{"$f":"Table1[[#This Row],[المرتب ]]-(Table1[[#This Row],[السلف ]]+Table1[[#This Row],[الخصم ]])","v":0}]
[null,{"$f":"SUM(Salim!C505:AF505)","v":0},{"$f":"Table1[[#This Row],[عدد الايام ]]*65","v":0},null,null,{"$f":"Table1[[#This Row],[المرتب ]]-(Table1[[#This Row],[السلف ]]+Table1[[#This Row],[الخصم ]])","v":0}]
[null,{"$f":"SUM(Salim!C506:AF506)","v":0},{"$f":"Table1[[#This Row],[عدد الايام ]]*65","v":0},null,null,{"$f":"Table1[[#This Row],[المرتب ]]-(Table1[[#This Row],[السلف ]]+Table1[[#This Row],[الخصم ]])","v":0}]
[null,{"$f":"SUM(Salim!C507:AF507)","v":0},{"$f":"Table1[[#This Row],[عدد الايام ]]*65","v":0},null,null,{"$f":"Table1[[#This Row],[المرتب ]]-(Table1[[#This Row],[السلف ]]+Table1[[#This Row],[الخصم ]])","v":0}]
[null,{"$f":"SUM(Salim!C508:AF508)","v":0},{"$f":"Table1[[#This Row],[عدد الايام ]]*65","v":0},null,null,{"$f":"Table1[[#This Row],[المرتب ]]-(Table1[[#This Row],[السلف ]]+Table1[[#This Row],[الخصم ]])","v":0}]
[null,{"$f":"SUM(Salim!C509:AF509)","v":0},{"$f":"Table1[[#This Row],[عدد الايام ]]*65","v":0},null,null,{"$f":"Table1[[#This Row],[المرتب ]]-(Table1[[#This Row],[السلف ]]+Table1[[#This Row],[الخصم ]])","v":0}]
[null,{"$f":"SUM(Salim!C510:AF510)","v":0},{"$f":"Table1[[#This Row],[عدد الايام ]]*65","v":0},null,null,{"$f":"Table1[[#This Row],[المرتب ]]-(Table1[[#This Row],[السلف ]]+Table1[[#This Row],[الخصم ]])","v":0}]
[null,{"$f":"SUM(Salim!C511:AF511)","v":0},{"$f":"Table1[[#This Row],[عدد الايام ]]*65","v":0},null,null,{"$f":"Table1[[#This Row],[المرتب ]]-(Table1[[#This Row],[السلف ]]+Table1[[#This Row],[الخصم ]])","v":0}]
[null,{"$f":"SUM(Salim!C512:AF512)","v":0},{"$f":"Table1[[#This Row],[عدد الايام ]]*65","v":0},null,null,{"$f":"Table1[[#This Row],[المرتب ]]-(Table1[[#This Row],[السلف ]]+Table1[[#This Row],[الخصم ]])","v":0}]
[null,{"$f":"SUM(Salim!C513:AF513)","v":0},{"$f":"Table1[[#This Row],[عدد الايام ]]*65","v":0},null,null,{"$f":"Table1[[#This Row],[المرتب ]]-(Table1[[#This Row],[السلف ]]+Table1[[#This Row],[الخصم ]])","v":0}]
[null,{"$f":"SUM(Salim!C514:AF514)","v":0},{"$f":"Table1[[#This Row],[عدد الايام ]]*65","v":0},null,null,{"$f":"Table1[[#This Row],[المرتب ]]-(Table1[[#This Row],[السلف ]]+Table1[[#This Row],[الخصم ]])","v":0}]
[null,{"$f":"SUM(Salim!C515:AF515)","v":0},{"$f":"Table1[[#This Row],[عدد الايام ]]*65","v":0},null,null,{"$f":"Table1[[#This Row],[المرتب ]]-(Table1[[#This Row],[السلف ]]+Table1[[#This Row],[الخصم ]])","v":0}]
[null,{"$f":"SUM(Salim!C516:AF516)","v":0},{"$f":"Table1[[#This Row],[عدد الايام ]]*65","v":0},null,null,{"$f":"Table1[[#This Row],[المرتب ]]-(Table1[[#This Row],[السلف ]]+Table1[[#This Row],[الخصم ]])","v":0}]
[null,{"$f":"SUM(Salim!C517:AF517)","v":0},{"$f":"Table1[[#This Row],[عدد الايام ]]*65","v":0},null,null,{"$f":"Table1[[#This Row],[المرتب ]]-(Table1[[#This Row],[السلف ]]+Table1[[#This Row],[الخصم ]])","v":0}]
[null,{"$f":"SUM(Salim!C518:AF518)","v":0},{"$f":"Table1[[#This Row],[عدد الايام ]]*65","v":0},null,null,{"$f":"Table1[[#This Row],[المرتب ]]-(Table1[[#This Row],[السلف ]]+Table1[[#This Row],[الخصم ]])","v":0}]
[null,{"$f":"SUM(Salim!C519:AF519)","v":0},{"$f":"Table1[[#This Row],[عدد الايام ]]*65","v":0},null,null,{"$f":"Table1[[#This Row],[المرتب ]]-(Table1[[#This Row],[السلف ]]+Table1[[#This Row],[الخصم ]])","v":0}]
[null,{"$f":"SUM(Salim!C520:AF520)","v":0},{"$f":"Table1[[#This Row],[عدد الايام ]]*65","v":0},null,null,{"$f":"Table1[[#This Row],[المرتب ]]-(Table1[[#This Row],[السلف ]]+Table1[[#This Row],[الخصم ]])","v":0}]
[null,{"$f":"SUM(Salim!C521:AF521)","v":0},{"$f":"Table1[[#This Row],[عدد الايام ]]*65","v":0},null,null,{"$f":"Table1[[#This Row],[المرتب ]]-(Table1[[#This Row],[السلف ]]+Table1[[#This Row],[الخصم ]])","v":0}]
[null,{"$f":"SUM(Salim!C522:AF522)","v":0},{"$f":"Table1[[#This Row],[عدد الايام ]]*65","v":0},null,null,{"$f":"Table1[[#This Row],[المرتب ]]-(Table1[[#This Row],[السلف ]]+Table1[[#This Row],[الخصم ]])","v":0}]
[null,{"$f":"SUM(Salim!C523:AF523)","v":0},{"$f":"Table1[[#This Row],[عدد الايام ]]*65","v":0},null,null,{"$f":"Table1[[#This Row],[المرتب ]]-(Table1[[#This Row],[السلف ]]+Table1[[#This Row],[الخصم ]])","v":0}]
[null,{"$f":"SUM(Salim!C524:AF524)","v":0},{"$f":"Table1[[#This Row],[عدد الايام ]]*65","v":0},null,null,{"$f":"Table1[[#This Row],[المرتب ]]-(Table1[[#This Row],[السلف ]]+Table1[[#This Row],[الخصم ]])","v":0}]
[null,{"$f":"SUM(Salim!C525:AF525)","v":0},{"$f":"Table1[[#This Row],[عدد الايام ]]*65","v":0},null,null,{"$f":"Table1[[#This Row],[المرتب ]]-(Table1[[#This Row],[السلف ]]+Table1[[#This Row],[الخصم ]])","v":0}]
[null,{"$f":"SUM(Salim!C526:AF526)","v":0},{"$f":"Table1[[#This Row],[عدد الايام ]]*65","v":0},null,null,{"$f":"Table1[[#This Row],[المرتب ]]-(Table1[[#This Row],[السلف ]]+Table1[[#This Row],[الخصم ]])","v":0}]
[null,{"$f":"SUM(Salim!C527:AF527)","v":0},{"$f":"Table1[[#This Row],[عدد الايام ]]*65","v":0},null,null,{"$f":"Table1[[#This Row],[المرتب ]]-(Table1[[#This Row],[السلف ]]+Table1[[#This Row],[الخصم ]])","v":0}]
[null,{"$f":"SUM(Salim!C528:AF528)","v":0},{"$f":"Table1[[#This Row],[عدد الايام ]]*65","v":0},null,null,{"$f":"Table1[[#This Row],[المرتب ]]-(Table1[[#This Row],[السلف ]]+Table1[[#This Row],[الخصم ]])","v":0}]
[null,{"$f":"SUM(Salim!C529:AF529)","v":0},{"$f":"Table1[[#This Row],[عدد الايام ]]*65","v":0},null,null,{"$f":"Table1[[#This Row],[المرتب ]]-(Table1[[#This Row],[السلف ]]+Table1[[#This Row],[الخصم ]])","v":0}]
[null,{"$f":"SUM(Salim!C530:AF530)","v":0},{"$f":"Table1[[#This Row],[عدد الايام ]]*65","v":0},null,null,{"$f":"Table1[[#This Row],[المرتب ]]-(Table1[[#This Row],[السلف ]]+Table1[[#This Row],[الخصم ]])","v":0}]
[null,{"$f":"SUM(Salim!C531:AF531)","v":0},{"$f":"Table1[[#This Row],[عدد الايام ]]*65","v":0},null,null,{"$f":"Table1[[#This Row],[المرتب ]]-(Table1[[#This Row],[السلف ]]+Table1[[#This Row],[الخصم ]])","v":0}]
[null,{"$f":"SUM(Salim!C532:AF532)","v":0},{"$f":"Table1[[#This Row],[عدد الايام ]]*65","v":0},null,null,{"$f":"Table1[[#This Row],[المرتب ]]-(Table1[[#This Row],[السلف ]]+Table1[[#This Row],[الخصم ]])","v":0}]
[null,{"$f":"SUM(Salim!C533:AF533)","v":0},{"$f":"Table1[[#This Row],[عدد الايام ]]*65","v":0},null,null,{"$f":"Table1[[#This Row],[المرتب ]]-(Table1[[#This Row],[السلف ]]+Table1[[#This Row],[الخصم ]])","v":0}]
[null,{"$f":"SUM(Salim!C534:AF534)","v":0},{"$f":"Table1[[#This Row],[عدد الايام ]]*65","v":0},null,null,{"$f":"Table1[[#This Row],[المرتب ]]-(Table1[[#This Row],[السلف ]]+Table1[[#This Row],[الخصم ]])","v":0}]
[null,{"$f":"SUM(Salim!C535:AF535)","v":0},{"$f":"Table1[[#This Row],[عدد الايام ]]*65","v":0},null,null,{"$f":"Table1[[#This Row],[المرتب ]]-(Table1[[#This Row],[السلف ]]+Table1[[#This Row],[الخصم ]])","v":0}]
[null,{"$f":"SUM(Salim!C536:AF536)","v":0},{"$f":"Table1[[#This Row],[عدد الايام ]]*65","v":0},null,null,{"$f":"Table1[[#This Row],[المرتب ]]-(Table1[[#This Row],[السلف ]]+Table1[[#This Row],[الخصم ]])","v":0}]
[null,{"$f":"SUM(Salim!C537:AF537)","v":0},{"$f":"Table1[[#This Row],[عدد الايام ]]*65","v":0},null,null,{"$f":"Table1[[#This Row],[المرتب ]]-(Table1[[#This Row],[السلف ]]+Table1[[#This Row],[الخصم ]])","v":0}]
[null,{"$f":"SUM(Salim!C538:AF538)","v":0},{"$f":"Table1[[#This Row],[عدد الايام ]]*65","v":0},null,null,{"$f":"Table1[[#This Row],[المرتب ]]-(Table1[[#This Row],[السلف ]]+Table1[[#This Row],[الخصم ]])","v":0}]
[null,{"$f":"SUM(Salim!C539:AF539)","v":0},{"$f":"Table1[[#This Row],[عدد الايام ]]*65","v":0},null,null,{"$f":"Table1[[#This Row],[المرتب ]]-(Table1[[#This Row],[السلف ]]+Table1[[#This Row],[الخصم ]])","v":0}]
[null,{"$f":"SUM(Salim!C540:AF540)","v":0},{"$f":"Table1[[#This Row],[عدد الايام ]]*65","v":0},null,null,{"$f":"Table1[[#This Row],[المرتب ]]-(Table1[[#This Row],[السلف ]]+Table1[[#This Row],[الخصم ]])","v":0}]
[null,{"$f":"SUM(Salim!C541:AF541)","v":0},{"$f":"Table1[[#This Row],[عدد الايام ]]*65","v":0},null,null,{"$f":"Table1[[#This Row],[المرتب ]]-(Table1[[#This Row],[السلف ]]+Table1[[#This Row],[الخصم ]])","v":0}]
[null,{"$f":"SUM(Salim!C542:AF542)","v":0},{"$f":"Table1[[#This Row],[عدد الايام ]]*65","v":0},null,null,{"$f":"Table1[[#This Row],[المرتب ]]-(Table1[[#This Row],[السلف ]]+Table1[[#This Row],[الخصم ]])","v":0}]
[null,{"$f":"SUM(Salim!C543:AF543)","v":0},{"$f":"Table1[[#This Row],[عدد الايام ]]*65","v":0},null,null,{"$f":"Table1[[#This Row],[المرتب ]]-(Table1[[#This Row],[السلف ]]+Table1[[#This Row],[الخصم ]])","v":0}]
[null,{"$f":"SUM(Salim!C544:AF544)","v":0},{"$f":"Table1[[#This Row],[عدد الايام ]]*65","v":0},null,null,{"$f":"Table1[[#This Row],[المرتب ]]-(Table1[[#This Row],[السلف ]]+Table1[[#This Row],[الخصم ]])","v":0}]
[null,{"$f":"SUM(Salim!C545:AF545)","v":0},{"$f":"Table1[[#This Row],[عدد الايام ]]*65","v":0},null,null,{"$f":"Table1[[#This Row],[المرتب ]]-(Table1[[#This Row],[السلف ]]+Table1[[#This Row],[الخصم ]])","v":0}]
[null,{"$f":"SUM(Salim!C546:AF546)","v":0},{"$f":"Table1[[#This Row],[عدد الايام ]]*65","v":0},null,null,{"$f":"Table1[[#This Row],[المرتب ]]-(Table1[[#This Row],[السلف ]]+Table1[[#This Row],[الخصم ]])","v":0}]
[null,{"$f":"SUM(Salim!C547:AF547)","v":0},{"$f":"Table1[[#This Row],[عدد الايام ]]*65","v":0},null,null,{"$f":"Table1[[#This Row],[المرتب ]]-(Table1[[#This Row],[السلف ]]+Table1[[#This Row],[الخصم ]])","v":0}]
[null,{"$f":"SUM(Salim!C548:AF548)","v":0},{"$f":"Table1[[#This Row],[عدد الايام ]]*65","v":0},null,null,{"$f":"Table1[[#This Row],[المرتب ]]-(Table1[[#This Row],[السلف ]]+Table1[[#This Row],[الخصم ]])","v":0}]
[null,{"$f":"SUM(Salim!C549:AF549)","v":0},{"$f":"Table1[[#This Row],[عدد الايام ]]*65","v":0},null,null,{"$f":"Table1[[#This Row],[المرتب ]]-(Table1[[#This Row],[السلف ]]+Table1[[#This Row],[الخصم ]])","v":0}]
[null,{"$f":"SUM(Salim!C550:AF550)","v":0},{"$f":"Table1[[#This Row],[عدد الايام ]]*65","v":0},null,null,{"$f":"Table1[[#This Row],[المرتب ]]-(Table1[[#This Row],[السلف ]]+Table1[[#This Row],[الخصم ]])","v":0}]
[null,{"$f":"SUM(Salim!C551:AF551)","v":0},{"$f":"Table1[[#This Row],[عدد الايام ]]*65","v":0},null,null,{"$f":"Table1[[#This Row],[المرتب ]]-(Table1[[#This Row],[السلف ]]+Table1[[#This Row],[الخصم ]])","v":0}]
[null,{"$f":"SUM(Salim!C552:AF552)","v":0},{"$f":"Table1[[#This Row],[عدد الايام ]]*65","v":0},null,null,{"$f":"Table1[[#This Row],[المرتب ]]-(Table1[[#This Row],[السلف ]]+Table1[[#This Row],[الخصم ]])","v":0}]
[null,{"$f":"SUM(Salim!C553:AF553)","v":0},{"$f":"Table1[[#This Row],[عدد الايام ]]*65","v":0},null,null,{"$f":"Table1[[#This Row],[المرتب ]]-(Table1[[#This Row],[السلف ]]+Table1[[#This Row],[الخصم ]])","v":0}]
[null,{"$f":"SUM(Salim!C554:AF554)","v":0},{"$f":"Table1[[#This Row],[عدد الايام ]]*65","v":0},null,null,{"$f":"Table1[[#This Row],[المرتب ]]-(Table1[[#This Row],[السلف ]]+Table1[[#This Row],[الخصم ]])","v":0}]
[null,{"$f":"SUM(Salim!C555:AF555)","v":0},{"$f":"Table1[[#This Row],[عدد الايام ]]*65","v":0},null,null,{"$f":"Table1[[#This Row],[المرتب ]]-(Table1[[#This Row],[السلف ]]+Table1[[#This Row],[الخصم ]])","v":0}]
[null,{"$f":"SUM(Salim!C556:AF556)","v":0},{"$f":"Table1[[#This Row],[عدد الايام ]]*65","v":0},null,null,{"$f":"Table1[[#This Row],[المرتب ]]-(Table1[[#This Row],[السلف ]]+Table1[[#This Row],[الخصم ]])","v":0}]
[null,{"$f":"SUM(Salim!C557:AF557)","v":0},{"$f":"Table1[[#This Row],[عدد الايام ]]*65","v":0},null,null,{"$f":"Table1[[#This Row],[المرتب ]]-(Table1[[#This Row],[السلف ]]+Table1[[#This Row],[الخصم ]])","v":0}]
[null,{"$f":"SUM(Salim!C558:AF558)","v":0},{"$f":"Table1[[#This Row],[عدد الايام ]]*65","v":0},null,null,{"$f":"Table1[[#This Row],[المرتب ]]-(Table1[[#This Row],[السلف ]]+Table1[[#This Row],[الخصم ]])","v":0}]
[null,{"$f":"SUM(Salim!C559:AF559)","v":0},{"$f":"Table1[[#This Row],[عدد الايام ]]*65","v":0},null,null,{"$f":"Table1[[#This Row],[المرتب ]]-(Table1[[#This Row],[السلف ]]+Table1[[#This Row],[الخصم ]])","v":0}]
[null,{"$f":"SUM(Salim!C560:AF560)","v":0},{"$f":"Table1[[#This Row],[عدد الايام ]]*65","v":0},null,null,{"$f":"Table1[[#This Row],[المرتب ]]-(Table1[[#This Row],[السلف ]]+Table1[[#This Row],[الخصم ]])","v":0}]
[null,{"$f":"SUM(Salim!C561:AF561)","v":0},{"$f":"Table1[[#This Row],[عدد الايام ]]*65","v":0},null,null,{"$f":"Table1[[#This Row],[المرتب ]]-(Table1[[#This Row],[السلف ]]+Table1[[#This Row],[الخصم ]])","v":0}]
[null,{"$f":"SUM(Salim!C562:AF562)","v":0},{"$f":"Table1[[#This Row],[عدد الايام ]]*65","v":0},null,null,{"$f":"Table1[[#This Row],[المرتب ]]-(Table1[[#This Row],[السلف ]]+Table1[[#This Row],[الخصم ]])","v":0}]
[null,{"$f":"SUM(Salim!C563:AF563)","v":0},{"$f":"Table1[[#This Row],[عدد الايام ]]*65","v":0},null,null,{"$f":"Table1[[#This Row],[المرتب ]]-(Table1[[#This Row],[السلف ]]+Table1[[#This Row],[الخصم ]])","v":0}]
[null,{"$f":"SUM(Salim!C564:AF564)","v":0},{"$f":"Table1[[#This Row],[عدد الايام ]]*65","v":0},null,null,{"$f":"Table1[[#This Row],[المرتب ]]-(Table1[[#This Row],[السلف ]]+Table1[[#This Row],[الخصم ]])","v":0}]
[null,{"$f":"SUM(Salim!C565:AF565)","v":0},{"$f":"Table1[[#This Row],[عدد الايام ]]*65","v":0},null,null,{"$f":"Table1[[#This Row],[المرتب ]]-(Table1[[#This Row],[السلف ]]+Table1[[#This Row],[الخصم ]])","v":0}]
[null,{"$f":"SUM(Salim!C566:AF566)","v":0},{"$f":"Table1[[#This Row],[عدد الايام ]]*65","v":0},null,null,{"$f":"Table1[[#This Row],[المرتب ]]-(Table1[[#This Row],[السلف ]]+Table1[[#This Row],[الخصم ]])","v":0}]
[null,{"$f":"SUM(Salim!C567:AF567)","v":0},{"$f":"Table1[[#This Row],[عدد الايام ]]*65","v":0},null,null,{"$f":"Table1[[#This Row],[المرتب ]]-(Table1[[#This Row],[السلف ]]+Table1[[#This Row],[الخصم ]])","v":0}]
[null,{"$f":"SUM(Salim!C568:AF568)","v":0},{"$f":"Table1[[#This Row],[عدد الايام ]]*65","v":0},null,null,{"$f":"Table1[[#This Row],[المرتب ]]-(Table1[[#This Row],[السلف ]]+Table1[[#This Row],[الخصم ]])","v":0}]
[null,{"$f":"SUM(Salim!C569:AF569)","v":0},{"$f":"Table1[[#This Row],[عدد الايام ]]*65","v":0},null,null,{"$f":"Table1[[#This Row],[المرتب ]]-(Table1[[#This Row],[السلف ]]+Table1[[#This Row],[الخصم ]])","v":0}]
[null,{"$f":"SUM(Salim!C570:AF570)","v":0},{"$f":"Table1[[#This Row],[عدد الايام ]]*65","v":0},null,null,{"$f":"Table1[[#This Row],[المرتب ]]-(Table1[[#This Row],[السلف ]]+Table1[[#This Row],[الخصم ]])","v":0}]
[null,{"$f":"SUM(Salim!C571:AF571)","v":0},{"$f":"Table1[[#This Row],[عدد الايام ]]*65","v":0},null,null,{"$f":"Table1[[#This Row],[المرتب ]]-(Table1[[#This Row],[السلف ]]+Table1[[#This Row],[الخصم ]])","v":0}]
[null,{"$f":"SUM(Salim!C572:AF572)","v":0},{"$f":"Table1[[#This Row],[عدد الايام ]]*65","v":0},null,null,{"$f":"Table1[[#This Row],[المرتب ]]-(Table1[[#This Row],[السلف ]]+Table1[[#This Row],[الخصم ]])","v":0}]
[null,{"$f":"SUM(Salim!C573:AF573)","v":0},{"$f":"Table1[[#This Row],[عدد الايام ]]*65","v":0},null,null,{"$f":"Table1[[#This Row],[المرتب ]]-(Table1[[#This Row],[السلف ]]+Table1[[#This Row],[الخصم ]])","v":0}]
[null,{"$f":"SUM(Salim!C574:AF574)","v":0},{"$f":"Table1[[#This Row],[عدد الايام ]]*65","v":0},null,null,{"$f":"Table1[[#This Row],[المرتب ]]-(Table1[[#This Row],[السلف ]]+Table1[[#This Row],[الخصم ]])","v":0}]
[null,{"$f":"SUM(Salim!C575:AF575)","v":0},{"$f":"Table1[[#This Row],[عدد الايام ]]*65","v":0},null,null,{"$f":"Table1[[#This Row],[المرتب ]]-(Table1[[#This Row],[السلف ]]+Table1[[#This Row],[الخصم ]])","v":0}]
[null,{"$f":"SUM(Salim!C576:AF576)","v":0},{"$f":"Table1[[#This Row],[عدد الايام ]]*65","v":0},null,null,{"$f":"Table1[[#This Row],[المرتب ]]-(Table1[[#This Row],[السلف ]]+Table1[[#This Row],[الخصم ]])","v":0}]
[null,{"$f":"SUM(Salim!C577:AF577)","v":0},{"$f":"Table1[[#This Row],[عدد الايام ]]*65","v":0},null,null,{"$f":"Table1[[#This Row],[المرتب ]]-(Table1[[#This Row],[السلف ]]+Table1[[#This Row],[الخصم ]])","v":0}]
[null,{"$f":"SUM(Salim!C578:AF578)","v":0},{"$f":"Table1[[#This Row],[عدد الايام ]]*65","v":0},null,null,{"$f":"Table1[[#This Row],[المرتب ]]-(Table1[[#This Row],[السلف ]]+Table1[[#This Row],[الخصم ]])","v":0}]
[null,{"$f":"SUM(Salim!C579:AF579)","v":0},{"$f":"Table1[[#This Row],[عدد الايام ]]*65","v":0},null,null,{"$f":"Table1[[#This Row],[المرتب ]]-(Table1[[#This Row],[السلف ]]+Table1[[#This Row],[الخصم ]])","v":0}]
[null,{"$f":"SUM(Salim!C580:AF580)","v":0},{"$f":"Table1[[#This Row],[عدد الايام ]]*65","v":0},null,null,{"$f":"Table1[[#This Row],[المرتب ]]-(Table1[[#This Row],[السلف ]]+Table1[[#This Row],[الخصم ]])","v":0}]
[null,{"$f":"SUM(Salim!C581:AF581)","v":0},{"$f":"Table1[[#This Row],[عدد الايام ]]*65","v":0},null,null,{"$f":"Table1[[#This Row],[المرتب ]]-(Table1[[#This Row],[السلف ]]+Table1[[#This Row],[الخصم ]])","v":0}]
[null,{"$f":"SUM(Salim!C582:AF582)","v":0},{"$f":"Table1[[#This Row],[عدد الايام ]]*65","v":0},null,null,{"$f":"Table1[[#This Row],[المرتب ]]-(Table1[[#This Row],[السلف ]]+Table1[[#This Row],[الخصم ]])","v":0}]
[null,{"$f":"SUM(Salim!C583:AF583)","v":0},{"$f":"Table1[[#This Row],[عدد الايام ]]*65","v":0},null,null,{"$f":"Table1[[#This Row],[المرتب ]]-(Table1[[#This Row],[السلف ]]+Table1[[#This Row],[الخصم ]])","v":0}]
[null,{"$f":"SUM(Salim!C584:AF584)","v":0},{"$f":"Table1[[#This Row],[عدد الايام ]]*65","v":0},null,null,{"$f":"Table1[[#This Row],[المرتب ]]-(Table1[[#This Row],[السلف ]]+Table1[[#This Row],[الخصم ]])","v":0}]
[null,{"$f":"SUM(Salim!C585:AF585)","v":0},{"$f":"Table1[[#This Row],[عدد الايام ]]*65","v":0},null,null,{"$f":"Table1[[#This Row],[المرتب ]]-(Table1[[#This Row],[السلف ]]+Table1[[#This Row],[الخصم ]])","v":0}]
[null,{"$f":"SUM(Salim!C586:AF586)","v":0},{"$f":"Table1[[#This Row],[عدد الايام ]]*65","v":0},null,null,{"$f":"Table1[[#This Row],[المرتب ]]-(Table1[[#This Row],[السلف ]]+Table1[[#This Row],[الخصم ]])","v":0}]
[null,{"$f":"SUM(Salim!C587:AF587)","v":0},{"$f":"Table1[[#This Row],[عدد الايام ]]*65","v":0},null,null,{"$f":"Table1[[#This Row],[المرتب ]]-(Table1[[#This Row],[السلف ]]+Table1[[#This Row],[الخصم ]])","v":0}]
[null,{"$f":"SUM(Salim!C588:AF588)","v":0},{"$f":"Table1[[#This Row],[عدد الايام ]]*65","v":0},null,null,{"$f":"Table1[[#This Row],[المرتب ]]-(Table1[[#This Row],[السلف ]]+Table1[[#This Row],[الخصم ]])","v":0}]
[null,{"$f":"SUM(Salim!C589:AF589)","v":0},{"$f":"Table1[[#This Row],[عدد الايام ]]*65","v":0},null,null,{"$f":"Table1[[#This Row],[المرتب ]]-(Table1[[#This Row],[السلف ]]+Table1[[#This Row],[الخصم ]])","v":0}]
[null,{"$f":"SUM(Salim!C590:AF590)","v":0},{"$f":"Table1[[#This Row],[عدد الايام ]]*65","v":0},null,null,{"$f":"Table1[[#This Row],[المرتب ]]-(Table1[[#This Row],[السلف ]]+Table1[[#This Row],[الخصم ]])","v":0}]
[null,{"$f":"SUM(Salim!C591:AF591)","v":0},{"$f":"Table1[[#This Row],[عدد الايام ]]*65","v":0},null,null,{"$f":"Table1[[#This Row],[المرتب ]]-(Table1[[#This Row],[السلف ]]+Table1[[#This Row],[الخصم ]])","v":0}]
[null,{"$f":"SUM(Salim!C592:AF592)","v":0},{"$f":"Table1[[#This Row],[عدد الايام ]]*65","v":0},null,null,{"$f":"Table1[[#This Row],[المرتب ]]-(Table1[[#This Row],[السلف ]]+Table1[[#This Row],[الخصم ]])","v":0}]
[null,{"$f":"SUM(Salim!C593:AF593)","v":0},{"$f":"Table1[[#This Row],[عدد الايام ]]*65","v":0},null,null,{"$f":"Table1[[#This Row],[المرتب ]]-(Table1[[#This Row],[السلف ]]+Table1[[#This Row],[الخصم ]])","v":0}]
[null,{"$f":"SUM(Salim!C594:AF594)","v":0},{"$f":"Table1[[#This Row],[عدد الايام ]]*65","v":0},null,null,{"$f":"Table1[[#This Row],[المرتب ]]-(Table1[[#This Row],[السلف ]]+Table1[[#This Row],[الخصم ]])","v":0}]
[null,{"$f":"SUM(Salim!C595:AF595)","v":0},{"$f":"Table1[[#This Row],[عدد الايام ]]*65","v":0},null,null,{"$f":"Table1[[#This Row],[المرتب ]]-(Table1[[#This Row],[السلف ]]+Table1[[#This Row],[الخصم ]])","v":0}]
[null,{"$f":"SUM(Salim!C596:AF596)","v":0},{"$f":"Table1[[#This Row],[عدد الايام ]]*65","v":0},null,null,{"$f":"Table1[[#This Row],[المرتب ]]-(Table1[[#This Row],[السلف ]]+Table1[[#This Row],[الخصم ]])","v":0}]
[null,{"$f":"SUM(Salim!C597:AF597)","v":0},{"$f":"Table1[[#This Row],[عدد الايام ]]*65","v":0},null,null,{"$f":"Table1[[#This Row],[المرتب ]]-(Table1[[#This Row],[السلف ]]+Table1[[#This Row],[الخصم ]])","v":0}]
[null,{"$f":"SUM(Salim!C598:AF598)","v":0},{"$f":"Table1[[#This Row],[عدد الايام ]]*65","v":0},null,null,{"$f":"Table1[[#This Row],[المرتب ]]-(Table1[[#This Row],[السلف ]]+Table1[[#This Row],[الخصم ]])","v":0}]
[null,{"$f":"SUM(Salim!C599:AF599)","v":0},{"$f":"Table1[[#This Row],[عدد الايام ]]*65","v":0},null,null,{"$f":"Table1[[#This Row],[المرتب ]]-(Table1[[#This Row],[السلف ]]+Table1[[#This Row],[الخصم ]])","v":0}]
[null,{"$f":"SUM(Salim!C600:AF600)","v":0},{"$f":"Table1[[#This Row],[عدد الايام ]]*65","v":0},null,null,{"$f":"Table1[[#This Row],[المرتب ]]-(Table1[[#This Row],[السلف ]]+Table1[[#This Row],[الخصم ]])","v":0}]
[null,{"$f":"SUM(Salim!C601:AF601)","v":0},{"$f":"Table1[[#This Row],[عدد الايام ]]*65","v":0},null,null,{"$f":"Table1[[#This Row],[المرتب ]]-(Table1[[#This Row],[السلف ]]+Table1[[#This Row],[الخصم ]])","v":0}]
[null,{"$f":"SUM(Salim!C602:AF602)","v":0},{"$f":"Table1[[#This Row],[عدد الايام ]]*65","v":0},null,null,{"$f":"Table1[[#This Row],[المرتب ]]-(Table1[[#This Row],[السلف ]]+Table1[[#This Row],[الخصم ]])","v":0}]
[null,{"$f":"SUM(Salim!C603:AF603)","v":0},{"$f":"Table1[[#This Row],[عدد الايام ]]*65","v":0},null,null,{"$f":"Table1[[#This Row],[المرتب ]]-(Table1[[#This Row],[السلف ]]+Table1[[#This Row],[الخصم ]])","v":0}]
[null,{"$f":"SUM(Salim!C604:AF604)","v":0},{"$f":"Table1[[#This Row],[عدد الايام ]]*65","v":0},null,null,{"$f":"Table1[[#This Row],[المرتب ]]-(Table1[[#This Row],[السلف ]]+Table1[[#This Row],[الخصم ]])","v":0}]
[null,{"$f":"SUM(Salim!C605:AF605)","v":0},{"$f":"Table1[[#This Row],[عدد الايام ]]*65","v":0},null,null,{"$f":"Table1[[#This Row],[المرتب ]]-(Table1[[#This Row],[السلف ]]+Table1[[#This Row],[الخصم ]])","v":0}]
[null,{"$f":"SUM(Salim!C606:AF606)","v":0},{"$f":"Table1[[#This Row],[عدد الايام ]]*65","v":0},null,null,{"$f":"Table1[[#This Row],[المرتب ]]-(Table1[[#This Row],[السلف ]]+Table1[[#This Row],[الخصم ]])","v":0}]
[null,{"$f":"SUM(Salim!C607:AF607)","v":0},{"$f":"Table1[[#This Row],[عدد الايام ]]*65","v":0},null,null,{"$f":"Table1[[#This Row],[المرتب ]]-(Table1[[#This Row],[السلف ]]+Table1[[#This Row],[الخصم ]])","v":0}]
[null,{"$f":"SUM(Salim!C608:AF608)","v":0},{"$f":"Table1[[#This Row],[عدد الايام ]]*65","v":0},null,null,{"$f":"Table1[[#This Row],[المرتب ]]-(Table1[[#This Row],[السلف ]]+Table1[[#This Row],[الخصم ]])","v":0}]
[null,{"$f":"SUM(Salim!C609:AF609)","v":0},{"$f":"Table1[[#This Row],[عدد الايام ]]*65","v":0},null,null,{"$f":"Table1[[#This Row],[المرتب ]]-(Table1[[#This Row],[السلف ]]+Table1[[#This Row],[الخصم ]])","v":0}]
[null,{"$f":"SUM(Salim!C610:AF610)","v":0},{"$f":"Table1[[#This Row],[عدد الايام ]]*65","v":0},null,null,{"$f":"Table1[[#This Row],[المرتب ]]-(Table1[[#This Row],[السلف ]]+Table1[[#This Row],[الخصم ]])","v":0}]
[null,{"$f":"SUM(Salim!C611:AF611)","v":0},{"$f":"Table1[[#This Row],[عدد الايام ]]*65","v":0},null,null,{"$f":"Table1[[#This Row],[المرتب ]]-(Table1[[#This Row],[السلف ]]+Table1[[#This Row],[الخصم ]])","v":0}]
[null,{"$f":"SUM(Salim!C612:AF612)","v":0},{"$f":"Table1[[#This Row],[عدد الايام ]]*65","v":0},null,null,{"$f":"Table1[[#This Row],[المرتب ]]-(Table1[[#This Row],[السلف ]]+Table1[[#This Row],[الخصم ]])","v":0}]
[null,{"$f":"SUM(Salim!C613:AF613)","v":0},{"$f":"Table1[[#This Row],[عدد الايام ]]*65","v":0},null,null,{"$f":"Table1[[#This Row],[المرتب ]]-(Table1[[#This Row],[السلف ]]+Table1[[#This Row],[الخصم ]])","v":0}]
[null,{"$f":"SUM(Salim!C614:AF614)","v":0},{"$f":"Table1[[#This Row],[عدد الايام ]]*65","v":0},null,null,{"$f":"Table1[[#This Row],[المرتب ]]-(Table1[[#This Row],[السلف ]]+Table1[[#This Row],[الخصم ]])","v":0}]
[null,{"$f":"SUM(Salim!C615:AF615)","v":0},{"$f":"Table1[[#This Row],[عدد الايام ]]*65","v":0},null,null,{"$f":"Table1[[#This Row],[المرتب ]]-(Table1[[#This Row],[السلف ]]+Table1[[#This Row],[الخصم ]])","v":0}]
[null,{"$f":"SUM(Salim!C616:AF616)","v":0},{"$f":"Table1[[#This Row],[عدد الايام ]]*65","v":0},null,null,{"$f":"Table1[[#This Row],[المرتب ]]-(Table1[[#This Row],[السلف ]]+Table1[[#This Row],[الخصم ]])","v":0}]
[null,{"$f":"SUM(Salim!C617:AF617)","v":0},{"$f":"Table1[[#This Row],[عدد الايام ]]*65","v":0},null,null,{"$f":"Table1[[#This Row],[المرتب ]]-(Table1[[#This Row],[السلف ]]+Table1[[#This Row],[الخصم ]])","v":0}]
[null,{"$f":"SUM(Salim!C618:AF618)","v":0},{"$f":"Table1[[#This Row],[عدد الايام ]]*65","v":0},null,null,{"$f":"Table1[[#This Row],[المرتب ]]-(Table1[[#This Row],[السلف ]]+Table1[[#This Row],[الخصم ]])","v":0}]
[null,{"$f":"SUM(Salim!C619:AF619)","v":0},{"$f":"Table1[[#This Row],[عدد الايام ]]*65","v":0},null,null,{"$f":"Table1[[#This Row],[المرتب ]]-(Table1[[#This Row],[السلف ]]+Table1[[#This Row],[الخصم ]])","v":0}]
[null,{"$f":"SUM(Salim!C620:AF620)","v":0},{"$f":"Table1[[#This Row],[عدد الايام ]]*65","v":0},null,null,{"$f":"Table1[[#This Row],[المرتب ]]-(Table1[[#This Row],[السلف ]]+Table1[[#This Row],[الخصم ]])","v":0}]
[null,{"$f":"SUM(Salim!C621:AF621)","v":0},{"$f":"Table1[[#This Row],[عدد الايام ]]*65","v":0},null,null,{"$f":"Table1[[#This Row],[المرتب ]]-(Table1[[#This Row],[السلف ]]+Table1[[#This Row],[الخصم ]])","v":0}]
[null,{"$f":"SUM(Salim!C622:AF622)","v":0},{"$f":"Table1[[#This Row],[عدد الايام ]]*65","v":0},null,null,{"$f":"Table1[[#This Row],[المرتب ]]-(Table1[[#This Row],[السلف ]]+Table1[[#This Row],[الخصم ]])","v":0}]
[null,{"$f":"SUM(Salim!C623:AF623)","v":0},{"$f":"Table1[[#This Row],[عدد الايام ]]*65","v":0},null,null,{"$f":"Table1[[#This Row],[المرتب ]]-(Table1[[#This Row],[السلف ]]+Table1[[#This Row],[الخصم ]])","v":0}]
[null,{"$f":"SUM(Salim!C624:AF624)","v":0},{"$f":"Table1[[#This Row],[عدد الايام ]]*65","v":0},null,null,{"$f":"Table1[[#This Row],[المرتب ]]-(Table1[[#This Row],[السلف ]]+Table1[[#This Row],[الخصم ]])","v":0}]
[null,{"$f":"SUM(Salim!C625:AF625)","v":0},{"$f":"Table1[[#This Row],[عدد الايام ]]*65","v":0},null,null,{"$f":"Table1[[#This Row],[المرتب ]]-(Table1[[#This Row],[السلف ]]+Table1[[#This Row],[الخصم ]])","v":0}]
[null,{"$f":"SUM(Salim!C626:AF626)","v":0},{"$f":"Table1[[#This Row],[عدد الايام ]]*65","v":0},null,null,{"$f":"Table1[[#This Row],[المرتب ]]-(Table1[[#This Row],[السلف ]]+Table1[[#This Row],[الخصم ]])","v":0}]
[null,{"$f":"SUM(Salim!C627:AF627)","v":0},{"$f":"Table1[[#This Row],[عدد الايام ]]*65","v":0},null,null,{"$f":"Table1[[#This Row],[المرتب ]]-(Table1[[#This Row],[السلف ]]+Table1[[#This Row],[الخصم ]])","v":0}]
[null,{"$f":"SUM(Salim!C628:AF628)","v":0},{"$f":"Table1[[#This Row],[عدد الايام ]]*65","v":0},null,null,{"$f":"Table1[[#This Row],[المرتب ]]-(Table1[[#This Row],[السلف ]]+Table1[[#This Row],[الخصم ]])","v":0}]
[null,{"$f":"SUM(Salim!C629:AF629)","v":0},{"$f":"Table1[[#This Row],[عدد الايام ]]*65","v":0},null,null,{"$f":"Table1[[#This Row],[المرتب ]]-(Table1[[#This Row],[السلف ]]+Table1[[#This Row],[الخصم ]])","v":0}]
[null,{"$f":"SUM(Salim!C630:AF630)","v":0},{"$f":"Table1[[#This Row],[عدد الايام ]]*65","v":0},null,null,{"$f":"Table1[[#This Row],[المرتب ]]-(Table1[[#This Row],[السلف ]]+Table1[[#This Row],[الخصم ]])","v":0}]
[null,{"$f":"SUM(Salim!C631:AF631)","v":0},{"$f":"Table1[[#This Row],[عدد الايام ]]*65","v":0},null,null,{"$f":"Table1[[#This Row],[المرتب ]]-(Table1[[#This Row],[السلف ]]+Table1[[#This Row],[الخصم ]])","v":0}]
[null,{"$f":"SUM(Salim!C632:AF632)","v":0},{"$f":"Table1[[#This Row],[عدد الايام ]]*65","v":0},null,null,{"$f":"Table1[[#This Row],[المرتب ]]-(Table1[[#This Row],[السلف ]]+Table1[[#This Row],[الخصم ]])","v":0}]
[null,{"$f":"SUM(Salim!C633:AF633)","v":0},{"$f":"Table1[[#This Row],[عدد الايام ]]*65","v":0},null,null,{"$f":"Table1[[#This Row],[المرتب ]]-(Table1[[#This Row],[السلف ]]+Table1[[#This Row],[الخصم ]])","v":0}]
[null,{"$f":"SUM(Salim!C634:AF634)","v":0},{"$f":"Table1[[#This Row],[عدد الايام ]]*65","v":0},null,null,{"$f":"Table1[[#This Row],[المرتب ]]-(Table1[[#This Row],[السلف ]]+Table1[[#This Row],[الخصم ]])","v":0}]
[null,{"$f":"SUM(Salim!C635:AF635)","v":0},{"$f":"Table1[[#This Row],[عدد الايام ]]*65","v":0},null,null,{"$f":"Table1[[#This Row],[المرتب ]]-(Table1[[#This Row],[السلف ]]+Table1[[#This Row],[الخصم ]])","v":0}]
[null,{"$f":"SUM(Salim!C636:AF636)","v":0},{"$f":"Table1[[#This Row],[عدد الايام ]]*65","v":0},null,null,{"$f":"Table1[[#This Row],[المرتب ]]-(Table1[[#This Row],[السلف ]]+Table1[[#This Row],[الخصم ]])","v":0}]
[null,{"$f":"SUM(Salim!C637:AF637)","v":0},{"$f":"Table1[[#This Row],[عدد الايام ]]*65","v":0},null,null,{"$f":"Table1[[#This Row],[المرتب ]]-(Table1[[#This Row],[السلف ]]+Table1[[#This Row],[الخصم ]])","v":0}]
[null,{"$f":"SUM(Salim!C638:AF638)","v":0},{"$f":"Table1[[#This Row],[عدد الايام ]]*65","v":0},null,null,{"$f":"Table1[[#This Row],[المرتب ]]-(Table1[[#This Row],[السلف ]]+Table1[[#This Row],[الخصم ]])","v":0}]
[null,{"$f":"SUM(Salim!C639:AF639)","v":0},{"$f":"Table1[[#This Row],[عدد الايام ]]*65","v":0},null,null,{"$f":"Table1[[#This Row],[المرتب ]]-(Table1[[#This Row],[السلف ]]+Table1[[#This Row],[الخصم ]])","v":0}]
[null,{"$f":"SUM(Salim!C640:AF640)","v":0},{"$f":"Table1[[#This Row],[عدد الايام ]]*65","v":0},null,null,{"$f":"Table1[[#This Row],[المرتب ]]-(Table1[[#This Row],[السلف ]]+Table1[[#This Row],[الخصم ]])","v":0}]
[null,{"$f":"SUM(Salim!C641:AF641)","v":0},{"$f":"Table1[[#This Row],[عدد الايام ]]*65","v":0},null,null,{"$f":"Table1[[#This Row],[المرتب ]]-(Table1[[#This Row],[السلف ]]+Table1[[#This Row],[الخصم ]])","v":0}]
[null,{"$f":"SUM(Salim!C642:AF642)","v":0},{"$f":"Table1[[#This Row],[عدد الايام ]]*65","v":0},null,null,{"$f":"Table1[[#This Row],[المرتب ]]-(Table1[[#This Row],[السلف ]]+Table1[[#This Row],[الخصم ]])","v":0}]
[null,{"$f":"SUM(Salim!C643:AF643)","v":0},{"$f":"Table1[[#This Row],[عدد الايام ]]*65","v":0},null,null,{"$f":"Table1[[#This Row],[المرتب ]]-(Table1[[#This Row],[السلف ]]+Table1[[#This Row],[الخصم ]])","v":0}]
[null,{"$f":"SUM(Salim!C644:AF644)","v":0},{"$f":"Table1[[#This Row],[عدد الايام ]]*65","v":0},null,null,{"$f":"Table1[[#This Row],[المرتب ]]-(Table1[[#This Row],[السلف ]]+Table1[[#This Row],[الخصم ]])","v":0}]
[null,{"$f":"SUM(Salim!C645:AF645)","v":0},{"$f":"Table1[[#This Row],[عدد الايام ]]*65","v":0},null,null,{"$f":"Table1[[#This Row],[المرتب ]]-(Table1[[#This Row],[السلف ]]+Table1[[#This Row],[الخصم ]])","v":0}]
[null,{"$f":"SUM(Salim!C646:AF646)","v":0},{"$f":"Table1[[#This Row],[عدد الايام ]]*65","v":0},null,null,{"$f":"Table1[[#This Row],[المرتب ]]-(Table1[[#This Row],[السلف ]]+Table1[[#This Row],[الخصم ]])","v":0}]
[null,{"$f":"SUM(Salim!C647:AF647)","v":0},{"$f":"Table1[[#This Row],[عدد الايام ]]*65","v":0},null,null,{"$f":"Table1[[#This Row],[المرتب ]]-(Table1[[#This Row],[السلف ]]+Table1[[#This Row],[الخصم ]])","v":0}]
[null,{"$f":"SUM(Salim!C648:AF648)","v":0},{"$f":"Table1[[#This Row],[عدد الايام ]]*65","v":0},null,null,{"$f":"Table1[[#This Row],[المرتب ]]-(Table1[[#This Row],[السلف ]]+Table1[[#This Row],[الخصم ]])","v":0}]
[null,{"$f":"SUM(Salim!C649:AF649)","v":0},{"$f":"Table1[[#This Row],[عدد الايام ]]*65","v":0},null,null,{"$f":"Table1[[#This Row],[المرتب ]]-(Table1[[#This Row],[السلف ]]+Table1[[#This Row],[الخصم ]])","v":0}]
[null,{"$f":"SUM(Salim!C650:AF650)","v":0},{"$f":"Table1[[#This Row],[عدد الايام ]]*65","v":0},null,null,{"$f":"Table1[[#This Row],[المرتب ]]-(Table1[[#This Row],[السلف ]]+Table1[[#This Row],[الخصم ]])","v":0}]
[null,{"$f":"SUM(Salim!C651:AF651)","v":0},{"$f":"Table1[[#This Row],[عدد الايام ]]*65","v":0},null,null,{"$f":"Table1[[#This Row],[المرتب ]]-(Table1[[#This Row],[السلف ]]+Table1[[#This Row],[الخصم ]])","v":0}]
[null,{"$f":"SUM(Salim!C652:AF652)","v":0},{"$f":"Table1[[#This Row],[عدد الايام ]]*65","v":0},null,null,{"$f":"Table1[[#This Row],[المرتب ]]-(Table1[[#This Row],[السلف ]]+Table1[[#This Row],[الخصم ]])","v":0}]
[null,{"$f":"SUM(Salim!C653:AF653)","v":0},{"$f":"Table1[[#This Row],[عدد الايام ]]*65","v":0},null,null,{"$f":"Table1[[#This Row],[المرتب ]]-(Table1[[#This Row],[السلف ]]+Table1[[#This Row],[الخصم ]])","v":0}]
[null,{"$f":"SUM(Salim!C654:AF654)","v":0},{"$f":"Table1[[#This Row],[عدد الايام ]]*65","v":0},null,null,{"$f":"Table1[[#This Row],[المرتب ]]-(Table1[[#This Row],[السلف ]]+Table1[[#This Row],[الخصم ]])","v":0}]
[null,{"$f":"SUM(Salim!C655:AF655)","v":0},{"$f":"Table1[[#This Row],[عدد الايام ]]*65","v":0},null,null,{"$f":"Table1[[#This Row],[المرتب ]]-(Table1[[#This Row],[السلف ]]+Table1[[#This Row],[الخصم ]])","v":0}]
[null,{"$f":"SUM(Salim!C656:AF656)","v":0},{"$f":"Table1[[#This Row],[عدد الايام ]]*65","v":0},null,null,{"$f":"Table1[[#This Row],[المرتب ]]-(Table1[[#This Row],[السلف ]]+Table1[[#This Row],[الخصم ]])","v":0}]
[null,{"$f":"SUM(Salim!C657:AF657)","v":0},{"$f":"Table1[[#This Row],[عدد الايام ]]*65","v":0},null,null,{"$f":"Table1[[#This Row],[المرتب ]]-(Table1[[#This Row],[السلف ]]+Table1[[#This Row],[الخصم ]])","v":0}]
[null,{"$f":"SUM(Salim!C658:AF658)","v":0},{"$f":"Table1[[#This Row],[عدد الايام ]]*65","v":0},null,null,{"$f":"Table1[[#This Row],[المرتب ]]-(Table1[[#This Row],[السلف ]]+Table1[[#This Row],[الخصم ]])","v":0}]
[null,{"$f":"SUM(Salim!C659:AF659)","v":0},{"$f":"Table1[[#This Row],[عدد الايام ]]*65","v":0},null,null,{"$f":"Table1[[#This Row],[المرتب ]]-(Table1[[#This Row],[السلف ]]+Table1[[#This Row],[الخصم ]])","v":0}]
[null,{"$f":"SUM(Salim!C660:AF660)","v":0},{"$f":"Table1[[#This Row],[عدد الايام ]]*65","v":0},null,null,{"$f":"Table1[[#This Row],[المرتب ]]-(Table1[[#This Row],[السلف ]]+Table1[[#This Row],[الخصم ]])","v":0}]
[null,{"$f":"SUM(Salim!C661:AF661)","v":0},{"$f":"Table1[[#This Row],[عدد الايام ]]*65","v":0},null,null,{"$f":"Table1[[#This Row],[المرتب ]]-(Table1[[#This Row],[السلف ]]+Table1[[#This Row],[الخصم ]])","v":0}]
[null,{"$f":"SUM(Salim!C662:AF662)","v":0},{"$f":"Table1[[#This Row],[عدد الايام ]]*65","v":0},null,null,{"$f":"Table1[[#This Row],[المرتب ]]-(Table1[[#This Row],[السلف ]]+Table1[[#This Row],[الخصم ]])","v":0}]
[null,{"$f":"SUM(Salim!C663:AF663)","v":0},{"$f":"Table1[[#This Row],[عدد الايام ]]*65","v":0},null,null,{"$f":"Table1[[#This Row],[المرتب ]]-(Table1[[#This Row],[السلف ]]+Table1[[#This Row],[الخصم ]])","v":0}]
[null,{"$f":"SUM(Salim!C664:AF664)","v":0},{"$f":"Table1[[#This Row],[عدد الايام ]]*65","v":0},null,null,{"$f":"Table1[[#This Row],[المرتب ]]-(Table1[[#This Row],[السلف ]]+Table1[[#This Row],[الخصم ]])","v":0}]
[null,{"$f":"SUM(Salim!C665:AF665)","v":0},{"$f":"Table1[[#This Row],[عدد الايام ]]*65","v":0},null,null,{"$f":"Table1[[#This Row],[المرتب ]]-(Table1[[#This Row],[السلف ]]+Table1[[#This Row],[الخصم ]])","v":0}]
[null,{"$f":"SUM(Salim!C666:AF666)","v":0},{"$f":"Table1[[#This Row],[عدد الايام ]]*65","v":0},null,null,{"$f":"Table1[[#This Row],[المرتب ]]-(Table1[[#This Row],[السلف ]]+Table1[[#This Row],[الخصم ]])","v":0}]
[null,{"$f":"SUM(Salim!C667:AF667)","v":0},{"$f":"Table1[[#This Row],[عدد الايام ]]*65","v":0},null,null,{"$f":"Table1[[#This Row],[المرتب ]]-(Table1[[#This Row],[السلف ]]+Table1[[#This Row],[الخصم ]])","v":0}]
[null,{"$f":"SUM(Salim!C668:AF668)","v":0},{"$f":"Table1[[#This Row],[عدد الايام ]]*65","v":0},null,null,{"$f":"Table1[[#This Row],[المرتب ]]-(Table1[[#This Row],[السلف ]]+Table1[[#This Row],[الخصم ]])","v":0}]
[null,{"$f":"SUM(Salim!C669:AF669)","v":0},{"$f":"Table1[[#This Row],[عدد الايام ]]*65","v":0},null,null,{"$f":"Table1[[#This Row],[المرتب ]]-(Table1[[#This Row],[السلف ]]+Table1[[#This Row],[الخصم ]])","v":0}]
[null,{"$f":"SUM(Salim!C670:AF670)","v":0},{"$f":"Table1[[#This Row],[عدد الايام ]]*65","v":0},null,null,{"$f":"Table1[[#This Row],[المرتب ]]-(Table1[[#This Row],[السلف ]]+Table1[[#This Row],[الخصم ]])","v":0}]
[null,{"$f":"SUM(Salim!C671:AF671)","v":0},{"$f":"Table1[[#This Row],[عدد الايام ]]*65","v":0},null,null,{"$f":"Table1[[#This Row],[المرتب ]]-(Table1[[#This Row],[السلف ]]+Table1[[#This Row],[الخصم ]])","v":0}]
[null,{"$f":"SUM(Salim!C672:AF672)","v":0},{"$f":"Table1[[#This Row],[عدد الايام ]]*65","v":0},null,null,{"$f":"Table1[[#This Row],[المرتب ]]-(Table1[[#This Row],[السلف ]]+Table1[[#This Row],[الخصم ]])","v":0}]
[null,{"$f":"SUM(Salim!C673:AF673)","v":0},{"$f":"Table1[[#This Row],[عدد الايام ]]*65","v":0},null,null,{"$f":"Table1[[#This Row],[المرتب ]]-(Table1[[#This Row],[السلف ]]+Table1[[#This Row],[الخصم ]])","v":0}]
[null,{"$f":"SUM(Salim!C674:AF674)","v":0},{"$f":"Table1[[#This Row],[عدد الايام ]]*65","v":0},null,null,{"$f":"Table1[[#This Row],[المرتب ]]-(Table1[[#This Row],[السلف ]]+Table1[[#This Row],[الخصم ]])","v":0}]
[null,{"$f":"SUM(Salim!C675:AF675)","v":0},{"$f":"Table1[[#This Row],[عدد الايام ]]*65","v":0},null,null,{"$f":"Table1[[#This Row],[المرتب ]]-(Table1[[#This Row],[السلف ]]+Table1[[#This Row],[الخصم ]])","v":0}]
[null,{"$f":"SUM(Salim!C676:AF676)","v":0},{"$f":"Table1[[#This Row],[عدد الايام ]]*65","v":0},null,null,{"$f":"Table1[[#This Row],[المرتب ]]-(Table1[[#This Row],[السلف ]]+Table1[[#This Row],[الخصم ]])","v":0}]
[null,{"$f":"SUM(Salim!C677:AF677)","v":0},{"$f":"Table1[[#This Row],[عدد الايام ]]*65","v":0},null,null,{"$f":"Table1[[#This Row],[المرتب ]]-(Table1[[#This Row],[السلف ]]+Table1[[#This Row],[الخصم ]])","v":0}]
[null,{"$f":"SUM(Salim!C678:AF678)","v":0},{"$f":"Table1[[#This Row],[عدد الايام ]]*65","v":0},null,null,{"$f":"Table1[[#This Row],[المرتب ]]-(Table1[[#This Row],[السلف ]]+Table1[[#This Row],[الخصم ]])","v":0}]
[null,{"$f":"SUM(Salim!C679:AF679)","v":0},{"$f":"Table1[[#This Row],[عدد الايام ]]*65","v":0},null,null,{"$f":"Table1[[#This Row],[المرتب ]]-(Table1[[#This Row],[السلف ]]+Table1[[#This Row],[الخصم ]])","v":0}]
[null,{"$f":"SUM(Salim!C680:AF680)","v":0},{"$f":"Table1[[#This Row],[عدد الايام ]]*65","v":0},null,null,{"$f":"Table1[[#This Row],[المرتب ]]-(Table1[[#This Row],[السلف ]]+Table1[[#This Row],[الخصم ]])","v":0}]
[null,{"$f":"SUM(Salim!C681:AF681)","v":0},{"$f":"Table1[[#This Row],[عدد الايام ]]*65","v":0},null,null,{"$f":"Table1[[#This Row],[المرتب ]]-(Table1[[#This Row],[السلف ]]+Table1[[#This Row],[الخصم ]])","v":0}]
[null,{"$f":"SUM(Salim!C682:AF682)","v":0},{"$f":"Table1[[#This Row],[عدد الايام ]]*65","v":0},null,null,{"$f":"Table1[[#This Row],[المرتب ]]-(Table1[[#This Row],[السلف ]]+Table1[[#This Row],[الخصم ]])","v":0}]
[null,{"$f":"SUM(Salim!C683:AF683)","v":0},{"$f":"Table1[[#This Row],[عدد الايام ]]*65","v":0},null,null,{"$f":"Table1[[#This Row],[المرتب ]]-(Table1[[#This Row],[السلف ]]+Table1[[#This Row],[الخصم ]])","v":0}]
[null,{"$f":"SUM(Salim!C684:AF684)","v":0},{"$f":"Table1[[#This Row],[عدد الايام ]]*65","v":0},null,null,{"$f":"Table1[[#This Row],[المرتب ]]-(Table1[[#This Row],[السلف ]]+Table1[[#This Row],[الخصم ]])","v":0}]
[null,{"$f":"SUM(Salim!C685:AF685)","v":0},{"$f":"Table1[[#This Row],[عدد الايام ]]*65","v":0},null,null,{"$f":"Table1[[#This Row],[المرتب ]]-(Table1[[#This Row],[السلف ]]+Table1[[#This Row],[الخصم ]])","v":0}]
[null,{"$f":"SUM(Salim!C686:AF686)","v":0},{"$f":"Table1[[#This Row],[عدد الايام ]]*65","v":0},null,null,{"$f":"Table1[[#This Row],[المرتب ]]-(Table1[[#This Row],[السلف ]]+Table1[[#This Row],[الخصم ]])","v":0}]
[null,{"$f":"SUM(Salim!C687:AF687)","v":0},{"$f":"Table1[[#This Row],[عدد الايام ]]*65","v":0},null,null,{"$f":"Table1[[#This Row],[المرتب ]]-(Table1[[#This Row],[السلف ]]+Table1[[#This Row],[الخصم ]])","v":0}]
[null,{"$f":"SUM(Salim!C688:AF688)","v":0},{"$f":"Table1[[#This Row],[عدد الايام ]]*65","v":0},null,null,{"$f":"Table1[[#This Row],[المرتب ]]-(Table1[[#This Row],[السلف ]]+Table1[[#This Row],[الخصم ]])","v":0}]
[null,{"$f":"SUM(Salim!C689:AF689)","v":0},{"$f":"Table1[[#This Row],[عدد الايام ]]*65","v":0},null,null,{"$f":"Table1[[#This Row],[المرتب ]]-(Table1[[#This Row],[السلف ]]+Table1[[#This Row],[الخصم ]])","v":0}]
[null,{"$f":"SUM(Salim!C690:AF690)","v":0},{"$f":"Table1[[#This Row],[عدد الايام ]]*65","v":0},null,null,{"$f":"Table1[[#This Row],[المرتب ]]-(Table1[[#This Row],[السلف ]]+Table1[[#This Row],[الخصم ]])","v":0}]
[null,{"$f":"SUM(Salim!C691:AF691)","v":0},{"$f":"Table1[[#This Row],[عدد الايام ]]*65","v":0},null,null,{"$f":"Table1[[#This Row],[المرتب ]]-(Table1[[#This Row],[السلف ]]+Table1[[#This Row],[الخصم ]])","v":0}]
[null,{"$f":"SUM(Salim!C692:AF692)","v":0},{"$f":"Table1[[#This Row],[عدد الايام ]]*65","v":0},null,null,{"$f":"Table1[[#This Row],[المرتب ]]-(Table1[[#This Row],[السلف ]]+Table1[[#This Row],[الخصم ]])","v":0}]
[null,{"$f":"SUM(Salim!C693:AF693)","v":0},{"$f":"Table1[[#This Row],[عدد الايام ]]*65","v":0},null,null,{"$f":"Table1[[#This Row],[المرتب ]]-(Table1[[#This Row],[السلف ]]+Table1[[#This Row],[الخصم ]])","v":0}]
[null,{"$f":"SUM(Salim!C694:AF694)","v":0},{"$f":"Table1[[#This Row],[عدد الايام ]]*65","v":0},null,null,{"$f":"Table1[[#This Row],[المرتب ]]-(Table1[[#This Row],[السلف ]]+Table1[[#This Row],[الخصم ]])","v":0}]
[null,{"$f":"SUM(Salim!C695:AF695)","v":0},{"$f":"Table1[[#This Row],[عدد الايام ]]*65","v":0},null,null,{"$f":"Table1[[#This Row],[المرتب ]]-(Table1[[#This Row],[السلف ]]+Table1[[#This Row],[الخصم ]])","v":0}]
[null,{"$f":"SUM(Salim!C696:AF696)","v":0},{"$f":"Table1[[#This Row],[عدد الايام ]]*65","v":0},null,null,{"$f":"Table1[[#This Row],[المرتب ]]-(Table1[[#This Row],[السلف ]]+Table1[[#This Row],[الخصم ]])","v":0}]
[null,{"$f":"SUM(Salim!C697:AF697)","v":0},{"$f":"Table1[[#This Row],[عدد الايام ]]*65","v":0},null,null,{"$f":"Table1[[#This Row],[المرتب ]]-(Table1[[#This Row],[السلف ]]+Table1[[#This Row],[الخصم ]])","v":0}]
[null,{"$f":"SUM(Salim!C698:AF698)","v":0},{"$f":"Table1[[#This Row],[عدد الايام ]]*65","v":0},null,null,{"$f":"Table1[[#This Row],[المرتب ]]-(Table1[[#This Row],[السلف ]]+Table1[[#This Row],[الخصم ]])","v":0}]
[null,{"$f":"SUM(Salim!C699:AF699)","v":0},{"$f":"Table1[[#This Row],[عدد الايام ]]*65","v":0},null,null,{"$f":"Table1[[#This Row],[المرتب ]]-(Table1[[#This Row],[السلف ]]+Table1[[#This Row],[الخصم ]])","v":0}]
[null,{"$f":"SUM(Salim!C700:AF700)","v":0},{"$f":"Table1[[#This Row],[عدد الايام ]]*65","v":0},null,null,{"$f":"Table1[[#This Row],[المرتب ]]-(Table1[[#This Row],[السلف ]]+Table1[[#This Row],[الخصم ]])","v":0}]
[null,{"$f":"SUM(Salim!C701:AF701)","v":0},{"$f":"Table1[[#This Row],[عدد الايام ]]*65","v":0},null,null,{"$f":"Table1[[#This Row],[المرتب ]]-(Table1[[#This Row],[السلف ]]+Table1[[#This Row],[الخصم ]])","v":0}]
[null,{"$f":"SUM(Salim!C702:AF702)","v":0},{"$f":"Table1[[#This Row],[عدد الايام ]]*65","v":0},null,null,{"$f":"Table1[[#This Row],[المرتب ]]-(Table1[[#This Row],[السلف ]]+Table1[[#This Row],[الخصم ]])","v":0}]
[null,{"$f":"SUM(Salim!C703:AF703)","v":0},{"$f":"Table1[[#This Row],[عدد الايام ]]*65","v":0},null,null,{"$f":"Table1[[#This Row],[المرتب ]]-(Table1[[#This Row],[السلف ]]+Table1[[#This Row],[الخصم ]])","v":0}]
[null,{"$f":"SUM(Salim!C704:AF704)","v":0},{"$f":"Table1[[#This Row],[عدد الايام ]]*65","v":0},null,null,{"$f":"Table1[[#This Row],[المرتب ]]-(Table1[[#This Row],[السلف ]]+Table1[[#This Row],[الخصم ]])","v":0}]
[null,{"$f":"SUM(Salim!C705:AF705)","v":0},{"$f":"Table1[[#This Row],[عدد الايام ]]*65","v":0},null,null,{"$f":"Table1[[#This Row],[المرتب ]]-(Table1[[#This Row],[السلف ]]+Table1[[#This Row],[الخصم ]])","v":0}]
[null,{"$f":"SUM(Salim!C706:AF706)","v":0},{"$f":"Table1[[#This Row],[عدد الايام ]]*65","v":0},null,null,{"$f":"Table1[[#This Row],[المرتب ]]-(Table1[[#This Row],[السلف ]]+Table1[[#This Row],[الخصم ]])","v":0}]
[null,{"$f":"SUM(Salim!C707:AF707)","v":0},{"$f":"Table1[[#This Row],[عدد الايام ]]*65","v":0},null,null,{"$f":"Table1[[#This Row],[المرتب ]]-(Table1[[#This Row],[السلف ]]+Table1[[#This Row],[الخصم ]])","v":0}]
[null,{"$f":"SUM(Salim!C708:AF708)","v":0},{"$f":"Table1[[#This Row],[عدد الايام ]]*65","v":0},null,null,{"$f":"Table1[[#This Row],[المرتب ]]-(Table1[[#This Row],[السلف ]]+Table1[[#This Row],[الخصم ]])","v":0}]
[null,{"$f":"SUM(Salim!C709:AF709)","v":0},{"$f":"Table1[[#This Row],[عدد الايام ]]*65","v":0},null,null,{"$f":"Table1[[#This Row],[المرتب ]]-(Table1[[#This Row],[السلف ]]+Table1[[#This Row],[الخصم ]])","v":0}]
[null,{"$f":"SUM(Salim!C710:AF710)","v":0},{"$f":"Table1[[#This Row],[عدد الايام ]]*65","v":0},null,null,{"$f":"Table1[[#This Row],[المرتب ]]-(Table1[[#This Row],[السلف ]]+Table1[[#This Row],[الخصم ]])","v":0}]
[null,{"$f":"SUM(Salim!C711:AF711)","v":0},{"$f":"Table1[[#This Row],[عدد الايام ]]*65","v":0},null,null,{"$f":"Table1[[#This Row],[المرتب ]]-(Table1[[#This Row],[السلف ]]+Table1[[#This Row],[الخصم ]])","v":0}]
[null,{"$f":"SUM(Salim!C712:AF712)","v":0},{"$f":"Table1[[#This Row],[عدد الايام ]]*65","v":0},null,null,{"$f":"Table1[[#This Row],[المرتب ]]-(Table1[[#This Row],[السلف ]]+Table1[[#This Row],[الخصم ]])","v":0}]
[null,{"$f":"SUM(Salim!C713:AF713)","v":0},{"$f":"Table1[[#This Row],[عدد الايام ]]*65","v":0},null,null,{"$f":"Table1[[#This Row],[المرتب ]]-(Table1[[#This Row],[السلف ]]+Table1[[#This Row],[الخصم ]])","v":0}]
[null,{"$f":"SUM(Salim!C714:AF714)","v":0},{"$f":"Table1[[#This Row],[عدد الايام ]]*65","v":0},null,null,{"$f":"Table1[[#This Row],[المرتب ]]-(Table1[[#This Row],[السلف ]]+Table1[[#This Row],[الخصم ]])","v":0}]
[null,{"$f":"SUM(Salim!C715:AF715)","v":0},{"$f":"Table1[[#This Row],[عدد الايام ]]*65","v":0},null,null,{"$f":"Table1[[#This Row],[المرتب ]]-(Table1[[#This Row],[السلف ]]+Table1[[#This Row],[الخصم ]])","v":0}]
[null,{"$f":"SUM(Salim!C716:AF716)","v":0},{"$f":"Table1[[#This Row],[عدد الايام ]]*65","v":0},null,null,{"$f":"Table1[[#This Row],[المرتب ]]-(Table1[[#This Row],[السلف ]]+Table1[[#This Row],[الخصم ]])","v":0}]
[null,{"$f":"SUM(Salim!C717:AF717)","v":0},{"$f":"Table1[[#This Row],[عدد الايام ]]*65","v":0},null,null,{"$f":"Table1[[#This Row],[المرتب ]]-(Table1[[#This Row],[السلف ]]+Table1[[#This Row],[الخصم ]])","v":0}]
[null,{"$f":"SUM(Salim!C718:AF718)","v":0},{"$f":"Table1[[#This Row],[عدد الايام ]]*65","v":0},null,null,{"$f":"Table1[[#This Row],[المرتب ]]-(Table1[[#This Row],[السلف ]]+Table1[[#This Row],[الخصم ]])","v":0}]
[null,{"$f":"SUM(Salim!C719:AF719)","v":0},{"$f":"Table1[[#This Row],[عدد الايام ]]*65","v":0},null,null,{"$f":"Table1[[#This Row],[المرتب ]]-(Table1[[#This Row],[السلف ]]+Table1[[#This Row],[الخصم ]])","v":0}]
[null,{"$f":"SUM(Salim!C720:AF720)","v":0},{"$f":"Table1[[#This Row],[عدد الايام ]]*65","v":0},null,null,{"$f":"Table1[[#This Row],[المرتب ]]-(Table1[[#This Row],[السلف ]]+Table1[[#This Row],[الخصم ]])","v":0}]
[null,{"$f":"SUM(Salim!C721:AF721)","v":0},{"$f":"Table1[[#This Row],[عدد الايام ]]*65","v":0},null,null,{"$f":"Table1[[#This Row],[المرتب ]]-(Table1[[#This Row],[السلف ]]+Table1[[#This Row],[الخصم ]])","v":0}]
[null,{"$f":"SUM(Salim!C722:AF722)","v":0},{"$f":"Table1[[#This Row],[عدد الايام ]]*65","v":0},null,null,{"$f":"Table1[[#This Row],[المرتب ]]-(Table1[[#This Row],[السلف ]]+Table1[[#This Row],[الخصم ]])","v":0}]
[null,{"$f":"SUM(Salim!C723:AF723)","v":0},{"$f":"Table1[[#This Row],[عدد الايام ]]*65","v":0},null,null,{"$f":"Table1[[#This Row],[المرتب ]]-(Table1[[#This Row],[السلف ]]+Table1[[#This Row],[الخصم ]])","v":0}]
[null,{"$f":"SUM(Salim!C724:AF724)","v":0},{"$f":"Table1[[#This Row],[عدد الايام ]]*65","v":0},null,null,{"$f":"Table1[[#This Row],[المرتب ]]-(Table1[[#This Row],[السلف ]]+Table1[[#This Row],[الخصم ]])","v":0}]
[null,{"$f":"SUM(Salim!C725:AF725)","v":0},{"$f":"Table1[[#This Row],[عدد الايام ]]*65","v":0},null,null,{"$f":"Table1[[#This Row],[المرتب ]]-(Table1[[#This Row],[السلف ]]+Table1[[#This Row],[الخصم ]])","v":0}]
[null,{"$f":"SUM(Salim!C726:AF726)","v":0},{"$f":"Table1[[#This Row],[عدد الايام ]]*65","v":0},null,null,{"$f":"Table1[[#This Row],[المرتب ]]-(Table1[[#This Row],[السلف ]]+Table1[[#This Row],[الخصم ]])","v":0}]
[null,{"$f":"SUM(Salim!C727:AF727)","v":0},{"$f":"Table1[[#This Row],[عدد الايام ]]*65","v":0},null,null,{"$f":"Table1[[#This Row],[المرتب ]]-(Table1[[#This Row],[السلف ]]+Table1[[#This Row],[الخصم ]])","v":0}]
[null,{"$f":"SUM(Salim!C728:AF728)","v":0},{"$f":"Table1[[#This Row],[عدد الايام ]]*65","v":0},null,null,{"$f":"Table1[[#This Row],[المرتب ]]-(Table1[[#This Row],[السلف ]]+Table1[[#This Row],[الخصم ]])","v":0}]
[null,{"$f":"SUM(Salim!C729:AF729)","v":0},{"$f":"Table1[[#This Row],[عدد الايام ]]*65","v":0},null,null,{"$f":"Table1[[#This Row],[المرتب ]]-(Table1[[#This Row],[السلف ]]+Table1[[#This Row],[الخصم ]])","v":0}]
[null,{"$f":"SUM(Salim!C730:AF730)","v":0},{"$f":"Table1[[#This Row],[عدد الايام ]]*65","v":0},null,null,{"$f":"Table1[[#This Row],[المرتب ]]-(Table1[[#This Row],[السلف ]]+Table1[[#This Row],[الخصم ]])","v":0}]
[null,{"$f":"SUM(Salim!C731:AF731)","v":0},{"$f":"Table1[[#This Row],[عدد الايام ]]*65","v":0},null,null,{"$f":"Table1[[#This Row],[المرتب ]]-(Table1[[#This Row],[السلف ]]+Table1[[#This Row],[الخصم ]])","v":0}]
[null,{"$f":"SUM(Salim!C732:AF732)","v":0},{"$f":"Table1[[#This Row],[عدد الايام ]]*65","v":0},null,null,{"$f":"Table1[[#This Row],[المرتب ]]-(Table1[[#This Row],[السلف ]]+Table1[[#This Row],[الخصم ]])","v":0}]
[null,{"$f":"SUM(Salim!C733:AF733)","v":0},{"$f":"Table1[[#This Row],[عدد الايام ]]*65","v":0},null,null,{"$f":"Table1[[#This Row],[المرتب ]]-(Table1[[#This Row],[السلف ]]+Table1[[#This Row],[الخصم ]])","v":0}]
[null,{"$f":"SUM(Salim!C734:AF734)","v":0},{"$f":"Table1[[#This Row],[عدد الايام ]]*65","v":0},null,null,{"$f":"Table1[[#This Row],[المرتب ]]-(Table1[[#This Row],[السلف ]]+Table1[[#This Row],[الخصم ]])","v":0}]
[null,{"$f":"SUM(Salim!C735:AF735)","v":0},{"$f":"Table1[[#This Row],[عدد الايام ]]*65","v":0},null,null,{"$f":"Table1[[#This Row],[المرتب ]]-(Table1[[#This Row],[السلف ]]+Table1[[#This Row],[الخصم ]])","v":0}]
[null,{"$f":"SUM(Salim!C736:AF736)","v":0},{"$f":"Table1[[#This Row],[عدد الايام ]]*65","v":0},null,null,{"$f":"Table1[[#This Row],[المرتب ]]-(Table1[[#This Row],[السلف ]]+Table1[[#This Row],[الخصم ]])","v":0}]
[null,{"$f":"SUM(Salim!C737:AF737)","v":0},{"$f":"Table1[[#This Row],[عدد الايام ]]*65","v":0},null,null,{"$f":"Table1[[#This Row],[المرتب ]]-(Table1[[#This Row],[السلف ]]+Table1[[#This Row],[الخصم ]])","v":0}]
[null,{"$f":"SUM(Salim!C738:AF738)","v":0},{"$f":"Table1[[#This Row],[عدد الايام ]]*65","v":0},null,null,{"$f":"Table1[[#This Row],[المرتب ]]-(Table1[[#This Row],[السلف ]]+Table1[[#This Row],[الخصم ]])","v":0}]
[null,{"$f":"SUM(Salim!C739:AF739)","v":0},{"$f":"Table1[[#This Row],[عدد الايام ]]*65","v":0},null,null,{"$f":"Table1[[#This Row],[المرتب ]]-(Table1[[#This Row],[السلف ]]+Table1[[#This Row],[الخصم ]])","v":0}]
[null,{"$f":"SUM(Salim!C740:AF740)","v":0},{"$f":"Table1[[#This Row],[عدد الايام ]]*65","v":0},null,null,{"$f":"Table1[[#This Row],[المرتب ]]-(Table1[[#This Row],[السلف ]]+Table1[[#This Row],[الخصم ]])","v":0}]
[null,{"$f":"SUM(Salim!C741:AF741)","v":0},{"$f":"Table1[[#This Row],[عدد الايام ]]*65","v":0},null,null,{"$f":"Table1[[#This Row],[المرتب ]]-(Table1[[#This Row],[السلف ]]+Table1[[#This Row],[الخصم ]])","v":0}]
[null,{"$f":"SUM(Salim!C742:AF742)","v":0},{"$f":"Table1[[#This Row],[عدد الايام ]]*65","v":0},null,null,{"$f":"Table1[[#This Row],[المرتب ]]-(Table1[[#This Row],[السلف ]]+Table1[[#This Row],[الخصم ]])","v":0}]
[null,{"$f":"SUM(Salim!C743:AF743)","v":0},{"$f":"Table1[[#This Row],[عدد الايام ]]*65","v":0},null,null,{"$f":"Table1[[#This Row],[المرتب ]]-(Table1[[#This Row],[السلف ]]+Table1[[#This Row],[الخصم ]])","v":0}]
[null,{"$f":"SUM(Salim!C744:AF744)","v":0},{"$f":"Table1[[#This Row],[عدد الايام ]]*65","v":0},null,null,{"$f":"Table1[[#This Row],[المرتب ]]-(Table1[[#This Row],[السلف ]]+Table1[[#This Row],[الخصم ]])","v":0}]
[null,{"$f":"SUM(Salim!C745:AF745)","v":0},{"$f":"Table1[[#This Row],[عدد الايام ]]*65","v":0},null,null,{"$f":"Table1[[#This Row],[المرتب ]]-(Table1[[#This Row],[السلف ]]+Table1[[#This Row],[الخصم ]])","v":0}]
[null,{"$f":"SUM(Salim!C746:AF746)","v":0},{"$f":"Table1[[#This Row],[عدد الايام ]]*65","v":0},null,null,{"$f":"Table1[[#This Row],[المرتب ]]-(Table1[[#This Row],[السلف ]]+Table1[[#This Row],[الخصم ]])","v":0}]
[null,{"$f":"SUM(Salim!C747:AF747)","v":0},{"$f":"Table1[[#This Row],[عدد الايام ]]*65","v":0},null,null,{"$f":"Table1[[#This Row],[المرتب ]]-(Table1[[#This Row],[السلف ]]+Table1[[#This Row],[الخصم ]])","v":0}]
[null,{"$f":"SUM(Salim!C748:AF748)","v":0},{"$f":"Table1[[#This Row],[عدد الايام ]]*65","v":0},null,null,{"$f":"Table1[[#This Row],[المرتب ]]-(Table1[[#This Row],[السلف ]]+Table1[[#This Row],[الخصم ]])","v":0}]
[null,{"$f":"SUM(Salim!C749:AF749)","v":0},{"$f":"Table1[[#This Row],[عدد الايام ]]*65","v":0},null,null,{"$f":"Table1[[#This Row],[المرتب ]]-(Table1[[#This Row],[السلف ]]+Table1[[#This Row],[الخصم ]])","v":0}]
[null,{"$f":"SUM(Salim!C750:AF750)","v":0},{"$f":"Table1[[#This Row],[عدد الايام ]]*65","v":0},null,null,{"$f":"Table1[[#This Row],[المرتب ]]-(Table1[[#This Row],[السلف ]]+Table1[[#This Row],[الخصم ]])","v":0}]
[null,{"$f":"SUM(Salim!C751:AF751)","v":0},{"$f":"Table1[[#This Row],[عدد الايام ]]*65","v":0},null,null,{"$f":"Table1[[#This Row],[المرتب ]]-(Table1[[#This Row],[السلف ]]+Table1[[#This Row],[الخصم ]])","v":0}]
[null,{"$f":"SUM(Salim!C752:AF752)","v":0},{"$f":"Table1[[#This Row],[عدد الايام ]]*65","v":0},null,null,{"$f":"Table1[[#This Row],[المرتب ]]-(Table1[[#This Row],[السلف ]]+Table1[[#This Row],[الخصم ]])","v":0}]
[null,{"$f":"SUM(Salim!C753:AF753)","v":0},{"$f":"Table1[[#This Row],[عدد الايام ]]*65","v":0},null,null,{"$f":"Table1[[#This Row],[المرتب ]]-(Table1[[#This Row],[السلف ]]+Table1[[#This Row],[الخصم ]])","v":0}]
[null,{"$f":"SUM(Salim!C754:AF754)","v":0},{"$f":"Table1[[#This Row],[عدد الايام ]]*65","v":0},null,null,{"$f":"Table1[[#This Row],[المرتب ]]-(Table1[[#This Row],[السلف ]]+Table1[[#This Row],[الخصم ]])","v":0}]
[null,{"$f":"SUM(Salim!C755:AF755)","v":0},{"$f":"Table1[[#This Row],[عدد الايام ]]*65","v":0},null,null,{"$f":"Table1[[#This Row],[المرتب ]]-(Table1[[#This Row],[السلف ]]+Table1[[#This Row],[الخصم ]])","v":0}]
[null,{"$f":"SUM(Salim!C756:AF756)","v":0},{"$f":"Table1[[#This Row],[عدد الايام ]]*65","v":0},null,null,{"$f":"Table1[[#This Row],[المرتب ]]-(Table1[[#This Row],[السلف ]]+Table1[[#This Row],[الخصم ]])","v":0}]
[null,{"$f":"SUM(Salim!C757:AF757)","v":0},{"$f":"Table1[[#This Row],[عدد الايام ]]*65","v":0},null,null,{"$f":"Table1[[#This Row],[المرتب ]]-(Table1[[#This Row],[السلف ]]+Table1[[#This Row],[الخصم ]])","v":0}]
[null,{"$f":"SUM(Salim!C758:AF758)","v":0},{"$f":"Table1[[#This Row],[عدد الايام ]]*65","v":0},null,null,{"$f":"Table1[[#This Row],[المرتب ]]-(Table1[[#This Row],[السلف ]]+Table1[[#This Row],[الخصم ]])","v":0}]
[null,{"$f":"SUM(Salim!C759:AF759)","v":0},{"$f":"Table1[[#This Row],[عدد الايام ]]*65","v":0},null,null,{"$f":"Table1[[#This Row],[المرتب ]]-(Table1[[#This Row],[السلف ]]+Table1[[#This Row],[الخصم ]])","v":0}]
[null,{"$f":"SUM(Salim!C760:AF760)","v":0},{"$f":"Table1[[#This Row],[عدد الايام ]]*65","v":0},null,null,{"$f":"Table1[[#This Row],[المرتب ]]-(Table1[[#This Row],[السلف ]]+Table1[[#This Row],[الخصم ]])","v":0}]
[null,{"$f":"SUM(Salim!C761:AF761)","v":0},{"$f":"Table1[[#This Row],[عدد الايام ]]*65","v":0},null,null,{"$f":"Table1[[#This Row],[المرتب ]]-(Table1[[#This Row],[السلف ]]+Table1[[#This Row],[الخصم ]])","v":0}]
[null,{"$f":"SUM(Salim!C762:AF762)","v":0},{"$f":"Table1[[#This Row],[عدد الايام ]]*65","v":0},null,null,{"$f":"Table1[[#This Row],[المرتب ]]-(Table1[[#This Row],[السلف ]]+Table1[[#This Row],[الخصم ]])","v":0}]
[null,{"$f":"SUM(Salim!C763:AF763)","v":0},{"$f":"Table1[[#This Row],[عدد الايام ]]*65","v":0},null,null,{"$f":"Table1[[#This Row],[المرتب ]]-(Table1[[#This Row],[السلف ]]+Table1[[#This Row],[الخصم ]])","v":0}]
[null,{"$f":"SUM(Salim!C764:AF764)","v":0},{"$f":"Table1[[#This Row],[عدد الايام ]]*65","v":0},null,null,{"$f":"Table1[[#This Row],[المرتب ]]-(Table1[[#This Row],[السلف ]]+Table1[[#This Row],[الخصم ]])","v":0}]
[null,{"$f":"SUM(Salim!C765:AF765)","v":0},{"$f":"Table1[[#This Row],[عدد الايام ]]*65","v":0},null,null,{"$f":"Table1[[#This Row],[المرتب ]]-(Table1[[#This Row],[السلف ]]+Table1[[#This Row],[الخصم ]])","v":0}]
[null,{"$f":"SUM(Salim!C766:AF766)","v":0},{"$f":"Table1[[#This Row],[عدد الايام ]]*65","v":0},null,null,{"$f":"Table1[[#This Row],[المرتب ]]-(Table1[[#This Row],[السلف ]]+Table1[[#This Row],[الخصم ]])","v":0}]
[null,{"$f":"SUM(Salim!C767:AF767)","v":0},{"$f":"Table1[[#This Row],[عدد الايام ]]*65","v":0},null,null,{"$f":"Table1[[#This Row],[المرتب ]]-(Table1[[#This Row],[السلف ]]+Table1[[#This Row],[الخصم ]])","v":0}]
[null,{"$f":"SUM(Salim!C768:AF768)","v":0},{"$f":"Table1[[#This Row],[عدد الايام ]]*65","v":0},null,null,{"$f":"Table1[[#This Row],[المرتب ]]-(Table1[[#This Row],[السلف ]]+Table1[[#This Row],[الخصم ]])","v":0}]
[null,{"$f":"SUM(Salim!C769:AF769)","v":0},{"$f":"Table1[[#This Row],[عدد الايام ]]*65","v":0},null,null,{"$f":"Table1[[#This Row],[المرتب ]]-(Table1[[#This Row],[السلف ]]+Table1[[#This Row],[الخصم ]])","v":0}]
[null,{"$f":"SUM(Salim!C770:AF770)","v":0},{"$f":"Table1[[#This Row],[عدد الايام ]]*65","v":0},null,null,{"$f":"Table1[[#This Row],[المرتب ]]-(Table1[[#This Row],[السلف ]]+Table1[[#This Row],[الخصم ]])","v":0}]
[null,{"$f":"SUM(Salim!C771:AF771)","v":0},{"$f":"Table1[[#This Row],[عدد الايام ]]*65","v":0},null,null,{"$f":"Table1[[#This Row],[المرتب ]]-(Table1[[#This Row],[السلف ]]+Table1[[#This Row],[الخصم ]])","v":0}]
[null,{"$f":"SUM(Salim!C772:AF772)","v":0},{"$f":"Table1[[#This Row],[عدد الايام ]]*65","v":0},null,null,{"$f":"Table1[[#This Row],[المرتب ]]-(Table1[[#This Row],[السلف ]]+Table1[[#This Row],[الخصم ]])","v":0}]
[null,{"$f":"SUM(Salim!C773:AF773)","v":0},{"$f":"Table1[[#This Row],[عدد الايام ]]*65","v":0},null,null,{"$f":"Table1[[#This Row],[المرتب ]]-(Table1[[#This Row],[السلف ]]+Table1[[#This Row],[الخصم ]])","v":0}]
[null,{"$f":"SUM(Salim!C774:AF774)","v":0},{"$f":"Table1[[#This Row],[عدد الايام ]]*65","v":0},null,null,{"$f":"Table1[[#This Row],[المرتب ]]-(Table1[[#This Row],[السلف ]]+Table1[[#This Row],[الخصم ]])","v":0}]
[null,{"$f":"SUM(Salim!C775:AF775)","v":0},{"$f":"Table1[[#This Row],[عدد الايام ]]*65","v":0},null,null,{"$f":"Table1[[#This Row],[المرتب ]]-(Table1[[#This Row],[السلف ]]+Table1[[#This Row],[الخصم ]])","v":0}]
[null,{"$f":"SUM(Salim!C776:AF776)","v":0},{"$f":"Table1[[#This Row],[عدد الايام ]]*65","v":0},null,null,{"$f":"Table1[[#This Row],[المرتب ]]-(Table1[[#This Row],[السلف ]]+Table1[[#This Row],[الخصم ]])","v":0}]
[null,{"$f":"SUM(Salim!C777:AF777)","v":0},{"$f":"Table1[[#This Row],[عدد الايام ]]*65","v":0},null,null,{"$f":"Table1[[#This Row],[المرتب ]]-(Table1[[#This Row],[السلف ]]+Table1[[#This Row],[الخصم ]])","v":0}]
[null,{"$f":"SUM(Salim!C778:AF778)","v":0},{"$f":"Table1[[#This Row],[عدد الايام ]]*65","v":0},null,null,{"$f":"Table1[[#This Row],[المرتب ]]-(Table1[[#This Row],[السلف ]]+Table1[[#This Row],[الخصم ]])","v":0}]
[null,{"$f":"SUM(Salim!C779:AF779)","v":0},{"$f":"Table1[[#This Row],[عدد الايام ]]*65","v":0},null,null,{"$f":"Table1[[#This Row],[المرتب ]]-(Table1[[#This Row],[السلف ]]+Table1[[#This Row],[الخصم ]])","v":0}]
[null,{"$f":"SUM(Salim!C780:AF780)","v":0},{"$f":"Table1[[#This Row],[عدد الايام ]]*65","v":0},null,null,{"$f":"Table1[[#This Row],[المرتب ]]-(Table1[[#This Row],[السلف ]]+Table1[[#This Row],[الخصم ]])","v":0}]
[null,{"$f":"SUM(Salim!C781:AF781)","v":0},{"$f":"Table1[[#This Row],[عدد الايام ]]*65","v":0},null,null,{"$f":"Table1[[#This Row],[المرتب ]]-(Table1[[#This Row],[السلف ]]+Table1[[#This Row],[الخصم ]])","v":0}]
[null,{"$f":"SUM(Salim!C782:AF782)","v":0},{"$f":"Table1[[#This Row],[عدد الايام ]]*65","v":0},null,null,{"$f":"Table1[[#This Row],[المرتب ]]-(Table1[[#This Row],[السلف ]]+Table1[[#This Row],[الخصم ]])","v":0}]
[null,{"$f":"SUM(Salim!C783:AF783)","v":0},{"$f":"Table1[[#This Row],[عدد الايام ]]*65","v":0},null,null,{"$f":"Table1[[#This Row],[المرتب ]]-(Table1[[#This Row],[السلف ]]+Table1[[#This Row],[الخصم ]])","v":0}]

{"sheet":"Salim","index":2,"n_rows":417,"n_cols":34,"rows_kept":417,"cut":false,"hidden":false,"merged":[]}
["Year",2019]
["Month",2]
[]
[]
["كود الموظف  ","اسم الموظف ",{"$f":"IF(MONTH(DATE($B$1,$B$2,COLUMNS($C$5:C5)))<>$B$2,\"\",DATE($B$1,$B$2,COLUMNS($C$5:C5)))","v":"2019-02-01"},{"$f":"IF(MONTH(DATE($B$1,$B$2,COLUMNS($C$5:D5)))<>$B$2,\"\",DATE($B$1,$B$2,COLUMNS($C$5:D5)))","v":"2019-02-02"},{"$f":"IF(MONTH(DATE($B$1,$B$2,COLUMNS($C$5:E5)))<>$B$2,\"\",DATE($B$1,$B$2,COLUMNS($C$5:E5)))","v":"2019-02-03"},{"$f":"IF(MONTH(DATE($B$1,$B$2,COLUMNS($C$5:F5)))<>$B$2,\"\",DATE($B$1,$B$2,COLUMNS($C$5:F5)))","v":"2019-02-04"},{"$f":"IF(MONTH(DATE($B$1,$B$2,COLUMNS($C$5:G5)))<>$B$2,\"\",DATE($B$1,$B$2,COLUMNS($C$5:G5)))","v":"2019-02-05"},{"$f":"IF(MONTH(DATE($B$1,$B$2,COLUMNS($C$5:H5)))<>$B$2,\"\",DATE($B$1,$B$2,COLUMNS($C$5:H5)))","v":"2019-02-06"},{"$f":"IF(MONTH(DATE($B$1,$B$2,COLUMNS($C$5:I5)))<>$B$2,\"\",DATE($B$1,$B$2,COLUMNS($C$5:I5)))","v":"2019-02-07"},{"$f":"IF(MONTH(DATE($B$1,$B$2,COLUMNS($C$5:J5)))<>$B$2,\"\",DATE($B$1,$B$2,COLUMNS($C$5:J5)))","v":"2019-02-08"},{"$f":"IF(MONTH(DATE($B$1,$B$2,COLUMNS($C$5:K5)))<>$B$2,\"\",DATE($B$1,$B$2,COLUMNS($C$5:K5)))","v":"2019-02-09"},{"$f":"IF(MONTH(DATE($B$1,$B$2,COLUMNS($C$5:L5)))<>$B$2,\"\",DATE($B$1,$B$2,COLUMNS($C$5:L5)))","v":"2019-02-10"},{"$f":"IF(MONTH(DATE($B$1,$B$2,COLUMNS($C$5:M5)))<>$B$2,\"\",DATE($B$1,$B$2,COLUMNS($C$5:M5)))","v":"2019-02-11"},{"$f":"IF(MONTH(DATE($B$1,$B$2,COLUMNS($C$5:N5)))<>$B$2,\"\",DATE($B$1,$B$2,COLUMNS($C$5:N5)))","v":"2019-02-12"},{"$f":"IF(MONTH(DATE($B$1,$B$2,COLUMNS($C$5:O5)))<>$B$2,\"\",DATE($B$1,$B$2,COLUMNS($C$5:O5)))","v":"2019-02-13"},{"$f":"IF(MONTH(DATE($B$1,$B$2,COLUMNS($C$5:P5)))<>$B$2,\"\",DATE($B$1,$B$2,COLUMNS($C$5:P5)))","v":"2019-02-14"},{"$f":"IF(MONTH(DATE($B$1,$B$2,COLUMNS($C$5:Q5)))<>$B$2,\"\",DATE($B$1,$B$2,COLUMNS($C$5:Q5)))","v":"2019-02-15"},{"$f":"IF(MONTH(DATE($B$1,$B$2,COLUMNS($C$5:R5)))<>$B$2,\"\",DATE($B$1,$B$2,COLUMNS($C$5:R5)))","v":"2019-02-16"},{"$f":"IF(MONTH(DATE($B$1,$B$2,COLUMNS($C$5:S5)))<>$B$2,\"\",DATE($B$1,$B$2,COLUMNS($C$5:S5)))","v":"2019-02-17"},{"$f":"IF(MONTH(DATE($B$1,$B$2,COLUMNS($C$5:T5)))<>$B$2,\"\",DATE($B$1,$B$2,COLUMNS($C$5:T5)))","v":"2019-02-18"},{"$f":"IF(MONTH(DATE($B$1,$B$2,COLUMNS($C$5:U5)))<>$B$2,\"\",DATE($B$1,$B$2,COLUMNS($C$5:U5)))","v":"2019-02-19"},{"$f":"IF(MONTH(DATE($B$1,$B$2,COLUMNS($C$5:V5)))<>$B$2,\"\",DATE($B$1,$B$2,COLUMNS($C$5:V5)))","v":"2019-02-20"},{"$f":"IF(MONTH(DATE($B$1,$B$2,COLUMNS($C$5:W5)))<>$B$2,\"\",DATE($B$1,$B$2,COLUMNS($C$5:W5)))","v":"2019-02-21"},{"$f":"IF(MONTH(DATE($B$1,$B$2,COLUMNS($C$5:X5)))<>$B$2,\"\",DATE($B$1,$B$2,COLUMNS($C$5:X5)))","v":"2019-02-22"},{"$f":"IF(MONTH(DATE($B$1,$B$2,COLUMNS($C$5:Y5)))<>$B$2,\"\",DATE($B$1,$B$2,COLUMNS($C$5:Y5)))","v":"2019-02-23"},{"$f":"IF(MONTH(DATE($B$1,$B$2,COLUMNS($C$5:Z5)))<>$B$2,\"\",DATE($B$1,$B$2,COLUMNS($C$5:Z5)))","v":"2019-02-24"},{"$f":"IF(MONTH(DATE($B$1,$B$2,COLUMNS($C$5:AA5)))<>$B$2,\"\",DATE($B$1,$B$2,COLUMNS($C$5:AA5)))","v":"2019-02-25"},{"$f":"IF(MONTH(DATE($B$1,$B$2,COLUMNS($C$5:AB5)))<>$B$2,\"\",DATE($B$1,$B$2,COLUMNS($C$5:AB5)))","v":"2019-02-26"},{"$f":"IF(MONTH(DATE($B$1,$B$2,COLUMNS($C$5:AC5)))<>$B$2,\"\",DATE($B$1,$B$2,COLUMNS($C$5:AC5)))","v":"2019-02-27"},{"$f":"IF(MONTH(DATE($B$1,$B$2,COLUMNS($C$5:AD5)))<>$B$2,\"\",DATE($B$1,$B$2,COLUMNS($C$5:AD5)))","v":"2019-02-28"},{"$f":"IF(MONTH(DATE($B$1,$B$2,COLUMNS($C$5:AE5)))<>$B$2,\"\",DATE($B$1,$B$2,COLUMNS($C$5:AE5)))","v":""},{"$f":"IF(MONTH(DATE($B$1,$B$2,COLUMNS($C$5:AF5)))<>$B$2,\"\",DATE($B$1,$B$2,COLUMNS($C$5:AF5)))","v":""},{"$f":"IF(MONTH(DATE($B$1,$B$2,COLUMNS($C$5:AG5)))<>$B$2,\"\",DATE($B$1,$B$2,COLUMNS($C$5:AG5)))","v":""},"اجمالي"]
[2,{"$f":"INDEX($B$10:$B$1004,A6)","v":"ابراهيم احمد محمد عيسي"},{"$f":"IF(C$5=\"\",\"\",VLOOKUP(WEEKDAY(C$5),{1,\"الأحد\";2,\"الإثنين\";3,\"الثلاثاء\";4,\"الأربعاء\";5,\"الخميس\";6,\"الجمعة\";7,\"السّبت\"},2,0))","v":"الجمعة"},{"$f":"IF(D$5=\"\",\"\",VLOOKUP(WEEKDAY(D$5),{1,\"الأحد\";2,\"الإثنين\";3,\"الثلاثاء\";4,\"الأربعاء\";5,\"الخميس\";6,\"الجمعة\";7,\"السّبت\"},2,0))","v":"السّبت"},{"$f":"IF(E$5=\"\",\"\",VLOOKUP(WEEKDAY(E$5),{1,\"الأحد\";2,\"الإثنين\";3,\"الثلاثاء\";4,\"الأربعاء\";5,\"الخميس\";6,\"الجمعة\";7,\"السّبت\"},2,0))","v":"الأحد"},{"$f":"IF(F$5=\"\",\"\",VLOOKUP(WEEKDAY(F$5),{1,\"الأحد\";2,\"الإثنين\";3,\"الثلاثاء\";4,\"الأربعاء\";5,\"الخميس\";6,\"الجمعة\";7,\"السّبت\"},2,0))","v":"الإثنين"},{"$f":"IF(G$5=\"\",\"\",VLOOKUP(WEEKDAY(G$5),{1,\"الأحد\";2,\"الإثنين\";3,\"الثلاثاء\";4,\"الأربعاء\";5,\"الخميس\";6,\"الجمعة\";7,\"السّبت\"},2,0))","v":"الثلاثاء"},{"$f":"IF(H$5=\"\",\"\",VLOOKUP(WEEKDAY(H$5),{1,\"الأحد\";2,\"الإثنين\";3,\"الثلاثاء\";4,\"الأربعاء\";5,\"الخميس\";6,\"الجمعة\";7,\"السّبت\"},2,0))","v":"الأربعاء"},{"$f":"IF(I$5=\"\",\"\",VLOOKUP(WEEKDAY(I$5),{1,\"الأحد\";2,\"الإثنين\";3,\"الثلاثاء\";4,\"الأربعاء\";5,\"الخميس\";6,\"الجمعة\";7,\"السّبت\"},2,0))","v":"الخميس"},{"$f":"IF(J$5=\"\",\"\",VLOOKUP(WEEKDAY(J$5),{1,\"الأحد\";2,\"الإثنين\";3,\"الثلاثاء\";4,\"الأربعاء\";5,\"الخميس\";6,\"الجمعة\";7,\"السّبت\"},2,0))","v":"الجمعة"},{"$f":"IF(K$5=\"\",\"\",VLOOKUP(WEEKDAY(K$5),{1,\"الأحد\";2,\"الإثنين\";3,\"الثلاثاء\";4,\"الأربعاء\";5,\"الخميس\";6,\"الجمعة\";7,\"السّبت\"},2,0))","v":"السّبت"},{"$f":"IF(L$5=\"\",\"\",VLOOKUP(WEEKDAY(L$5),{1,\"الأحد\";2,\"الإثنين\";3,\"الثلاثاء\";4,\"الأربعاء\";5,\"الخميس\";6,\"الجمعة\";7,\"السّبت\"},2,0))","v":"الأحد"},{"$f":"IF(M$5=\"\",\"\",VLOOKUP(WEEKDAY(M$5),{1,\"الأحد\";2,\"الإثنين\";3,\"الثلاثاء\";4,\"الأربعاء\";5,\"الخميس\";6,\"الجمعة\";7,\"السّبت\"},2,0))","v":"الإثنين"},{"$f":"IF(N$5=\"\",\"\",VLOOKUP(WEEKDAY(N$5),{1,\"الأحد\";2,\"الإثنين\";3,\"الثلاثاء\";4,\"الأربعاء\";5,\"الخميس\";6,\"الجمعة\";7,\"السّبت\"},2,0))","v":"الثلاثاء"},{"$f":"IF(O$5=\"\",\"\",VLOOKUP(WEEKDAY(O$5),{1,\"الأحد\";2,\"الإثنين\";3,\"الثلاثاء\";4,\"الأربعاء\";5,\"الخميس\";6,\"الجمعة\";7,\"السّبت\"},2,0))","v":"الأربعاء"},{"$f":"IF(P$5=\"\",\"\",VLOOKUP(WEEKDAY(P$5),{1,\"الأحد\";2,\"الإثنين\";3,\"الثلاثاء\";4,\"الأربعاء\";5,\"الخميس\";6,\"الجمعة\";7,\"السّبت\"},2,0))","v":"الخميس"},{"$f":"IF(Q$5=\"\",\"\",VLOOKUP(WEEKDAY(Q$5),{1,\"الأحد\";2,\"الإثنين\";3,\"الثلاثاء\";4,\"الأربعاء\";5,\"الخميس\";6,\"الجمعة\";7,\"السّبت\"},2,0))","v":"الجمعة"},{"$f":"IF(R$5=\"\",\"\",VLOOKUP(WEEKDAY(R$5),{1,\"الأحد\";2,\"الإثنين\";3,\"الثلاثاء\";4,\"الأربعاء\";5,\"الخميس\";6,\"الجمعة\";7,\"السّبت\"},2,0))","v":"السّبت"},{"$f":"IF(S$5=\"\",\"\",VLOOKUP(WEEKDAY(S$5),{1,\"الأحد\";2,\"الإثنين\";3,\"الثلاثاء\";4,\"الأربعاء\";5,\"الخميس\";6,\"الجمعة\";7,\"السّبت\"},2,0))","v":"الأحد"},{"$f":"IF(T$5=\"\",\"\",VLOOKUP(WEEKDAY(T$5),{1,\"الأحد\";2,\"الإثنين\";3,\"الثلاثاء\";4,\"الأربعاء\";5,\"الخميس\";6,\"الجمعة\";7,\"السّبت\"},2,0))","v":"الإثنين"},{"$f":"IF(U$5=\"\",\"\",VLOOKUP(WEEKDAY(U$5),{1,\"الأحد\";2,\"الإثنين\";3,\"الثلاثاء\";4,\"الأربعاء\";5,\"الخميس\";6,\"الجمعة\";7,\"السّبت\"},2,0))","v":"الثلاثاء"},{"$f":"IF(V$5=\"\",\"\",VLOOKUP(WEEKDAY(V$5),{1,\"الأحد\";2,\"الإثنين\";3,\"الثلاثاء\";4,\"الأربعاء\";5,\"الخميس\";6,\"الجمعة\";7,\"السّبت\"},2,0))","v":"الأربعاء"},{"$f":"IF(W$5=\"\",\"\",VLOOKUP(WEEKDAY(W$5),{1,\"الأحد\";2,\"الإثنين\";3,\"الثلاثاء\";4,\"الأربعاء\";5,\"الخميس\";6,\"الجمعة\";7,\"السّبت\"},2,0))","v":"الخميس"},{"$f":"IF(X$5=\"\",\"\",VLOOKUP(WEEKDAY(X$5),{1,\"الأحد\";2,\"الإثنين\";3,\"الثلاثاء\";4,\"الأربعاء\";5,\"الخميس\";6,\"الجمعة\";7,\"السّبت\"},2,0))","v":"الجمعة"},{"$f":"IF(Y$5=\"\",\"\",VLOOKUP(WEEKDAY(Y$5),{1,\"الأحد\";2,\"الإثنين\";3,\"الثلاثاء\";4,\"الأربعاء\";5,\"الخميس\";6,\"الجمعة\";7,\"السّبت\"},2,0))","v":"السّبت"},{"$f":"IF(Z$5=\"\",\"\",VLOOKUP(WEEKDAY(Z$5),{1,\"الأحد\";2,\"الإثنين\";3,\"الثلاثاء\";4,\"الأربعاء\";5,\"الخميس\";6,\"الجمعة\";7,\"السّبت\"},2,0))","v":"الأحد"},{"$f":"IF(AA$5=\"\",\"\",VLOOKUP(WEEKDAY(AA$5),{1,\"الأحد\";2,\"الإثنين\";3,\"الثلاثاء\";4,\"الأربعاء\";5,\"الخميس\";6,\"الجمعة\";7,\"السّبت\"},2,0))","v":"الإثنين"},{"$f":"IF(AB$5=\"\",\"\",VLOOKUP(WEEKDAY(AB$5),{1,\"الأحد\";2,\"الإثنين\";3,\"الثلاثاء\";4,\"الأربعاء\";5,\"الخميس\";6,\"الجمعة\";7,\"السّبت\"},2,0))","v":"الثلاثاء"},{"$f":"IF(AC$5=\"\",\"\",VLOOKUP(WEEKDAY(AC$5),{1,\"الأحد\";2,\"الإثنين\";3,\"الثلاثاء\";4,\"الأربعاء\";5,\"الخميس\";6,\"الجمعة\";7,\"السّبت\"},2,0))","v":"الأربعاء"},{"$f":"IF(AD$5=\"\",\"\",VLOOKUP(WEEKDAY(AD$5),{1,\"الأحد\";2,\"الإثنين\";3,\"الثلاثاء\";4,\"الأربعاء\";5,\"الخميس\";6,\"الجمعة\";7,\"السّبت\"},2,0))","v":"الخميس"},{"$f":"IF(AE$5=\"\",\"\",VLOOKUP(WEEKDAY(AE$5),{1,\"الأحد\";2,\"الإثنين\";3,\"الثلاثاء\";4,\"الأربعاء\";5,\"الخميس\";6,\"الجمعة\";7,\"السّبت\"},2,0))","v":""},{"$f":"IF(AF$5=\"\",\"\",VLOOKUP(WEEKDAY(AF$5),{1,\"الأحد\";2,\"الإثنين\";3,\"الثلاثاء\";4,\"الأربعاء\";5,\"الخميس\";6,\"الجمعة\";7,\"السّبت\"},2,0))","v":""},{"$f":"IF(AG$5=\"\",\"\",VLOOKUP(WEEKDAY(AG$5),{1,\"الأحد\";2,\"الإثنين\";3,\"الثلاثاء\";4,\"الأربعاء\";5,\"الخميس\";6,\"الجمعة\";7,\"السّبت\"},2,0))","v":""},{"$f":"SUM($C$6:$AG$6)","v":0}]
[]
[null,null,18,10,14,null,8]
["كود الموظف  ","اسم الموظف ",{"$f":"IF(MONTH(DATE($B$1,$B$2,COLUMNS($C$5:C5)))<>$B$2,\"\",DATE($B$1,$B$2,COLUMNS($C$5:C5)))","v":"2019-02-01"},{"$f":"IF(MONTH(DATE($B$1,$B$2,COLUMNS($C$5:D5)))<>$B$2,\"\",DATE($B$1,$B$2,COLUMNS($C$5:D5)))","v":"2019-02-02"},{"$f":"IF(MONTH(DATE($B$1,$B$2,COLUMNS($C$5:E5)))<>$B$2,\"\",DATE($B$1,$B$2,COLUMNS($C$5:E5)))","v":"2019-02-03"},{"$f":"IF(MONTH(DATE($B$1,$B$2,COLUMNS($C$5:F5)))<>$B$2,\"\",DATE($B$1,$B$2,COLUMNS($C$5:F5)))","v":"2019-02-04"},{"$f":"IF(MONTH(DATE($B$1,$B$2,COLUMNS($C$5:G5)))<>$B$2,\"\",DATE($B$1,$B$2,COLUMNS($C$5:G5)))","v":"2019-02-05"},{"$f":"IF(MONTH(DATE($B$1,$B$2,COLUMNS($C$5:H5)))<>$B$2,\"\",DATE($B$1,$B$2,COLUMNS($C$5:H5)))","v":"2019-02-06"},{"$f":"IF(MONTH(DATE($B$1,$B$2,COLUMNS($C$5:I5)))<>$B$2,\"\",DATE($B$1,$B$2,COLUMNS($C$5:I5)))","v":"2019-02-07"},{"$f":"IF(MONTH(DATE($B$1,$B$2,COLUMNS($C$5:J5)))<>$B$2,\"\",DATE($B$1,$B$2,COLUMNS($C$5:J5)))","v":"2019-02-08"},{"$f":"IF(MONTH(DATE($B$1,$B$2,COLUMNS($C$5:K5)))<>$B$2,\"\",DATE($B$1,$B$2,COLUMNS($C$5:K5)))","v":"2019-02-09"},{"$f":"IF(MONTH(DATE($B$1,$B$2,COLUMNS($C$5:L5)))<>$B$2,\"\",DATE($B$1,$B$2,COLUMNS($C$5:L5)))","v":"2019-02-10"},{"$f":"IF(MONTH(DATE($B$1,$B$2,COLUMNS($C$5:M5)))<>$B$2,\"\",DATE($B$1,$B$2,COLUMNS($C$5:M5)))","v":"2019-02-11"},{"$f":"IF(MONTH(DATE($B$1,$B$2,COLUMNS($C$5:N5)))<>$B$2,\"\",DATE($B$1,$B$2,COLUMNS($C$5:N5)))","v":"2019-02-12"},{"$f":"IF(MONTH(DATE($B$1,$B$2,COLUMNS($C$5:O5)))<>$B$2,\"\",DATE($B$1,$B$2,COLUMNS($C$5:O5)))","v":"2019-02-13"},{"$f":"IF(MONTH(DATE($B$1,$B$2,COLUMNS($C$5:P5)))<>$B$2,\"\",DATE($B$1,$B$2,COLUMNS($C$5:P5)))","v":"2019-02-14"},{"$f":"IF(MONTH(DATE($B$1,$B$2,COLUMNS($C$5:Q5)))<>$B$2,\"\",DATE($B$1,$B$2,COLUMNS($C$5:Q5)))","v":"2019-02-15"},{"$f":"IF(MONTH(DATE($B$1,$B$2,COLUMNS($C$5:R5)))<>$B$2,\"\",DATE($B$1,$B$2,COLUMNS($C$5:R5)))","v":"2019-02-16"},{"$f":"IF(MONTH(DATE($B$1,$B$2,COLUMNS($C$5:S5)))<>$B$2,\"\",DATE($B$1,$B$2,COLUMNS($C$5:S5)))","v":"2019-02-17"},{"$f":"IF(MONTH(DATE($B$1,$B$2,COLUMNS($C$5:T5)))<>$B$2,\"\",DATE($B$1,$B$2,COLUMNS($C$5:T5)))","v":"2019-02-18"},{"$f":"IF(MONTH(DATE($B$1,$B$2,COLUMNS($C$5:U5)))<>$B$2,\"\",DATE($B$1,$B$2,COLUMNS($C$5:U5)))","v":"2019-02-19"},{"$f":"IF(MONTH(DATE($B$1,$B$2,COLUMNS($C$5:V5)))<>$B$2,\"\",DATE($B$1,$B$2,COLUMNS($C$5:V5)))","v":"2019-02-20"},{"$f":"IF(MONTH(DATE($B$1,$B$2,COLUMNS($C$5:W5)))<>$B$2,\"\",DATE($B$1,$B$2,COLUMNS($C$5:W5)))","v":"2019-02-21"},{"$f":"IF(MONTH(DATE($B$1,$B$2,COLUMNS($C$5:X5)))<>$B$2,\"\",DATE($B$1,$B$2,COLUMNS($C$5:X5)))","v":"2019-02-22"},{"$f":"IF(MONTH(DATE($B$1,$B$2,COLUMNS($C$5:Y5)))<>$B$2,\"\",DATE($B$1,$B$2,COLUMNS($C$5:Y5)))","v":"2019-02-23"},{"$f":"IF(MONTH(DATE($B$1,$B$2,COLUMNS($C$5:Z5)))<>$B$2,\"\",DATE($B$1,$B$2,COLUMNS($C$5:Z5)))","v":"2019-02-24"},{"$f":"IF(MONTH(DATE($B$1,$B$2,COLUMNS($C$5:AA5)))<>$B$2,\"\",DATE($B$1,$B$2,COLUMNS($C$5:AA5)))","v":"2019-02-25"},{"$f":"IF(MONTH(DATE($B$1,$B$2,COLUMNS($C$5:AB5)))<>$B$2,\"\",DATE($B$1,$B$2,COLUMNS($C$5:AB5)))","v":"2019-02-26"},{"$f":"IF(MONTH(DATE($B$1,$B$2,COLUMNS($C$5:AC5)))<>$B$2,\"\",DATE($B$1,$B$2,COLUMNS($C$5:AC5)))","v":"2019-02-27"},{"$f":"IF(MONTH(DATE($B$1,$B$2,COLUMNS($C$5:AD5)))<>$B$2,\"\",DATE($B$1,$B$2,COLUMNS($C$5:AD5)))","v":"2019-02-28"},{"$f":"IF(MONTH(DATE($B$1,$B$2,COLUMNS($C$5:AE5)))<>$B$2,\"\",DATE($B$1,$B$2,COLUMNS($C$5:AE5)))","v":""},{"$f":"IF(MONTH(DATE($B$1,$B$2,COLUMNS($C$5:AF5)))<>$B$2,\"\",DATE($B$1,$B$2,COLUMNS($C$5:AF5)))","v":""},{"$f":"IF(MONTH(DATE($B$1,$B$2,COLUMNS($C$5:AG5)))<>$B$2,\"\",DATE($B$1,$B$2,COLUMNS($C$5:AG5)))","v":""},"اجمالي"]
[1,"ابانوب بشاره نصر بشاره",null,null,null,null,null,null,null,null,null,null,null,null,null,null,null,null,null,null,null,null,null,null,null,null,null,null,null,null,null,null,null,{"$f":"SUM($C10:$AG10)","v":0}]
[2,"ابراهيم احمد محمد عيسي",18,10,14,null,8,null,null,null,null,null,null,null,null,null,null,null,null,null,null,null,null,null,null,null,null,null,null,null,null,null,null,{"$f":"SUM($C11:$AG11)","v":50}]
[3,"ابراهيم عادل ابراهيم جباره",null,null,null,null,null,null,null,null,null,null,null,null,null,null,null,null,null,null,null,null,null,null,null,null,null,null,null,null,null,null,null,0]
[4,"ابراهيم عبدالحميد اسماعيل",null,null,null,null,null,null,null,null,null,null,null,null,null,null,null,null,null,null,null,null,null,null,null,null,null,null,null,null,null,null,null,0]
[5,"ابراهيم عبدالله محمد علي",null,10,null,null,null,null,null,null,null,null,null,null,null,null,null,null,null,null,null,null,null,null,null,null,null,null,null,null,null,null,null,10]
[6,"ابراهيم عقيلي ابراهيم حماد",null,null,null,null,null,null,null,null,null,null,null,null,null,null,null,null,null,null,null,null,null,null,null,null,null,null,null,null,null,null,null,0]
[7,"ابراهيم كامل علي عويان",null,null,null,null,null,null,null,null,null,null,null,null,null,null,null,null,null,null,null,null,null,null,null,null,null,null,null,null,null,null,null,0]
[8,"ابراهيم محمد ابراهيم جاد",null,null,null,null,null,null,null,null,null,null,null,null,null,null,null,null,null,null,null,null,null,null,null,null,null,null,null,null,null,null,null,0]
[9,"ابراهيم محمد شعيب علي",null,null,null,null,null,null,null,null,null,null,null,null,null,null,null,null,null,null,null,null,null,null,null,null,null,null,null,null,null,null,null,0]
[10,"ابراهيم يوسف درويش ابراهيم",null,10,null,null,null,null,null,null,null,null,null,null,null,null,null,null,null,null,null,null,null,null,null,null,null,null,null,null,null,null,null,10]
[11,"ابوالسعود صابر ابوالسعود",null,10,null,null,null,null,null,null,null,null,null,null,null,null,null,null,null,null,null,null,null,null,null,null,null,null,null,null,null,null,null,10]
[12,"ابوالعلا محمد ابوالعلا",null,null,null,null,null,null,null,null,null,null,null,null,null,null,null,null,null,null,null,null,null,null,null,null,null,null,null,null,null,null,null,0]
[13,"ابوبكر عبدالعزيز عثمان",null,null,null,null,null,null,null,null,null,null,null,null,null,null,null,null,null,null,null,null,null,null,null,null,null,null,null,null,null,null,null,0]
[14,"احمد ابو نبوت احمد",null,null,null,null,null,null,null,null,null,null,null,null,null,null,null,null,null,null,null,null,null,null,null,null,null,null,null,null,null,null,null,0]
[15,"احمد اشرف محمد حسنين",null,null,null,null,null,null,null,null,null,null,null,null,null,null,null,null,null,null,null,null,null,null,null,null,null,null,null,null,null,null,null,0]
[16,"احمد انور محمد الهلوبي",null,null,null,null,null,null,null,null,null,null,null,null,null,null,null,null,null,null,null,null,null,null,null,null,null,null,null,null,null,null,null,0]
[17,"احمد ايمن نبوي",null,null,null,null,null,null,null,null,null,null,null,null,null,null,null,null,null,null,null,null,null,null,null,null,null,null,null,null,null,null,null,0]
[18,"احمد جلال احمد محارم",null,null,null,null,null,null,null,null,null,null,null,null,null,null,null,null,null,null,null,null,null,null,null,null,null,null,null,null,null,null,null,0]
[19,"احمد جمال احمد هلال",null,null,null,null,null,null,null,null,null,null,null,null,null,null,null,null,null,null,null,null,null,null,null,null,null,null,null,null,null,null,null,0]
[20,"احمد جمال عيسي حمزه",null,null,null,null,null,null,null,null,null,null,null,null,null,null,null,null,null,null,null,null,null,null,null,null,null,null,null,null,null,null,null,0]
[21,"احمد حسن حسن حبيب",null,null,null,null,null,null,null,null,null,null,null,null,null,null,null,null,null,null,null,null,null,null,null,null,null,null,null,null,null,null,null,0]
[22,"احمد حسن سعد محمد مبروك",null,null,null,null,null,null,null,null,null,null,null,null,null,null,null,null,null,null,null,null,null,null,null,null,null,null,null,null,null,null,null,0]
[23,"احمد حسن طه محمد",null,null,null,null,null,null,null,null,null,null,null,null,null,null,null,null,null,null,null,null,null,null,null,null,null,null,null,null,null,null,null,0]
[24,"احمد حسنين ابراهيم",null,null,null,null,null,null,null,null,null,null,null,null,null,null,null,null,null,null,null,null,null,null,null,null,null,null,null,null,null,null,null,0]
[25,"احمد حسين مبروك حسين",null,null,null,null,null,null,null,null,null,null,null,null,null,null,null,null,null,null,null,null,null,null,null,null,null,null,null,null,null,null,null,0]
[26,"احمد خليل عثمان البربري",null,null,null,null,null,null,null,null,null,null,null,null,null,null,null,null,null,null,null,null,null,null,null,null,null,null,null,null,null,null,null,0]
[27,"احمد خميس محمود عبدالنبي",null,null,null,null,null,null,null,null,null,null,null,null,null,null,null,null,null,null,null,null,null,null,null,null,null,null,null,null,null,null,null,0]
[28,"احمد رجب مرشدي محمد علي",null,null,null,null,null,null,null,null,null,null,null,null,null,null,null,null,null,null,null,null,null,null,null,null,null,null,null,null,null,null,null,0]
[29,"احمد رشاد عيسي محمد",null,null,null,null,null,null,null,null,null,null,null,null,null,null,null,null,null,null,null,null,null,null,null,null,null,null,null,null,null,null,null,0]
[30,"احمد رضا حلمي عبدالوهاب",null,null,null,null,null,null,null,null,null,null,null,null,null,null,null,null,null,null,null,null,null,null,null,null,null,null,null,null,null,null,null,0]
[31,"احمد زغلول احمد القماش",null,null,null,null,null,null,null,null,null,null,null,null,null,null,null,null,null,null,null,null,null,null,null,null,null,null,null,null,null,null,null,0]
[32,"احمد سامي السيد احمد",null,null,null,null,null,null,null,null,null,null,null,null,null,null,null,null,null,null,null,null,null,null,null,null,null,null,null,null,null,null,null,0]
[33,"احمد سلامه رمضان",null,null,null,null,null,null,null,null,null,null,null,null,null,null,null,null,null,null,null,null,null,null,null,null,null,null,null,null,null,null,null,0]
[34,"احمد صلاح محمود علي ",null,null,null,null,null,null,null,null,null,null,null,null,null,null,null,null,null,null,null,null,null,null,null,null,null,null,null,null,null,null,null,0]
[35,"احمد عادل فتحي محمد",null,null,null,null,null,null,null,null,null,null,null,null,null,null,null,null,null,null,null,null,null,null,null,null,null,null,null,null,null,null,null,0]
[36,"احمد عبدالباسط محمد الطباخ",null,null,null,null,null,null,null,null,null,null,null,null,null,null,null,null,null,null,null,null,null,null,null,null,null,null,null,null,null,null,null,0]
[37,"احمد عبدالتواب احمد سالمان",null,null,null,null,null,null,null,null,null,null,null,null,null,null,null,null,null,null,null,null,null,null,null,null,null,null,null,null,null,null,null,0]
[38,"احمد عبدالحميد حسن",null,null,null,null,null,null,null,null,null,null,null,null,null,null,null,null,null,null,null,null,null,null,null,null,null,null,null,null,null,null,null,0]
[39,"احمد عبدالحميد عبدالمنصف",null,null,null,null,null,null,null,null,null,null,null,null,null,null,null,null,null,null,null,null,null,null,null,null,null,null,null,null,null,null,null,0]
[40,"احمد عبدالرحمن حسن",null,null,null,null,null,null,null,null,null,null,null,null,null,null,null,null,null,null,null,null,null,null,null,null,null,null,null,null,null,null,null,0]
[41,"احمد عبدالعزيز عبدالمقصود",null,null,null,null,null,null,null,null,null,null,null,null,null,null,null,null,null,null,null,null,null,null,null,null,null,null,null,null,null,null,null,0]
[42,"احمد عبدالله كامل عبدالعزيز",null,null,null,null,null,null,null,null,null,null,null,null,null,null,null,null,null,null,null,null,null,null,null,null,null,null,null,null,null,null,null,0]
[43,"احمد عبدالمولي محمد عبدالغفار",null,null,null,null,null,null,null,null,null,null,null,null,null,null,null,null,null,null,null,null,null,null,null,null,null,null,null,null,null,null,null,0]
[44,"احمد فتحي ابراهيم سلامه",null,null,null,null,null,null,null,null,null,null,null,null,null,null,null,null,null,null,null,null,null,null,null,null,null,null,null,null,null,null,null,0]
[45,"احمد فهمي علاء عبدالسلام",null,null,null,null,null,null,null,null,null,null,null,null,null,null,null,null,null,null,null,null,null,null,null,null,null,null,null,null,null,null,null,0]
[46,"احمد فهمي علي سلام",null,null,null,null,null,null,null,null,null,null,null,null,null,null,null,null,null,null,null,null,null,null,null,null,null,null,null,null,null,null,null,0]
[47,"احمد مجدي احمد الشرقاوي",null,null,null,null,null,null,null,null,null,null,null,null,null,null,null,null,null,null,null,null,null,null,null,null,null,null,null,null,null,null,null,0]
[48,"احمد محسن سعد محمد مبروك",null,null,null,null,null,null,null,null,null,null,null,null,null,null,null,null,null,null,null,null,null,null,null,null,null,null,null,null,null,null,null,0]
[49,"احمد محمد احمد حسن",null,null,null,null,null,null,null,null,null,null,null,null,null,null,null,null,null,null,null,null,null,null,null,null,null,null,null,null,null,null,null,0]
[50,"احمد محمد جاد الضي",null,null,null,null,null,null,null,null,null,null,null,null,null,null,null,null,null,null,null,null,null,null,null,null,null,null,null,null,null,null,null,0]
[51,"احمد محمد جمعه علي موسي",null,null,null,null,null,null,null,null,null,null,null,null,null,null,null,null,null,null,null,null,null,null,null,null,null,null,null,null,null,null,null,0]
[52,"احمد محمد حمد عبدالسيد",null,null,null,null,null,null,null,null,null,null,null,null,null,null,null,null,null,null,null,null,null,null,null,null,null,null,null,null,null,null,null,0]
[53,"احمد محمد عبدالعزيز زنون",null,null,null,null,null,null,null,null,null,null,null,null,null,null,null,null,null,null,null,null,null,null,null,null,null,null,null,null,null,null,null,0]
[54,"احمد محمد عبدالفتاح اسماعيل",null,null,null,null,null,null,null,null,null,null,null,null,null,null,null,null,null,null,null,null,null,null,null,null,null,null,null,null,null,null,null,0]
[55,"احمد محمد عبدالله سيد احمد",null,null,null,null,null,null,null,null,null,null,null,null,null,null,null,null,null,null,null,null,null,null,null,null,null,null,null,null,null,null,null,0]
[56,"احمد محمد عبدالله محمد",null,null,null,null,null,null,null,null,null,null,null,null,null,null,null,null,null,null,null,null,null,null,null,null,null,null,null,null,null,null,null,0]
[57,"احمد محمد عبدالمقصود",null,null,null,null,null,null,null,null,null,null,null,null,null,null,null,null,null,null,null,null,null,null,null,null,null,null,null,null,null,null,null,0]
[58,"احمد محمد عبدالمنعم عثمان  الجندي",null,null,null,null,null,null,null,null,null,null,null,null,null,null,null,null,null,null,null,null,null,null,null,null,null,null,null,null,null,null,null,0]
[59,"احمد محمد علي محمد علي",null,null,null,null,null,null,null,null,null,null,null,null,null,null,null,null,null,null,null,null,null,null,null,null,null,null,null,null,null,null,null,0]
[60,"احمد محمد محمد زيدان",null,null,null,null,null,null,null,null,null,null,null,null,null,null,null,null,null,null,null,null,null,null,null,null,null,null,null,null,null,null,null,0]
[61,"احمد محمد محمد عبدالسيد",null,null,null,null,null,null,null,null,null,null,null,null,null,null,null,null,null,null,null,null,null,null,null,null,null,null,null,null,null,null,null,0]
[62,"احمد محمود احمد حبيب",null,null,null,null,null,null,null,null,null,null,null,null,null,null,null,null,null,null,null,null,null,null,null,null,null,null,null,null,null,null,null,0]
[63,"احمد محمود عبدالغفار",null,null,null,null,null,null,null,null,null,null,null,null,null,null,null,null,null,null,null,null,null,null,null,null,null,null,null,null,null,null,null,0]
[64,"احمد محمود محمد حبيش",null,null,null,null,null,null,null,null,null,null,null,null,null,null,null,null,null,null,null,null,null,null,null,null,null,null,null,null,null,null,null,0]
[65,"احمد محمود محمد حسين",null,null,null,null,null,null,null,null,null,null,null,null,null,null,null,null,null,null,null,null,null,null,null,null,null,null,null,null,null,null,null,0]
[66,"احمد محمود مصطفي علي",null,null,null,null,null,null,null,null,null,null,null,null,null,null,null,null,null,null,null,null,null,null,null,null,null,null,null,null,null,null,null,{"$f":"SUM($C75:$AG75)","v":0}]
[67,"احمد مرزوق عبدالحفيظ امين",null,null,null,null,null,null,null,null,null,null,null,null,null,null,null,null,null,null,null,null,null,null,null,null,null,null,null,null,null,null,null,0]
[68,"احمد منير محتمد سعد",null,null,null,null,null,null,null,null,null,null,null,null,null,null,null,null,null,null,null,null,null,null,null,null,null,null,null,null,null,null,null,0]
[69,"ادم رمضان عوض محمد",null,null,null,null,null,null,null,null,null,null,null,null,null,null,null,null,null,null,null,null,null,null,null,null,null,null,null,null,null,null,null,0]
[70,"ادهم رمضان عوض محمد",null,null,null,null,null,null,null,null,null,null,null,null,null,null,null,null,null,null,null,null,null,null,null,null,null,null,null,null,null,null,null,0]
[71,"اسامه جمعه عبدالعظيم",null,null,null,null,null,null,null,null,null,null,null,null,null,null,null,null,null,null,null,null,null,null,null,null,null,null,null,null,null,null,null,0]
[72,"اسامه عبدالله محمود عبدالله",null,null,null,null,null,null,null,null,null,null,null,null,null,null,null,null,null,null,null,null,null,null,null,null,null,null,null,null,null,null,null,0]
[73,"اسامه محمد عبدالمنعم الغريب",null,null,null,null,null,null,null,null,null,null,null,null,null,null,null,null,null,null,null,null,null,null,null,null,null,null,null,null,null,null,null,0]
[74,"اسلام احمد رجب عيد",null,null,null,null,null,null,null,null,null,null,null,null,null,null,null,null,null,null,null,null,null,null,null,null,null,null,null,null,null,null,null,0]
[75,"اسلام طارق عبدالفتاح",null,null,null,null,null,null,null,null,null,null,null,null,null,null,null,null,null,null,null,null,null,null,null,null,null,null,null,null,null,null,null,0]
[76,"اسلام محمد عبدالرحيم",null,null,null,null,null,null,null,null,null,null,null,null,null,null,null,null,null,null,null,null,null,null,null,null,null,null,null,null,null,null,null,0]
[77,"اسلام محمود ابراهيم حسن",null,null,null,null,null,null,null,null,null,null,null,null,null,null,null,null,null,null,null,null,null,null,null,null,null,null,null,null,null,null,null,0]
[78,"اسلام مسعد عبدالعزيزسليمان",null,null,null,null,null,null,null,null,null,null,null,null,null,null,null,null,null,null,null,null,null,null,null,null,null,null,null,null,null,null,null,0]
[79,"اسلام مصطفي علي ابوالحديد",null,null,null,null,null,null,null,null,null,null,null,null,null,null,null,null,null,null,null,null,null,null,null,null,null,null,null,null,null,null,null,0]
[80,"اسلام مصطفي محمد عبدالعزيز",null,null,null,null,null,null,null,null,null,null,null,null,null,null,null,null,null,null,null,null,null,null,null,null,null,null,null,null,null,null,null,0]
[81,"اسماعيل احمد محمود احمد",null,null,null,null,null,null,null,null,null,null,null,null,null,null,null,null,null,null,null,null,null,null,null,null,null,null,null,null,null,null,null,0]
[82,"اسماعيل محمد اسماعيل الطنطي",null,null,null,null,null,null,null,null,null,null,null,null,null,null,null,null,null,null,null,null,null,null,null,null,null,null,null,null,null,null,null,0]
[83,"اسماعيل مشحوت محمد عيد",null,null,null,null,null,null,null,null,null,null,null,null,null,null,null,null,null,null,null,null,null,null,null,null,null,null,null,null,null,null,null,0]
[84,"اشرف صادق عطيه",null,null,null,null,null,null,null,null,null,null,null,null,null,null,null,null,null,null,null,null,null,null,null,null,null,null,null,null,null,null,null,0]
[85,"اكرامي محمد مجاور حموده",null,null,null,null,null,null,null,null,null,null,null,null,null,null,null,null,null,null,null,null,null,null,null,null,null,null,null,null,null,null,null,0]
[86,"اكرامي محمد محمد موسي",null,null,null,null,null,null,null,null,null,null,null,null,null,null,null,null,null,null,null,null,null,null,null,null,null,null,null,null,null,null,null,0]
[87,"السيد عبدالله عمر مصباح",null,null,null,null,null,null,null,null,null,null,null,null,null,null,null,null,null,null,null,null,null,null,null,null,null,null,null,null,null,null,null,0]
[88,"السيد مبارك السيد علي الكسبي",null,null,null,null,null,null,null,null,null,null,null,null,null,null,null,null,null,null,null,null,null,null,null,null,null,null,null,null,null,null,null,0]
[89,"السيد محمود احمد عبداللطيف",null,null,null,null,null,null,null,null,null,null,null,null,null,null,null,null,null,null,null,null,null,null,null,null,null,null,null,null,null,null,null,0]
[90,"السيد مسعود السيد محمد",null,null,null,null,null,null,null,null,null,null,null,null,null,null,null,null,null,null,null,null,null,null,null,null,null,null,null,null,null,null,null,0]
[91,"الشحات حميده مبروك اسماعيل",null,null,null,null,null,null,null,null,null,null,null,null,null,null,null,null,null,null,null,null,null,null,null,null,null,null,null,null,null,null,null,0]
[92,"انس سعد مصطفي سلامه",null,null,null,null,null,null,null,null,null,null,null,null,null,null,null,null,null,null,null,null,null,null,null,null,null,null,null,null,null,null,null,0]
[93,"انور عبدالسلام احمد العجوز",null,null,null,null,null,null,null,null,null,null,null,null,null,null,null,null,null,null,null,null,null,null,null,null,null,null,null,null,null,null,null,0]
[94,"ايمن السيد محمد ابوزيد",null,null,null,null,null,null,null,null,null,null,null,null,null,null,null,null,null,null,null,null,null,null,null,null,null,null,null,null,null,null,null,0]
[95,"ايمن جمال السيد السيد مشحوت",null,null,null,null,null,null,null,null,null,null,null,null,null,null,null,null,null,null,null,null,null,null,null,null,null,null,null,null,null,null,null,0]
[96,"ايمن عبدالعزيز محمد زايد",null,null,null,null,null,null,null,null,null,null,null,null,null,null,null,null,null,null,null,null,null,null,null,null,null,null,null,null,null,null,null,0]
[97,"ايمن محمود هاشم محمود",null,null,null,null,null,null,null,null,null,null,null,null,null,null,null,null,null,null,null,null,null,null,null,null,null,null,null,null,null,null,null,0]
[98,"ايهاب حسن عبدالنطلب غنيم",null,null,null,null,null,null,null,null,null,null,null,null,null,null,null,null,null,null,null,null,null,null,null,null,null,null,null,null,null,null,null,0]
[99,"ايهاب فتحي مصطفي",null,null,null,null,null,null,null,null,null,null,null,null,null,null,null,null,null,null,null,null,null,null,null,null,null,null,null,null,null,null,null,0]
[100,"باسم فاروق محمود همام",null,null,null,null,null,null,null,null,null,null,null,null,null,null,null,null,null,null,null,null,null,null,null,null,null,null,null,null,null,null,null,0]
[101,"باسم نصر ابراهيم اسماعيل",null,null,null,null,null,null,null,null,null,null,null,null,null,null,null,null,null,null,null,null,null,null,null,null,null,null,null,null,null,null,null,0]
[102,"بدري عبدالله بدري عبدالله",null,null,null,null,null,null,null,null,null,null,null,null,null,null,null,null,null,null,null,null,null,null,null,null,null,null,null,null,null,null,null,0]
[103,"بلال جمعه عمر امين",null,null,null,null,null,null,null,null,null,null,null,null,null,null,null,null,null,null,null,null,null,null,null,null,null,null,null,null,null,null,null,0]
[104,"بلال رزق عبدالعزيز",null,null,null,null,null,null,null,null,null,null,null,null,null,null,null,null,null,null,null,null,null,null,null,null,null,null,null,null,null,null,null,0]
[105,"بلال عبدالعزيز احمد",null,null,null,null,null,null,null,null,null,null,null,null,null,null,null,null,null,null,null,null,null,null,null,null,null,null,null,null,null,null,null,0]
[106,"بلال عطيه على احمد",null,null,null,null,null,null,null,null,null,null,null,null,null,null,null,null,null,null,null,null,null,null,null,null,null,null,null,null,null,null,null,0]
[107,"بلال محمد عبدالتواب",null,null,null,null,null,null,null,null,null,null,null,null,null,null,null,null,null,null,null,null,null,null,null,null,null,null,null,null,null,null,null,0]
[108,"بلال محمد عبدالعزيز محمد علي",null,null,null,null,null,null,null,null,null,null,null,null,null,null,null,null,null,null,null,null,null,null,null,null,null,null,null,null,null,null,null,0]
[109,"بيشوي رضا جرجس سعد",null,null,null,null,null,null,null,null,null,null,null,null,null,null,null,null,null,null,null,null,null,null,null,null,null,null,null,null,null,null,null,0]
[110,"جابر صبري محمود اسماعيل",null,null,null,null,null,null,null,null,null,null,null,null,null,null,null,null,null,null,null,null,null,null,null,null,null,null,null,null,null,null,null,0]
[111,"جاد رزق عبدالعزيز احمد شعيشع",null,null,null,null,null,null,null,null,null,null,null,null,null,null,null,null,null,null,null,null,null,null,null,null,null,null,null,null,null,null,null,0]
[112,"جرجس موريس وهيب",null,null,null,null,null,null,null,null,null,null,null,null,null,null,null,null,null,null,null,null,null,null,null,null,null,null,null,null,null,null,null,0]
[113,"جمعه حمدي زكي محمد",null,null,null,null,null,null,null,null,null,null,null,null,null,null,null,null,null,null,null,null,null,null,null,null,null,null,null,null,null,null,null,0]
[114,"حازم عبدالجليل احمد",null,null,null,null,null,null,null,null,null,null,null,null,null,null,null,null,null,null,null,null,null,null,null,null,null,null,null,null,null,null,null,0]
[115,"حسام عصام فتحي محمد",null,null,null,null,null,null,null,null,null,null,null,null,null,null,null,null,null,null,null,null,null,null,null,null,null,null,null,null,null,null,null,0]
[116,"حسام فتحي احمد الشامي",null,null,null,null,null,null,null,null,null,null,null,null,null,null,null,null,null,null,null,null,null,null,null,null,null,null,null,null,null,null,null,0]
[117,"حسام كريم ابراهيم السيد",null,null,null,null,null,null,null,null,null,null,null,null,null,null,null,null,null,null,null,null,null,null,null,null,null,null,null,null,null,null,null,0]
[118,"حسام محمد محمود يوسف",null,null,null,null,null,null,null,null,null,null,null,null,null,null,null,null,null,null,null,null,null,null,null,null,null,null,null,null,null,null,null,0]
[119,"حسام نبيل محمود ",null,null,null,null,null,null,null,null,null,null,null,null,null,null,null,null,null,null,null,null,null,null,null,null,null,null,null,null,null,null,null,0]
[120,"حسب النبي سعيد فتحي",null,null,null,null,null,null,null,null,null,null,null,null,null,null,null,null,null,null,null,null,null,null,null,null,null,null,null,null,null,null,null,0]
[121,"حسن الحسيني مسعد",null,null,null,null,null,null,null,null,null,null,null,null,null,null,null,null,null,null,null,null,null,null,null,null,null,null,null,null,null,null,null,0]
[122,"حسن رمضان السيد سليم",null,null,null,null,null,null,null,null,null,null,null,null,null,null,null,null,null,null,null,null,null,null,null,null,null,null,null,null,null,null,null,0]
[123,"حسن سامي سعيد",null,null,null,null,null,null,null,null,null,null,null,null,null,null,null,null,null,null,null,null,null,null,null,null,null,null,null,null,null,null,null,0]
[124,"حسن سامي سعيد الكر",null,null,null,null,null,null,null,null,null,null,null,null,null,null,null,null,null,null,null,null,null,null,null,null,null,null,null,null,null,null,null,0]
[125,"حسن عبدالغفار محمد عبدالعليم",null,null,null,null,null,null,null,null,null,null,null,null,null,null,null,null,null,null,null,null,null,null,null,null,null,null,null,null,null,null,null,0]
[126,"حسني عزالدين عبدالفضيل",null,null,null,null,null,null,null,null,null,null,null,null,null,null,null,null,null,null,null,null,null,null,null,null,null,null,null,null,null,null,null,0]
[127,"حسين عبدالغنى السيد محمد",null,null,null,null,null,null,null,null,null,null,null,null,null,null,null,null,null,null,null,null,null,null,null,null,null,null,null,null,null,null,null,0]
[128,"حماده رجب عبدالحفيظ",null,null,null,null,null,null,null,null,null,null,null,null,null,null,null,null,null,null,null,null,null,null,null,null,null,null,null,null,null,null,null,0]
[129,"حماده مرعي سعد محمد",null,null,null,null,null,null,null,null,null,null,null,null,null,null,null,null,null,null,null,null,null,null,null,null,null,null,null,null,null,null,null,0]
[130,"خالد عوض السيد عبدالرحمن",null,null,null,null,null,null,null,null,null,null,null,null,null,null,null,null,null,null,null,null,null,null,null,null,null,null,null,null,null,null,null,{"$f":"SUM($C139:$AG139)","v":0}]
[131,"خالد محمود محمد عبداللطيف",null,null,null,null,null,null,null,null,null,null,null,null,null,null,null,null,null,null,null,null,null,null,null,null,null,null,null,null,null,null,null,0]
[132,"خيري احمد عبدالغني هنداوي",null,null,null,null,null,null,null,null,null,null,null,null,null,null,null,null,null,null,null,null,null,null,null,null,null,null,null,null,null,null,null,0]
[133,"درويش الجوهري ابراهيم البري",null,null,null,null,null,null,null,null,null,null,null,null,null,null,null,null,null,null,null,null,null,null,null,null,null,null,null,null,null,null,null,0]
[134,"درويش رافت درويش",null,null,null,null,null,null,null,null,null,null,null,null,null,null,null,null,null,null,null,null,null,null,null,null,null,null,null,null,null,null,null,0]
[135,"راجي محمد الصباحي",null,null,null,null,null,null,null,null,null,null,null,null,null,null,null,null,null,null,null,null,null,null,null,null,null,null,null,null,null,null,null,0]
[136,"راعي سيد علي بربر ",null,null,null,null,null,null,null,null,null,null,null,null,null,null,null,null,null,null,null,null,null,null,null,null,null,null,null,null,null,null,null,0]
[137,"رافت اشرف رفعت امين",null,null,null,null,null,null,null,null,null,null,null,null,null,null,null,null,null,null,null,null,null,null,null,null,null,null,null,null,null,null,null,0]
[138,"رافت كامل عبدالله  عبدالعزيز",null,null,null,null,null,null,null,null,null,null,null,null,null,null,null,null,null,null,null,null,null,null,null,null,null,null,null,null,null,null,null,0]
[139,"رزق علاء رجب نصر عيسي",null,null,null,null,null,null,null,null,null,null,null,null,null,null,null,null,null,null,null,null,null,null,null,null,null,null,null,null,null,null,null,0]
[140,"رزق محمد رزق اسماعيل",null,null,null,null,null,null,null,null,null,null,null,null,null,null,null,null,null,null,null,null,null,null,null,null,null,null,null,null,null,null,null,0]
[141,"رضا غريب صقر محمد",null,null,null,null,null,null,null,null,null,null,null,null,null,null,null,null,null,null,null,null,null,null,null,null,null,null,null,null,null,null,null,0]
[142,"رضا معوض عباس",null,null,null,null,null,null,null,null,null,null,null,null,null,null,null,null,null,null,null,null,null,null,null,null,null,null,null,null,null,null,null,0]
[143,"رضوان شحاته احمد",null,null,null,null,null,null,null,null,null,null,null,null,null,null,null,null,null,null,null,null,null,null,null,null,null,null,null,null,null,null,null,0]
[144,"رفعت اشرف رفعت امين",null,null,null,null,null,null,null,null,null,null,null,null,null,null,null,null,null,null,null,null,null,null,null,null,null,null,null,null,null,null,null,0]
[145,"زكريا عبدالفتاح عبدالحميد",null,null,null,null,null,null,null,null,null,null,null,null,null,null,null,null,null,null,null,null,null,null,null,null,null,null,null,null,null,null,null,0]
[146,"زياد سالم احمد فراج",null,null,null,null,null,null,null,null,null,null,null,null,null,null,null,null,null,null,null,null,null,null,null,null,null,null,null,null,null,null,null,0]
[147,"سامح انور طلبه عطاالله",null,null,null,null,null,null,null,null,null,null,null,null,null,null,null,null,null,null,null,null,null,null,null,null,null,null,null,null,null,null,null,0]
[148,"سامح عابدين محمد علي",null,null,null,null,null,null,null,null,null,null,null,null,null,null,null,null,null,null,null,null,null,null,null,null,null,null,null,null,null,null,null,0]
[149,"سامي صبري جبر علي",null,null,null,null,null,null,null,null,null,null,null,null,null,null,null,null,null,null,null,null,null,null,null,null,null,null,null,null,null,null,null,0]
[150,"سامي عبدالله محمد سيد احمد",null,null,null,null,null,null,null,null,null,null,null,null,null,null,null,null,null,null,null,null,null,null,null,null,null,null,null,null,null,null,null,0]
[151,"سامي محمد عبده السيسي",null,null,null,null,null,null,null,null,null,null,null,null,null,null,null,null,null,null,null,null,null,null,null,null,null,null,null,null,null,null,null,0]
[152,"سعد محمد سعد خرش",null,null,null,null,null,null,null,null,null,null,null,null,null,null,null,null,null,null,null,null,null,null,null,null,null,null,null,null,null,null,null,0]
[153,"سعودي محمد طلبه محمد",null,null,null,null,null,null,null,null,null,null,null,null,null,null,null,null,null,null,null,null,null,null,null,null,null,null,null,null,null,null,null,0]
[154,"سعودي محمد عطيه",null,null,null,null,null,null,null,null,null,null,null,null,null,null,null,null,null,null,null,null,null,null,null,null,null,null,null,null,null,null,null,0]
[155,"سعيد علي عبدالهادي ",null,null,null,null,null,null,null,null,null,null,null,null,null,null,null,null,null,null,null,null,null,null,null,null,null,null,null,null,null,null,null,0]
[156,"سليم اسماعيل بيومي سليم ",null,null,null,null,null,null,null,null,null,null,null,null,null,null,null,null,null,null,null,null,null,null,null,null,null,null,null,null,null,null,null,0]
[157,"سليم عمار رحصان عيد",null,null,null,null,null,null,null,null,null,null,null,null,null,null,null,null,null,null,null,null,null,null,null,null,null,null,null,null,null,null,null,0]
[158,"سيد فاروق فؤاد سعد",null,null,null,null,null,null,null,null,null,null,null,null,null,null,null,null,null,null,null,null,null,null,null,null,null,null,null,null,null,null,null,0]
[159,"شامل مبروك حسن محمد",null,null,null,null,null,null,null,null,null,null,null,null,null,null,null,null,null,null,null,null,null,null,null,null,null,null,null,null,null,null,null,0]
[160,"شريف احمد محمد عبدالله",null,null,null,null,null,null,null,null,null,null,null,null,null,null,null,null,null,null,null,null,null,null,null,null,null,null,null,null,null,null,null,0]
[161,"شريف عبدالعزيز علي هندي",null,null,null,null,null,null,null,null,null,null,null,null,null,null,null,null,null,null,null,null,null,null,null,null,null,null,null,null,null,null,null,0]
[162,"شريف عمر امين محمد",null,null,null,null,null,null,null,null,null,null,null,null,null,null,null,null,null,null,null,null,null,null,null,null,null,null,null,null,null,null,null,0]
[163,"شعبان الشحات المتولي الشوكي",null,null,null,null,null,null,null,null,null,null,null,null,null,null,null,null,null,null,null,null,null,null,null,null,null,null,null,null,null,null,null,0]
[164,"شعبان بلبل الشحات المتولي",null,null,null,null,null,null,null,null,null,null,null,null,null,null,null,null,null,null,null,null,null,null,null,null,null,null,null,null,null,null,null,0]
[165,"شعبان حمدي شعبان الهليس",null,null,null,null,null,null,null,null,null,null,null,null,null,null,null,null,null,null,null,null,null,null,null,null,null,null,null,null,null,null,null,0]
[166,"شعبان عبدالكريم علواني عبدالكريم",null,null,null,null,null,null,null,null,null,null,null,null,null,null,null,null,null,null,null,null,null,null,null,null,null,null,null,null,null,null,null,0]
[167,"شكر صابر ابراهيم رضوان",null,null,null,null,null,null,null,null,null,null,null,null,null,null,null,null,null,null,null,null,null,null,null,null,null,null,null,null,null,null,null,0]
[168,"شهاب ابراهيم فرج عبدالعزيز",null,null,null,null,null,null,null,null,null,null,null,null,null,null,null,null,null,null,null,null,null,null,null,null,null,null,null,null,null,null,null,0]
[169,"صابر صبري محمود اسماعيل",null,null,null,null,null,null,null,null,null,null,null,null,null,null,null,null,null,null,null,null,null,null,null,null,null,null,null,null,null,null,null,0]
[170,"صادق عيد السيد عبدالرحمن",null,null,null,null,null,null,null,null,null,null,null,null,null,null,null,null,null,null,null,null,null,null,null,null,null,null,null,null,null,null,null,0]
[171,"صبحي توفيق السيد",null,null,null,null,null,null,null,null,null,null,null,null,null,null,null,null,null,null,null,null,null,null,null,null,null,null,null,null,null,null,null,0]
[172,"ضياء محمد محمد شحاته بحيري",null,null,null,null,null,null,null,null,null,null,null,null,null,null,null,null,null,null,null,null,null,null,null,null,null,null,null,null,null,null,null,0]
[173,"طارق عبدالفتاح السعيد عبدالباقي",null,null,null,null,null,null,null,null,null,null,null,null,null,null,null,null,null,null,null,null,null,null,null,null,null,null,null,null,null,null,null,0]
[174,"طارق عرفه عنتر زراع",null,null,null,null,null,null,null,null,null,null,null,null,null,null,null,null,null,null,null,null,null,null,null,null,null,null,null,null,null,null,null,0]
[175,"طارق محمود محمود عبدالمعطي",null,null,null,null,null,null,null,null,null,null,null,null,null,null,null,null,null,null,null,null,null,null,null,null,null,null,null,null,null,null,null,0]
[176,"طه حسن حسن الهندي",null,null,null,null,null,null,null,null,null,null,null,null,null,null,null,null,null,null,null,null,null,null,null,null,null,null,null,null,null,null,null,0]
[177,"طه عيد عبدالله شحاته",null,null,null,null,null,null,null,null,null,null,null,null,null,null,null,null,null,null,null,null,null,null,null,null,null,null,null,null,null,null,null,0]
[178,"عاصم السيد عبدالرحمن الدسوقي",null,null,null,null,null,null,null,null,null,null,null,null,null,null,null,null,null,null,null,null,null,null,null,null,null,null,null,null,null,null,null,0]
[179,"عاطف ابراهيم حليم مشحوت",null,null,null,null,null,null,null,null,null,null,null,null,null,null,null,null,null,null,null,null,null,null,null,null,null,null,null,null,null,null,null,0]
[180,"عاطف محمد محمد دراز",null,null,null,null,null,null,null,null,null,null,null,null,null,null,null,null,null,null,null,null,null,null,null,null,null,null,null,null,null,null,null,0]
[181,"عامر ابراهيم عامر بدوي",null,null,null,null,null,null,null,null,null,null,null,null,null,null,null,null,null,null,null,null,null,null,null,null,null,null,null,null,null,null,null,0]
[182,"عامر حبشي محمد حبشي",null,null,null,null,null,null,null,null,null,null,null,null,null,null,null,null,null,null,null,null,null,null,null,null,null,null,null,null,null,null,null,0]
[183,"عبدالحميد غريب عبدالحميد",null,null,null,null,null,null,null,null,null,null,null,null,null,null,null,null,null,null,null,null,null,null,null,null,null,null,null,null,null,null,null,0]
[184,"عبدالرحمن ابراهيم عبدالغني الطوخي",null,null,null,null,null,null,null,null,null,null,null,null,null,null,null,null,null,null,null,null,null,null,null,null,null,null,null,null,null,null,null,0]
[185,"عبدالرحمن ابراهيم عيد الفقي",null,null,null,null,null,null,null,null,null,null,null,null,null,null,null,null,null,null,null,null,null,null,null,null,null,null,null,null,null,null,null,0]
[186,"عبدالرحمن سالم عبدالرحمن",null,null,null,null,null,null,null,null,null,null,null,null,null,null,null,null,null,null,null,null,null,null,null,null,null,null,null,null,null,null,null,0]
[187,"عبدالرحمن عبداللاه عبدالعزيز طه",null,null,null,null,null,null,null,null,null,null,null,null,null,null,null,null,null,null,null,null,null,null,null,null,null,null,null,null,null,null,null,0]
[188,"عبدالرحمن محمد زياد محمد ",null,null,null,null,null,null,null,null,null,null,null,null,null,null,null,null,null,null,null,null,null,null,null,null,null,null,null,null,null,null,null,0]
[189,"عبدالستارعيدعبدالستارعيسي ",null,null,null,null,null,null,null,null,null,null,null,null,null,null,null,null,null,null,null,null,null,null,null,null,null,null,null,null,null,null,null,0]
[190,"عبدالسلام فتحي شلبي",null,null,null,null,null,null,null,null,null,null,null,null,null,null,null,null,null,null,null,null,null,null,null,null,null,null,null,null,null,null,null,0]
[191,"عبدالسلام فتحي محمد",null,null,null,null,null,null,null,null,null,null,null,null,null,null,null,null,null,null,null,null,null,null,null,null,null,null,null,null,null,null,null,0]
[192,"عبدالسلام مصطفي علي",null,null,null,null,null,null,null,null,null,null,null,null,null,null,null,null,null,null,null,null,null,null,null,null,null,null,null,null,null,null,null,0]
[193,"عبدالعزيز حمدي عبدالعزيز محمد",null,null,null,null,null,null,null,null,null,null,null,null,null,null,null,null,null,null,null,null,null,null,null,null,null,null,null,null,null,null,null,0]
[194,"عبدالغفار محمد منير",null,null,null,null,null,null,null,null,null,null,null,null,null,null,null,null,null,null,null,null,null,null,null,null,null,null,null,null,null,null,null,{"$f":"SUM($C203:$AG203)","v":0}]
[195,"عبدالغفور محمد عبالغفور دره",null,null,null,null,null,null,null,null,null,null,null,null,null,null,null,null,null,null,null,null,null,null,null,null,null,null,null,null,null,null,null,0]
[196,"عبدالغني جمال عاشور محمد",null,null,null,null,null,null,null,null,null,null,null,null,null,null,null,null,null,null,null,null,null,null,null,null,null,null,null,null,null,null,null,0]
[197,"عبدالفتاح جمعه عبدالحكيم جمعه",null,null,null,null,null,null,null,null,null,null,null,null,null,null,null,null,null,null,null,null,null,null,null,null,null,null,null,null,null,null,null,0]
[198,"عبدالفتاح عبدالقوي عبدالفتاح",null,null,null,null,null,null,null,null,null,null,null,null,null,null,null,null,null,null,null,null,null,null,null,null,null,null,null,null,null,null,null,0]
[199,"عبدالكريم محمد محمود",null,null,null,null,null,null,null,null,null,null,null,null,null,null,null,null,null,null,null,null,null,null,null,null,null,null,null,null,null,null,null,0]
[200,"عبدالله ابوالسعود عبدالمجيد",null,null,null,null,null,null,null,null,null,null,null,null,null,null,null,null,null,null,null,null,null,null,null,null,null,null,null,null,null,null,null,0]
[201,"عبدالله ابوبكر سلامه",null,null,null,null,null,null,null,null,null,null,null,null,null,null,null,null,null,null,null,null,null,null,null,null,null,null,null,null,null,null,null,0]
[202,"عبدالله احمد كامل علي عويان",null,null,null,null,null,null,null,null,null,null,null,null,null,null,null,null,null,null,null,null,null,null,null,null,null,null,null,null,null,null,null,0]
[203,"عبدالله حسين احمد جاد الرب",null,null,null,null,null,null,null,null,null,null,null,null,null,null,null,null,null,null,null,null,null,null,null,null,null,null,null,null,null,null,null,0]
[204,"عبدالله سالم عبدالرحمن",null,null,null,null,null,null,null,null,null,null,null,null,null,null,null,null,null,null,null,null,null,null,null,null,null,null,null,null,null,null,null,0]
[205,"عبدالله سامي مصطفي الجمال",null,null,null,null,null,null,null,null,null,null,null,null,null,null,null,null,null,null,null,null,null,null,null,null,null,null,null,null,null,null,null,0]
[206,"عبدالله سامي مصطفي كامل القط",null,null,null,null,null,null,null,null,null,null,null,null,null,null,null,null,null,null,null,null,null,null,null,null,null,null,null,null,null,null,null,0]
[207,"عبدالله شعبان عبدالله",null,null,null,null,null,null,null,null,null,null,null,null,null,null,null,null,null,null,null,null,null,null,null,null,null,null,null,null,null,null,null,0]
[208,"عبدالله عبدالحميد عبدالله",null,null,null,null,null,null,null,null,null,null,null,null,null,null,null,null,null,null,null,null,null,null,null,null,null,null,null,null,null,null,null,0]
[209,"عبدالله عبدالصادق محمد ",null,null,null,null,null,null,null,null,null,null,null,null,null,null,null,null,null,null,null,null,null,null,null,null,null,null,null,null,null,null,null,0]
[210,"عبدالله علي عبدالله علي",null,null,null,null,null,null,null,null,null,null,null,null,null,null,null,null,null,null,null,null,null,null,null,null,null,null,null,null,null,null,null,0]
[211,"عبدالله فوزي عبدالله مرجان",null,null,null,null,null,null,null,null,null,null,null,null,null,null,null,null,null,null,null,null,null,null,null,null,null,null,null,null,null,null,null,0]
[212,"عبدالله محمد الصافي عبدالفتاح",null,null,null,null,null,null,null,null,null,null,null,null,null,null,null,null,null,null,null,null,null,null,null,null,null,null,null,null,null,null,null,0]
[213,"عبدالله محمد صبحي متولي",null,null,null,null,null,null,null,null,null,null,null,null,null,null,null,null,null,null,null,null,null,null,null,null,null,null,null,null,null,null,null,0]
[214,"عبدالله محمد عبدالله خليفه محمد",null,null,null,null,null,null,null,null,null,null,null,null,null,null,null,null,null,null,null,null,null,null,null,null,null,null,null,null,null,null,null,0]
[215,"عبدالناصر احمد عبدالوهاب",null,null,null,null,null,null,null,null,null,null,null,null,null,null,null,null,null,null,null,null,null,null,null,null,null,null,null,null,null,null,null,0]
[216,"عبدالنبي حسين عبداللطيف",null,null,null,null,null,null,null,null,null,null,null,null,null,null,null,null,null,null,null,null,null,null,null,null,null,null,null,null,null,null,null,0]
[217,"عبدالواحد كمال عبدالواحد",null,null,null,null,null,null,null,null,null,null,null,null,null,null,null,null,null,null,null,null,null,null,null,null,null,null,null,null,null,null,null,0]
[218,"عز الدين فتحي قرني بكر",null,null,null,null,null,null,null,null,null,null,null,null,null,null,null,null,null,null,null,null,null,null,null,null,null,null,null,null,null,null,null,0]
[219,"عزت محمد ابوالعز",null,null,null,null,null,null,null,null,null,null,null,null,null,null,null,null,null,null,null,null,null,null,null,null,null,null,null,null,null,null,null,0]
[220,"عطيه مصطفي السيد الجنزوري",null,null,null,null,null,null,null,null,null,null,null,null,null,null,null,null,null,null,null,null,null,null,null,null,null,null,null,null,null,null,null,0]
[221,"علاء جمعه التايب جمعه",null,null,null,null,null,null,null,null,null,null,null,null,null,null,null,null,null,null,null,null,null,null,null,null,null,null,null,null,null,null,null,0]
[222,"علي احمد علي قنديل",null,null,null,null,null,null,null,null,null,null,null,null,null,null,null,null,null,null,null,null,null,null,null,null,null,null,null,null,null,null,null,0]
[223,"علي احمدعلي عوض العزب",null,null,null,null,null,null,null,null,null,null,null,null,null,null,null,null,null,null,null,null,null,null,null,null,null,null,null,null,null,null,null,0]
[224,"علي السيد رياض ",null,null,null,null,null,null,null,null,null,null,null,null,null,null,null,null,null,null,null,null,null,null,null,null,null,null,null,null,null,null,null,0]
[225,"علي صلاح علي سليمان",null,null,null,null,null,null,null,null,null,null,null,null,null,null,null,null,null,null,null,null,null,null,null,null,null,null,null,null,null,null,null,0]
[226,"علي عبدالباسط علي الجندي",null,null,null,null,null,null,null,null,null,null,null,null,null,null,null,null,null,null,null,null,null,null,null,null,null,null,null,null,null,null,null,0]
[227,"علي عبدالهادي علي",null,null,null,null,null,null,null,null,null,null,null,null,null,null,null,null,null,null,null,null,null,null,null,null,null,null,null,null,null,null,null,0]
[228,"علي عيسي امين عيسي",null,null,null,null,null,null,null,null,null,null,null,null,null,null,null,null,null,null,null,null,null,null,null,null,null,null,null,null,null,null,null,0]
[229,"علي غزالي ابراهيم",null,null,null,null,null,null,null,null,null,null,null,null,null,null,null,null,null,null,null,null,null,null,null,null,null,null,null,null,null,null,null,0]
[230,"علي محمد علي توفيق",null,null,null,null,null,null,null,null,null,null,null,null,null,null,null,null,null,null,null,null,null,null,null,null,null,null,null,null,null,null,null,0]
[231,"علي محمود محمد محمود الدجاج",null,null,null,null,null,null,null,null,null,null,null,null,null,null,null,null,null,null,null,null,null,null,null,null,null,null,null,null,null,null,null,0]
[232,"عماد عبدالله مصطفي عبدالله",null,null,null,null,null,null,null,null,null,null,null,null,null,null,null,null,null,null,null,null,null,null,null,null,null,null,null,null,null,null,null,0]
[233,"عماد محمد عبداللاه معوض",null,null,null,null,null,null,null,null,null,null,null,null,null,null,null,null,null,null,null,null,null,null,null,null,null,null,null,null,null,null,null,0]
[234,"عمارمحمد مصطفي شحاته",null,null,null,null,null,null,null,null,null,null,null,null,null,null,null,null,null,null,null,null,null,null,null,null,null,null,null,null,null,null,null,0]
[235,"عمر عبدالعال سليمان عثمان",null,null,null,null,null,null,null,null,null,null,null,null,null,null,null,null,null,null,null,null,null,null,null,null,null,null,null,null,null,null,null,0]
[236,"عمر فتحي عبدالفتاح احمد",null,null,null,null,null,null,null,null,null,null,null,null,null,null,null,null,null,null,null,null,null,null,null,null,null,null,null,null,null,null,null,0]
[237,"عمر ممدوح ابراهيم جويده",null,null,null,null,null,null,null,null,null,null,null,null,null,null,null,null,null,null,null,null,null,null,null,null,null,null,null,null,null,null,null,0]
[238,"عمرو ثابت عبدالفتاح علي",null,null,null,null,null,null,null,null,null,null,null,null,null,null,null,null,null,null,null,null,null,null,null,null,null,null,null,null,null,null,null,0]
[239,"عمرو حامد عبدالله قناوي",null,null,null,null,null,null,null,null,null,null,null,null,null,null,null,null,null,null,null,null,null,null,null,null,null,null,null,null,null,null,null,0]
[240,"عمرو حامد عطا الله قناوي",null,null,null,null,null,null,null,null,null,null,null,null,null,null,null,null,null,null,null,null,null,null,null,null,null,null,null,null,null,null,null,0]
[241,"عمرو عبدالصمد محمد",null,null,null,null,null,null,null,null,null,null,null,null,null,null,null,null,null,null,null,null,null,null,null,null,null,null,null,null,null,null,null,0]
[242,"عمرو محمد حسن عبدالغني",null,null,null,null,null,null,null,null,null,null,null,null,null,null,null,null,null,null,null,null,null,null,null,null,null,null,null,null,null,null,null,0]
[243,"عمرو محمد عبدالصمد",null,null,null,null,null,null,null,null,null,null,null,null,null,null,null,null,null,null,null,null,null,null,null,null,null,null,null,null,null,null,null,0]
[244,"عمرو محمد عبدالفتاح",null,null,null,null,null,null,null,null,null,null,null,null,null,null,null,null,null,null,null,null,null,null,null,null,null,null,null,null,null,null,null,0]
[245,"عمرو محمد فهمي خليفه",null,null,null,null,null,null,null,null,null,null,null,null,null,null,null,null,null,null,null,null,null,null,null,null,null,null,null,null,null,null,null,0]
[246,"عيد عبدالمنعم عيد عجيبه",null,null,null,null,null,null,null,null,null,null,null,null,null,null,null,null,null,null,null,null,null,null,null,null,null,null,null,null,null,null,null,0]
[247,"فارس رشاد حماد عبدالهادي",null,null,null,null,null,null,null,null,null,null,null,null,null,null,null,null,null,null,null,null,null,null,null,null,null,null,null,null,null,null,null,0]
[248,"فارس صبري رزق",null,null,null,null,null,null,null,null,null,null,null,null,null,null,null,null,null,null,null,null,null,null,null,null,null,null,null,null,null,null,null,0]
[249,"فارس ياسر احمد عبدالعليم علي",null,null,null,null,null,null,null,null,null,null,null,null,null,null,null,null,null,null,null,null,null,null,null,null,null,null,null,null,null,null,null,0]
[250,"فايز عبدالله احمد ابراهيم",null,null,null,null,null,null,null,null,null,null,null,null,null,null,null,null,null,null,null,null,null,null,null,null,null,null,null,null,null,null,null,0]
[251,"فتحي احمد محمد عبده الحريري",null,null,null,null,null,null,null,null,null,null,null,null,null,null,null,null,null,null,null,null,null,null,null,null,null,null,null,null,null,null,null,0]
[252,"فهمي عباس عبدالدايم حلفايه",null,null,null,null,null,null,null,null,null,null,null,null,null,null,null,null,null,null,null,null,null,null,null,null,null,null,null,null,null,null,null,0]
[253,"فوقي جلال عبده النحري",null,null,null,null,null,null,null,null,null,null,null,null,null,null,null,null,null,null,null,null,null,null,null,null,null,null,null,null,null,null,null,0]
[254,"كامل عبدالله كامل الشيخ",null,null,null,null,null,null,null,null,null,null,null,null,null,null,null,null,null,null,null,null,null,null,null,null,null,null,null,null,null,null,null,0]
[255,"كريم سليمان عيد عبدالمحسن",null,null,null,null,null,null,null,null,null,null,null,null,null,null,null,null,null,null,null,null,null,null,null,null,null,null,null,null,null,null,null,0]
[256,"كريم عبدالحارس عبدالراضي",null,null,null,null,null,null,null,null,null,null,null,null,null,null,null,null,null,null,null,null,null,null,null,null,null,null,null,null,null,null,null,0]
[257,"كريم عبدالقوي عبدالفتاح",null,null,null,null,null,null,null,null,null,null,null,null,null,null,null,null,null,null,null,null,null,null,null,null,null,null,null,null,null,null,null,0]
[258,"كمال شريف عبدالمجيد بشر",null,null,null,null,null,null,null,null,null,null,null,null,null,null,null,null,null,null,null,null,null,null,null,null,null,null,null,null,null,null,null,{"$f":"SUM($C267:$AG267)","v":0}]
[259,"كيرلس صلاح رزق الله",null,null,null,null,null,null,null,null,null,null,null,null,null,null,null,null,null,null,null,null,null,null,null,null,null,null,null,null,null,null,null,0]
[260,"كيرلس غندي رزق مللك",null,null,null,null,null,null,null,null,null,null,null,null,null,null,null,null,null,null,null,null,null,null,null,null,null,null,null,null,null,null,null,0]
[261,"كيرلس فادي ناجي",null,null,null,null,null,null,null,null,null,null,null,null,null,null,null,null,null,null,null,null,null,null,null,null,null,null,null,null,null,null,null,0]
[262,"ماهر احمد علي حماد",null,null,null,null,null,null,null,null,null,null,null,null,null,null,null,null,null,null,null,null,null,null,null,null,null,null,null,null,null,null,null,0]
[263,"مبروك عبدالسلام عمار ابراهيم",null,null,null,null,null,null,null,null,null,null,null,null,null,null,null,null,null,null,null,null,null,null,null,null,null,null,null,null,null,null,null,0]
[264,"مبروك محمود مبروك مطر",null,null,null,null,null,null,null,null,null,null,null,null,null,null,null,null,null,null,null,null,null,null,null,null,null,null,null,null,null,null,null,0]
[265,"مجدي زكريا عباس",null,null,null,null,null,null,null,null,null,null,null,null,null,null,null,null,null,null,null,null,null,null,null,null,null,null,null,null,null,null,null,0]
[266,"محمد ابراهيم السيد ابراهيم",null,null,null,null,null,null,null,null,null,null,null,null,null,null,null,null,null,null,null,null,null,null,null,null,null,null,null,null,null,null,null,0]
[267,"محمد ابراهيم عاشور عبدالوهاب",null,null,null,null,null,null,null,null,null,null,null,null,null,null,null,null,null,null,null,null,null,null,null,null,null,null,null,null,null,null,null,0]
[268,"محمد ابراهيم عبدالمنعم مغربي",null,null,null,null,null,null,null,null,null,null,null,null,null,null,null,null,null,null,null,null,null,null,null,null,null,null,null,null,null,null,null,0]
[269,"محمد ابراهيم محمود سليمان",null,null,null,null,null,null,null,null,null,null,null,null,null,null,null,null,null,null,null,null,null,null,null,null,null,null,null,null,null,null,null,0]
[270,"محمد احمد رفاعي محمد البياع",null,null,null,null,null,null,null,null,null,null,null,null,null,null,null,null,null,null,null,null,null,null,null,null,null,null,null,null,null,null,null,0]
[271,"محمد احمد زكريا شهبو",null,null,null,null,null,null,null,null,null,null,null,null,null,null,null,null,null,null,null,null,null,null,null,null,null,null,null,null,null,null,null,0]
[272,"محمد احمد سيد احمد محفوظ",null,null,null,null,null,null,null,null,null,null,null,null,null,null,null,null,null,null,null,null,null,null,null,null,null,null,null,null,null,null,null,0]
[273,"محمد احمد عبدالحكم عبدالمطلب",null,null,null,null,null,null,null,null,null,null,null,null,null,null,null,null,null,null,null,null,null,null,null,null,null,null,null,null,null,null,null,0]
[274,"محمد احمد عبدالرحيم",null,null,null,null,null,null,null,null,null,null,null,null,null,null,null,null,null,null,null,null,null,null,null,null,null,null,null,null,null,null,null,0]
[275,"محمد احمد عبدالمجيد عسل",null,null,null,null,null,null,null,null,null,null,null,null,null,null,null,null,null,null,null,null,null,null,null,null,null,null,null,null,null,null,null,0]
[276,"محمد احمد عبدالمقصود شتله ",null,null,null,null,null,null,null,null,null,null,null,null,null,null,null,null,null,null,null,null,null,null,null,null,null,null,null,null,null,null,null,0]
[277,"محمد احمد علي قنديل",null,null,null,null,null,null,null,null,null,null,null,null,null,null,null,null,null,null,null,null,null,null,null,null,null,null,null,null,null,null,null,0]
[278,"محمد احمد عيداحمد",null,null,null,null,null,null,null,null,null,null,null,null,null,null,null,null,null,null,null,null,null,null,null,null,null,null,null,null,null,null,null,0]
[279,"محمد احمد محمد عبدالله",null,null,null,null,null,null,null,null,null,null,null,null,null,null,null,null,null,null,null,null,null,null,null,null,null,null,null,null,null,null,null,0]
[280,"محمد احمد مرضي",null,null,null,null,null,null,null,null,null,null,null,null,null,null,null,null,null,null,null,null,null,null,null,null,null,null,null,null,null,null,null,0]
[281,"محمد اسماعيل محمد احمد الديب",null,null,null,null,null,null,null,null,null,null,null,null,null,null,null,null,null,null,null,null,null,null,null,null,null,null,null,null,null,null,null,0]
[282,"محمد اشرف محمد محمود",null,null,null,null,null,null,null,null,null,null,null,null,null,null,null,null,null,null,null,null,null,null,null,null,null,null,null,null,null,null,null,0]
[283,"محمد السطوحي محمد عبدالعال",null,null,null,null,null,null,null,null,null,null,null,null,null,null,null,null,null,null,null,null,null,null,null,null,null,null,null,null,null,null,null,0]
[284,"محمد السعيد عبدالجواد",null,null,null,null,null,null,null,null,null,null,null,null,null,null,null,null,null,null,null,null,null,null,null,null,null,null,null,null,null,null,null,0]
[285,"محمد الشحات عبدالحميد",null,null,null,null,null,null,null,null,null,null,null,null,null,null,null,null,null,null,null,null,null,null,null,null,null,null,null,null,null,null,null,0]
[286,"محمد امين عبدالحميد شلبي",null,null,null,null,null,null,null,null,null,null,null,null,null,null,null,null,null,null,null,null,null,null,null,null,null,null,null,null,null,null,null,0]
[287,"محمد انور خميس السيد",null,null,null,null,null,null,null,null,null,null,null,null,null,null,null,null,null,null,null,null,null,null,null,null,null,null,null,null,null,null,null,0]
[288,"محمد جمال عبدالفضيل ابراهيم ",null,null,null,null,null,null,null,null,null,null,null,null,null,null,null,null,null,null,null,null,null,null,null,null,null,null,null,null,null,null,null,0]
[289,"محمد جمعه عبدالحكيم",null,null,null,null,null,null,null,null,null,null,null,null,null,null,null,null,null,null,null,null,null,null,null,null,null,null,null,null,null,null,null,0]
[290,"محمد جمعه عبدالعظيم محمد",null,null,null,null,null,null,null,null,null,null,null,null,null,null,null,null,null,null,null,null,null,null,null,null,null,null,null,null,null,null,null,0]
[291,"محمد حسام الدين محمد عباس",null,null,null,null,null,null,null,null,null,null,null,null,null,null,null,null,null,null,null,null,null,null,null,null,null,null,null,null,null,null,null,0]
[292,"محمد حسن صابر احمد",null,null,null,null,null,null,null,null,null,null,null,null,null,null,null,null,null,null,null,null,null,null,null,null,null,null,null,null,null,null,null,0]
[293,"محمد حسني خيرت عبدالعزيز",null,null,null,null,null,null,null,null,null,null,null,null,null,null,null,null,null,null,null,null,null,null,null,null,null,null,null,null,null,null,null,0]
[294,"محمد حمدي محمد علي ",null,null,null,null,null,null,null,null,null,null,null,null,null,null,null,null,null,null,null,null,null,null,null,null,null,null,null,null,null,null,null,0]
[295,"محمد خالد حلمي الشمالي",null,null,null,null,null,null,null,null,null,null,null,null,null,null,null,null,null,null,null,null,null,null,null,null,null,null,null,null,null,null,null,0]
[296,"محمد رجب عبدالظاهر عيد",null,null,null,null,null,null,null,null,null,null,null,null,null,null,null,null,null,null,null,null,null,null,null,null,null,null,null,null,null,null,null,0]
[297,"محمد رضا ابراهيم مبروك",null,null,null,null,null,null,null,null,null,null,null,null,null,null,null,null,null,null,null,null,null,null,null,null,null,null,null,null,null,null,null,0]
[298,"محمد رضا محمد علي اسماعيل",null,null,null,null,null,null,null,null,null,null,null,null,null,null,null,null,null,null,null,null,null,null,null,null,null,null,null,null,null,null,null,0]
[299,"محمد زكريا عبده البربري",null,null,null,null,null,null,null,null,null,null,null,null,null,null,null,null,null,null,null,null,null,null,null,null,null,null,null,null,null,null,null,0]
[300,"محمد سامي عبدالعزيز محمد",null,null,null,null,null,null,null,null,null,null,null,null,null,null,null,null,null,null,null,null,null,null,null,null,null,null,null,null,null,null,null,0]
[301,"محمد سعيد قطب محمود",null,null,null,null,null,null,null,null,null,null,null,null,null,null,null,null,null,null,null,null,null,null,null,null,null,null,null,null,null,null,null,0]
[302,"محمد سمير حسن عامر",null,null,null,null,null,null,null,null,null,null,null,null,null,null,null,null,null,null,null,null,null,null,null,null,null,null,null,null,null,null,null,0]
[303,"محمد شديد حسن  مراجعه علي الاسم",null,null,null,null,null,null,null,null,null,null,null,null,null,null,null,null,null,null,null,null,null,null,null,null,null,null,null,null,null,null,null,0]
[304,"محمد صبحي محمد الوكيل",null,null,null,null,null,null,null,null,null,null,null,null,null,null,null,null,null,null,null,null,null,null,null,null,null,null,null,null,null,null,null,0]
[305,"محمد صبري محمد حميده",null,null,null,null,null,null,null,null,null,null,null,null,null,null,null,null,null,null,null,null,null,null,null,null,null,null,null,null,null,null,null,0]
[306,"محمد صبري محمود الشرقاوي",null,null,null,null,null,null,null,null,null,null,null,null,null,null,null,null,null,null,null,null,null,null,null,null,null,null,null,null,null,null,null,0]
[307,"محمد طارق سعيد محمد",null,null,null,null,null,null,null,null,null,null,null,null,null,null,null,null,null,null,null,null,null,null,null,null,null,null,null,null,null,null,null,0]
[308,"محمد طلعت سيد عبدالرحيم",null,null,null,null,null,null,null,null,null,null,null,null,null,null,null,null,null,null,null,null,null,null,null,null,null,null,null,null,null,null,null,0]
[309,"محمد عبدالباسط محمد الطباخ",null,null,null,null,null,null,null,null,null,null,null,null,null,null,null,null,null,null,null,null,null,null,null,null,null,null,null,null,null,null,null,0]
[310,"محمد عبدالجليل حلاجي عبدالجليل",null,null,null,null,null,null,null,null,null,null,null,null,null,null,null,null,null,null,null,null,null,null,null,null,null,null,null,null,null,null,null,0]
[311,"محمد عبدالحميد امين هندي",null,null,null,null,null,null,null,null,null,null,null,null,null,null,null,null,null,null,null,null,null,null,null,null,null,null,null,null,null,null,null,0]
[312,"محمد عبدالرحيم عبدالمنعم",null,null,null,null,null,null,null,null,null,null,null,null,null,null,null,null,null,null,null,null,null,null,null,null,null,null,null,null,null,null,null,0]
[313,"محمد عبدالعزيز محمد زايد",null,null,null,null,null,null,null,null,null,null,null,null,null,null,null,null,null,null,null,null,null,null,null,null,null,null,null,null,null,null,null,0]
[314,"محمد عبدالغني جبر غنيم",null,null,null,null,null,null,null,null,null,null,null,null,null,null,null,null,null,null,null,null,null,null,null,null,null,null,null,null,null,null,null,0]
[315,"محمد عبداللطيف احمد البسيوني",null,null,null,null,null,null,null,null,null,null,null,null,null,null,null,null,null,null,null,null,null,null,null,null,null,null,null,null,null,null,null,0]
[316,"محمد عبداللطيف محمد عثمان",null,null,null,null,null,null,null,null,null,null,null,null,null,null,null,null,null,null,null,null,null,null,null,null,null,null,null,null,null,null,null,0]
[317,"محمد عبده الهولي علي",null,null,null,null,null,null,null,null,null,null,null,null,null,null,null,null,null,null,null,null,null,null,null,null,null,null,null,null,null,null,null,0]
[318,"محمد علي احمد علي مقبول",null,null,null,null,null,null,null,null,null,null,null,null,null,null,null,null,null,null,null,null,null,null,null,null,null,null,null,null,null,null,null,0]
[319,"محمد علي محمود علي نبيده علي",null,null,null,null,null,null,null,null,null,null,null,null,null,null,null,null,null,null,null,null,null,null,null,null,null,null,null,null,null,null,null,0]
[320,"محمد عمران حسن محمد",null,null,null,null,null,null,null,null,null,null,null,null,null,null,null,null,null,null,null,null,null,null,null,null,null,null,null,null,null,null,null,0]
[321,"محمد غريب رفاعي البياع",null,null,null,null,null,null,null,null,null,null,null,null,null,null,null,null,null,null,null,null,null,null,null,null,null,null,null,null,null,null,null,0]
[322,"محمد فتحي عبدالجليل",null,null,null,null,null,null,null,null,null,null,null,null,null,null,null,null,null,null,null,null,null,null,null,null,null,null,null,null,null,null,null,{"$f":"SUM($C331:$AG331)","v":0}]
[323,"محمد فتحي عبدالمجيد النجار",null,null,null,null,null,null,null,null,null,null,null,null,null,null,null,null,null,null,null,null,null,null,null,null,null,null,null,null,null,null,null,0]
[324,"محمد فتحي عطية عبدالجليل ",null,null,null,null,null,null,null,null,null,null,null,null,null,null,null,null,null,null,null,null,null,null,null,null,null,null,null,null,null,null,null,0]
[325,"محمد فتحي فكري احمد",null,null,null,null,null,null,null,null,null,null,null,null,null,null,null,null,null,null,null,null,null,null,null,null,null,null,null,null,null,null,null,0]
[326,"محمد فتحي فوزي خالد",null,null,null,null,null,null,null,null,null,null,null,null,null,null,null,null,null,null,null,null,null,null,null,null,null,null,null,null,null,null,null,0]
[327,"محمد فرج عبدالعزيز عبدالسلام",null,null,null,null,null,null,null,null,null,null,null,null,null,null,null,null,null,null,null,null,null,null,null,null,null,null,null,null,null,null,null,0]
[328,"محمد فوزي صديق موسي",null,null,null,null,null,null,null,null,null,null,null,null,null,null,null,null,null,null,null,null,null,null,null,null,null,null,null,null,null,null,null,0]
[329,"محمد كمال احمد محمد",null,null,null,null,null,null,null,null,null,null,null,null,null,null,null,null,null,null,null,null,null,null,null,null,null,null,null,null,null,null,null,0]
[330,"محمد لطفي عطا",null,null,null,null,null,null,null,null,null,null,null,null,null,null,null,null,null,null,null,null,null,null,null,null,null,null,null,null,null,null,null,0]
[331,"محمد محروس علي عبدالعزيز",null,null,null,null,null,null,null,null,null,null,null,null,null,null,null,null,null,null,null,null,null,null,null,null,null,null,null,null,null,null,null,0]
[332,"محمد محمود ابراهيم الخولي",null,null,null,null,null,null,null,null,null,null,null,null,null,null,null,null,null,null,null,null,null,null,null,null,null,null,null,null,null,null,null,0]
[333,"محمد محمود حماده اسماعيل",null,null,null,null,null,null,null,null,null,null,null,null,null,null,null,null,null,null,null,null,null,null,null,null,null,null,null,null,null,null,null,0]
[334,"محمد محمود عبدالغفار عبدالهادي",null,null,null,null,null,null,null,null,null,null,null,null,null,null,null,null,null,null,null,null,null,null,null,null,null,null,null,null,null,null,null,0]
[335,"محمد محمود علي محمود",null,null,null,null,null,null,null,null,null,null,null,null,null,null,null,null,null,null,null,null,null,null,null,null,null,null,null,null,null,null,null,0]
[336,"محمد محمود محمد احمد",null,null,null,null,null,null,null,null,null,null,null,null,null,null,null,null,null,null,null,null,null,null,null,null,null,null,null,null,null,null,null,0]
[337,"محمد محمود محمد السقا",null,null,null,null,null,null,null,null,null,null,null,null,null,null,null,null,null,null,null,null,null,null,null,null,null,null,null,null,null,null,null,0]
[338,"محمد مخلص محمد محمد عوض",null,null,null,null,null,null,null,null,null,null,null,null,null,null,null,null,null,null,null,null,null,null,null,null,null,null,null,null,null,null,null,0]
[339,"محمد ممدوح محمد عبدالجواد",null,null,null,null,null,null,null,null,null,null,null,null,null,null,null,null,null,null,null,null,null,null,null,null,null,null,null,null,null,null,null,0]
[340,"محمد منصور عبدالمجيد",null,null,null,null,null,null,null,null,null,null,null,null,null,null,null,null,null,null,null,null,null,null,null,null,null,null,null,null,null,null,null,0]
[341,"محمد مهدي سالم",null,null,null,null,null,null,null,null,null,null,null,null,null,null,null,null,null,null,null,null,null,null,null,null,null,null,null,null,null,null,null,0]
[342,"محمد ناصر محمد سليم",null,null,null,null,null,null,null,null,null,null,null,null,null,null,null,null,null,null,null,null,null,null,null,null,null,null,null,null,null,null,null,0]
[343,"محمد ناصرعبداللطيف محمود حسب النبي",null,null,null,null,null,null,null,null,null,null,null,null,null,null,null,null,null,null,null,null,null,null,null,null,null,null,null,null,null,null,null,0]
[344,"محمد نور خميس السيد",null,null,null,null,null,null,null,null,null,null,null,null,null,null,null,null,null,null,null,null,null,null,null,null,null,null,null,null,null,null,null,0]
[345,"محمد وليد محمود الشحات",null,null,null,null,null,null,null,null,null,null,null,null,null,null,null,null,null,null,null,null,null,null,null,null,null,null,null,null,null,null,null,0]
[346,"محمد ياسر محمدعبدالحميد",null,null,null,null,null,null,null,null,null,null,null,null,null,null,null,null,null,null,null,null,null,null,null,null,null,null,null,null,null,null,null,0]
[347,"محمد يحيي محمد مبروك",null,null,null,null,null,null,null,null,null,null,null,null,null,null,null,null,null,null,null,null,null,null,null,null,null,null,null,null,null,null,null,0]
[348,"محمد يسري محمد رجب",null,null,null,null,null,null,null,null,null,null,null,null,null,null,null,null,null,null,null,null,null,null,null,null,null,null,null,null,null,null,null,0]
[349,"محمود ابراهيم عاشور عبدالوهاب",null,null,null,null,null,null,null,null,null,null,null,null,null,null,null,null,null,null,null,null,null,null,null,null,null,null,null,null,null,null,null,0]
[350,"محمود احمد عبدالمقصود عبدالعاطي",null,null,null,null,null,null,null,null,null,null,null,null,null,null,null,null,null,null,null,null,null,null,null,null,null,null,null,null,null,null,null,0]
[351,"محمود احمد محمد حمزة",null,null,null,null,null,null,null,null,null,null,null,null,null,null,null,null,null,null,null,null,null,null,null,null,null,null,null,null,null,null,null,0]
[352,"محمود اشرف محمد محمود",null,null,null,null,null,null,null,null,null,null,null,null,null,null,null,null,null,null,null,null,null,null,null,null,null,null,null,null,null,null,null,0]
[353,"محمود بغدادي توفيق",null,null,null,null,null,null,null,null,null,null,null,null,null,null,null,null,null,null,null,null,null,null,null,null,null,null,null,null,null,null,null,0]
[354,"محمود تحسين جاد الرب",null,null,null,null,null,null,null,null,null,null,null,null,null,null,null,null,null,null,null,null,null,null,null,null,null,null,null,null,null,null,null,0]
[355,"محمود جلال عثمان",null,null,null,null,null,null,null,null,null,null,null,null,null,null,null,null,null,null,null,null,null,null,null,null,null,null,null,null,null,null,null,0]
[356,"محمود جوده احمد علي",null,null,null,null,null,null,null,null,null,null,null,null,null,null,null,null,null,null,null,null,null,null,null,null,null,null,null,null,null,null,null,0]
[357,"محمود حسن السيد احمد",null,null,null,null,null,null,null,null,null,null,null,null,null,null,null,null,null,null,null,null,null,null,null,null,null,null,null,null,null,null,null,0]
[358,"محمود خليل عثمان البربري",null,null,null,null,null,null,null,null,null,null,null,null,null,null,null,null,null,null,null,null,null,null,null,null,null,null,null,null,null,null,null,0]
[359,"محمود رجب عبدالظاهر ",null,null,null,null,null,null,null,null,null,null,null,null,null,null,null,null,null,null,null,null,null,null,null,null,null,null,null,null,null,null,null,0]
[360,"محمود رفعت محمدالجزار",null,null,null,null,null,null,null,null,null,null,null,null,null,null,null,null,null,null,null,null,null,null,null,null,null,null,null,null,null,null,null,0]
[361,"محمود سامي عبدالعزيز",null,null,null,null,null,null,null,null,null,null,null,null,null,null,null,null,null,null,null,null,null,null,null,null,null,null,null,null,null,null,null,0]
[362,"محمود سعيد نجم ",null,null,null,null,null,null,null,null,null,null,null,null,null,null,null,null,null,null,null,null,null,null,null,null,null,null,null,null,null,null,null,0]
[363,"محمود صبري محمود الشرقاوي",null,null,null,null,null,null,null,null,null,null,null,null,null,null,null,null,null,null,null,null,null,null,null,null,null,null,null,null,null,null,null,0]
[364,"محمود عامر محمد متولي",null,null,null,null,null,null,null,null,null,null,null,null,null,null,null,null,null,null,null,null,null,null,null,null,null,null,null,null,null,null,null,0]
[365,"محمود عبدالسميع السعيد عبدالجواد",null,null,null,null,null,null,null,null,null,null,null,null,null,null,null,null,null,null,null,null,null,null,null,null,null,null,null,null,null,null,null,0]
[366,"محمود عيد محمد عبدالغني",null,null,null,null,null,null,null,null,null,null,null,null,null,null,null,null,null,null,null,null,null,null,null,null,null,null,null,null,null,null,null,0]
[367,"محمود فتحي فوزي خالد",null,null,null,null,null,null,null,null,null,null,null,null,null,null,null,null,null,null,null,null,null,null,null,null,null,null,null,null,null,null,null,0]
[368,"محمود فوزي صديق",null,null,null,null,null,null,null,null,null,null,null,null,null,null,null,null,null,null,null,null,null,null,null,null,null,null,null,null,null,null,null,0]
[369,"محمود محمد احمدعبدالمقصود",null,null,null,null,null,null,null,null,null,null,null,null,null,null,null,null,null,null,null,null,null,null,null,null,null,null,null,null,null,null,null,0]
[370,"محمود محمد محمد الشرباصي",null,null,null,null,null,null,null,null,null,null,null,null,null,null,null,null,null,null,null,null,null,null,null,null,null,null,null,null,null,null,null,0]
[371,"محمود نمر وهيب ادم",null,null,null,null,null,null,null,null,null,null,null,null,null,null,null,null,null,null,null,null,null,null,null,null,null,null,null,null,null,null,null,0]
[372,"محمود يوسف جامع احمد",null,null,null,null,null,null,null,null,null,null,null,null,null,null,null,null,null,null,null,null,null,null,null,null,null,null,null,null,null,null,null,0]
[373,"محمود يوسف محمود مهدي",null,null,null,null,null,null,null,null,null,null,null,null,null,null,null,null,null,null,null,null,null,null,null,null,null,null,null,null,null,null,null,0]
[374,"مختار علي محمد عبدالخالق",null,null,null,null,null,null,null,null,null,null,null,null,null,null,null,null,null,null,null,null,null,null,null,null,null,null,null,null,null,null,null,0]
[375,"مختار محمد محمود محمد حسن",null,null,null,null,null,null,null,null,null,null,null,null,null,null,null,null,null,null,null,null,null,null,null,null,null,null,null,null,null,null,null,0]
[376,"مصطفي احمد عبدالحميد عبدالمنصف",null,null,null,null,null,null,null,null,null,null,null,null,null,null,null,null,null,null,null,null,null,null,null,null,null,null,null,null,null,null,null,0]
[377,"مصطفي احمد عيد عبدالحميد",null,null,null,null,null,null,null,null,null,null,null,null,null,null,null,null,null,null,null,null,null,null,null,null,null,null,null,null,null,null,null,0]
[378,"مصطفي اسماعيل اسماعيل  ",null,null,null,null,null,null,null,null,null,null,null,null,null,null,null,null,null,null,null,null,null,null,null,null,null,null,null,null,null,null,null,0]
[379,"مصطفي ايهاب محمد عبدالعليم",null,null,null,null,null,null,null,null,null,null,null,null,null,null,null,null,null,null,null,null,null,null,null,null,null,null,null,null,null,null,null,0]
[380,"مصطفي سمير ابراهيم رزق",null,null,null,null,null,null,null,null,null,null,null,null,null,null,null,null,null,null,null,null,null,null,null,null,null,null,null,null,null,null,null,0]
[381,"مصطفي صلاح عباس",null,null,null,null,null,null,null,null,null,null,null,null,null,null,null,null,null,null,null,null,null,null,null,null,null,null,null,null,null,null,null,0]
[382,"مصطفي عبدالحميد عبدالمنصف",null,null,null,null,null,null,null,null,null,null,null,null,null,null,null,null,null,null,null,null,null,null,null,null,null,null,null,null,null,null,null,0]
[383,"مصطفي عبدالقادر مبروك",null,null,null,null,null,null,null,null,null,null,null,null,null,null,null,null,null,null,null,null,null,null,null,null,null,null,null,null,null,null,null,0]
[384,"مصطفي محمد محمد دراز",null,null,null,null,null,null,null,null,null,null,null,null,null,null,null,null,null,null,null,null,null,null,null,null,null,null,null,null,null,null,null,0]
[385,"مصطفي محمود حافظ عاشور",null,null,null,null,null,null,null,null,null,null,null,null,null,null,null,null,null,null,null,null,null,null,null,null,null,null,null,null,null,null,null,0]
[386,"مصطفي ناصر ثابت علي",null,null,null,null,null,null,null,null,null,null,null,null,null,null,null,null,null,null,null,null,null,null,null,null,null,null,null,null,null,null,null,{"$f":"SUM($C395:$AG395)","v":0}]
[387,"معاز ممدوح ابراهيم جويده",null,null,null,null,null,null,null,null,null,null,null,null,null,null,null,null,null,null,null,null,null,null,null,null,null,null,null,null,null,null,null,0]
[388,"معتز سمير عبدربه محمد",null,null,null,null,null,null,null,null,null,null,null,null,null,null,null,null,null,null,null,null,null,null,null,null,null,null,null,null,null,null,null,0]
[389,"مؤمن نور فتحي بدر",null,null,null,null,null,null,null,null,null,null,null,null,null,null,null,null,null,null,null,null,null,null,null,null,null,null,null,null,null,null,null,0]
[390,"مينا ميلاد بباوي جبرايل",null,null,null,null,null,null,null,null,null,null,null,null,null,null,null,null,null,null,null,null,null,null,null,null,null,null,null,null,null,null,null,0]
[391,"نادر الشحات بدير الشحات",null,null,null,null,null,null,null,null,null,null,null,null,null,null,null,null,null,null,null,null,null,null,null,null,null,null,null,null,null,null,null,0]
[392,"نورالدين سيد معروف علي",null,null,null,null,null,null,null,null,null,null,null,null,null,null,null,null,null,null,null,null,null,null,null,null,null,null,null,null,null,null,null,0]
[393,"هاني سعد ابراهيم محارب",null,null,null,null,null,null,null,null,null,null,null,null,null,null,null,null,null,null,null,null,null,null,null,null,null,null,null,null,null,null,null,0]
[394,"هاني عبدالحي عيد حسن",null,null,null,null,null,null,null,null,null,null,null,null,null,null,null,null,null,null,null,null,null,null,null,null,null,null,null,null,null,null,null,0]
[395,"هديره طه عبدالهادي قنديل",null,null,null,null,null,null,null,null,null,null,null,null,null,null,null,null,null,null,null,null,null,null,null,null,null,null,null,null,null,null,null,0]
[396,"هشام سعيد صبحي عبدالعزيز",null,null,null,null,null,null,null,null,null,null,null,null,null,null,null,null,null,null,null,null,null,null,null,null,null,null,null,null,null,null,null,0]
[397,"هشام صابر سليم ادم",null,null,null,null,null,null,null,null,null,null,null,null,null,null,null,null,null,null,null,null,null,null,null,null,null,null,null,null,null,null,null,0]
[398,"هشام فتحي خليل المنوفي",null,null,null,null,null,null,null,null,null,null,null,null,null,null,null,null,null,null,null,null,null,null,null,null,null,null,null,null,null,null,null,0]
[399,"واءل رجب فنح الله حماده",null,null,null,null,null,null,null,null,null,null,null,null,null,null,null,null,null,null,null,null,null,null,null,null,null,null,null,null,null,null,null,0]
[400,"ياسر محمد ابراهيم سيد",null,null,null,null,null,null,null,null,null,null,null,null,null,null,null,null,null,null,null,null,null,null,null,null,null,null,null,null,null,null,null,0]
[401,"ياسر محمد محمد عباده",null,null,null,null,null,null,null,null,null,null,null,null,null,null,null,null,null,null,null,null,null,null,null,null,null,null,null,null,null,null,null,0]
[402,"يحي محمد عبدالكريم الاعرج",null,null,null,null,null,null,null,null,null,null,null,null,null,null,null,null,null,null,null,null,null,null,null,null,null,null,null,null,null,null,null,0]
[403,"يحيي فتحي محمد عبدالله راشد",null,null,null,null,null,null,null,null,null,null,null,null,null,null,null,null,null,null,null,null,null,null,null,null,null,null,null,null,null,null,null,0]
[404,"يوسف احمد السيد",null,null,null,null,null,null,null,null,null,null,null,null,null,null,null,null,null,null,null,null,null,null,null,null,null,null,null,null,null,null,null,0]
[405,"يوسف الجمل علي كمال الدين",null,null,null,null,null,null,null,null,null,null,null,null,null,null,null,null,null,null,null,null,null,null,null,null,null,null,null,null,null,null,null,0]
[406,"يوسف حسين فرحات",4,10,null,null,null,null,null,null,null,null,null,null,null,null,null,null,null,null,null,null,null,null,null,null,null,null,null,null,null,null,null,14]
[407,"يوسف شعبان عبدالمنعم",null,null,null,null,null,null,null,null,null,null,null,null,null,null,null,null,null,null,null,null,null,null,null,null,null,null,null,null,null,null,null,0]
[408,"يونس الجمل علي كمال",null,null,null,null,null,null,null,null,null,null,null,null,null,null,null,null,null,null,null,null,null,null,null,null,null,null,null,null,null,null,null,0]